Departmental Family,Entity,Date,Expense Type,Expense Area,Supplier,Transaction Number,Amount
Department for Work and Pensions,Jobcentre Plus,31-Oct-11,ACCOMMODATION,COO,TELEREAL TRILLIUM,2023030020,"29,642,263.58"
Department for Work and Pensions,Corporate,18-Oct-11,Other ,STR,PENSION PROTECTION FUND,1004988,"19,851,000.00"
Department for Work and Pensions,Corporate,18-Oct-11,NETWORK,CIT,BT GLOBAL SERVICES,2022867041,"8,400,079.52"
Department for Work and Pensions,Corporate,18-Oct-11,COMPUTER SERVICES,CIT,HP ENTERPRISE SERVICES UK LTD,2022868574,"8,287,619.29"
Department for Work and Pensions,Corporate,18-Oct-11,HOSTING,CIT,HP ENTERPRISE SERVICES UK LTD,2022868574,"7,764,999.52"
Department for Work and Pensions,Corporate,17-Oct-11,HOSTING,CIT,HP ENTERPRISE SERVICES UK LTD,2022864834,"7,370,222.54"
Department for Work and Pensions,Corporate,06-Oct-11,GRANTS IN AID,STR,THE PENSIONS REGULATOR,1004979,"6,380,000.00"
Department for Work and Pensions,Corporate,26-Oct-11,BANKING AND ENCASHMENT COSTS,F&C,POST OFFICE LTD,1004997,"5,514,133.77"
Department for Work and Pensions,European Social Fund,04-Oct-11,ESF Expenditure,STR,SKILLS FUNDING AGENCY,5000000732,"4,972,930.00"
Department for Work and Pensions,Corporate,31-Oct-11,TRADE DEBTORS,Excluded,TELEREAL TRILLIUM,2023030020,"4,581,651.97"
Department for Work and Pensions,Jobcentre Plus,31-Oct-11,ACCOMMODATION,COO,TELEREAL TRILLIUM,2023030021,"4,549,272.07"
Department for Work and Pensions,Corporate,24-Oct-11,EMPLOYMENT PROGRAMMES,Excluded,NEST CORPORATION,2002850,"4,200,000.00"
Department for Work and Pensions,Corporate,18-Oct-11,COMPUTER SERVICES,CIT,HP ENTERPRISE SERVICES UK LTD,2022868574,"4,193,993.67"
Department for Work and Pensions,Jobcentre Plus,31-Oct-11,MEDICAL SERVICES,COO,ATOS HEALTHCARE,2023027736,"4,037,708.85"
Department for Work and Pensions,Employment Programmes,06-Oct-11,GRANTS IN AID,STR,REMPLOY LTD,1004976,"4,000,000.00"
Department for Work and Pensions,European Social Fund,07-Oct-11,ESF Expenditure,STR,LONDON DWP,5000000738,"3,617,643.00"
Department for Work and Pensions,Corporate,18-Oct-11,COMPUTER SERVICES,CIT,BT GLOBAL SERVICES,2022867041,"3,342,563.75"
Department for Work and Pensions,Jobcentre Plus,31-Oct-11,PAYMENTS TO CSAS,COO,DEPARTMENT FOR SOCIAL DEVELOPMENT,1005005,"3,226,823.00"
Department for Work and Pensions,Corporate,18-Oct-11,GRANTS IN AID,STR,PENSION PROTECTION FUND,1004990,"3,200,000.00"
Department for Work and Pensions,Jobcentre Plus,10-Oct-11,MEDICAL SERVICES,COO,ATOS HEALTHCARE,2022778405,"3,028,281.63"
Department for Work and Pensions,Corporate,10-Oct-11,COMPUTER SERVICES,CIT,ACCENTURE UK LTD,2022778386,"2,917,485.24"
Department for Work and Pensions,Jobcentre Plus,07-Oct-11,AOS CONTRACTED OUT SERVICES,COO,BALFOUR BEATTY WORKPLACE LTD,2022774237,"2,825,892.10"
Department for Work and Pensions,European Social Fund,11-Oct-11,ESF Expenditure,STR,SKILLS FUNDING AGENCY,5000000749,"2,551,454.00"
Department for Work and Pensions,Jobcentre Plus,18-Oct-11,COMPUTER SERVICES,Change PMU,ACCENTURE UK LTD,2022866915,"2,493,808.19"
Department for Work and Pensions,"Pension, Disability Carers Services",31-Oct-11,ACCOMMODATION,COO,TELEREAL TRILLIUM,2023030020,"2,452,510.47"
Department for Work and Pensions,Employment Programmes,28-Oct-11,GRANTS IN AID,STR,REMPLOY LTD,2023026133,"2,350,000.00"
Department for Work and Pensions,Corporate,25-Oct-11,COMPUTER SERVICES,Change PMU,HP ENTERPRISE SERVICES UK LTD,2022951565,"2,200,000.00"
Department for Work and Pensions,European Social Fund,07-Oct-11,ESF Expenditure,STR,LIVERPOOL CITY COUNCIL,5000000737,"2,160,127.00"
Department for Work and Pensions,European Social Fund,31-Oct-11,ESF Expenditure,STR,WEST MIDLANDS DWP,5000000778,"2,124,235.00"
Department for Work and Pensions,Jobcentre Plus,31-Oct-11,ACCOMMODATION,COO,TELEREAL TRILLIUM,2023030020,"2,025,594.28"
Department for Work and Pensions,Corporate,18-Oct-11,IS/IT,CIT,HP ENTERPRISE SERVICES UK LTD,2022868574,"2,013,710.96"
Department for Work and Pensions,Jobcentre Plus,10-Oct-11,COMPUTER SERVICES,Change PMU,ACCENTURE UK LTD,2022778385,"1,900,000.00"
Department for Work and Pensions,Corporate,17-Oct-11,SIAM,CIT,HP ENTERPRISE SERVICES UK LTD,2022864834,"1,897,027.09"
Department for Work and Pensions,Jobcentre Plus,17-Oct-11,MEDICAL SERVICES,COO,ATOS HEALTHCARE,2022862773,"1,888,237.35"
Department for Work and Pensions,Corporate,18-Oct-11,COMPUTER SERVICES,CIT,BT GLOBAL SERVICES,2022867041,"1,675,177.61"
Department for Work and Pensions,Jobcentre Plus,31-Oct-11,ACCOMMODATION,COO,TELEREAL TRILLIUM,2023030024,"1,663,260.28"
Department for Work and Pensions,European Social Fund,18-Oct-11,ESF Expenditure,STR,SOUTH WEST DWP,5000000765,"1,546,091.00"
Department for Work and Pensions,"Pension, Disability Carers Services",27-Oct-11,OTHER EXPENDITURE,Change PMU,ATOS ORIGIN IT SERVICES UK,2023018561,"1,532,085.84"
Department for Work and Pensions,Jobcentre Plus,27-Oct-11,MEDICAL SERVICES,COO,ATOS HEALTHCARE,2023018560,"1,323,233.92"
Department for Work and Pensions,Corporate,21-Oct-11,STAFF COSTS,F&C,HMRC,2002845,"1,306,390.81"
Department for Work and Pensions,Corporate,18-Oct-11,COMPUTER SERVICES,CIT,XEROX UK LTD 3W,2022870619,"1,260,260.89"
Department for Work and Pensions,European Social Fund,18-Oct-11,ESF Expenditure,STR,SKILLS FUNDING AGENCY,5000000764,"1,243,094.00"
Department for Work and Pensions,Corporate,31-Oct-11,ACCOMMODATION,F&C,TELEREAL TRILLIUM,2023030020,"1,213,602.07"
Department for Work and Pensions,Corporate,11-Oct-11,OTHER GOODS AND SERVICES,STR,VALUATION OFFICE AGENCY,2002823,"1,200,000.00"
Department for Work and Pensions,Corporate,18-Oct-11,OTHER MAJOR CONTRACTS,F&C,SANTANDER,1004992,"1,191,476.00"
Department for Work and Pensions,Corporate,10-Oct-11,MISCELLANEOUS EXPENDITURE,STR,INDEPENDENT LIVING FUND,1004980,"1,172,320.00"
Department for Work and Pensions,Corporate,27-Oct-11,ACCOMMODATION COSTS,F&C,TELEREAL TRILLIUM,2023022099,"1,167,697.50"
Department for Work and Pensions,Corporate,18-Oct-11,CONTRACTED OUT SERVICES,F&C,XEROX UK LTD 3W,2022870619,"1,149,364.00"
Department for Work and Pensions,Corporate,18-Oct-11,NETWORK,CIT,BT GLOBAL SERVICES,2022867041,"1,068,281.69"
Department for Work and Pensions,Housing Benefits,14-Oct-11,Housing Benefit Admin,COO,BIRMINGHAM CITY COUNCIL,2022862279,"1,032,452.00"
Department for Work and Pensions,Jobcentre Plus,11-Oct-11,MEDICAL SERVICES,COO,ATOS HEALTHCARE,2022783201,"1,009,427.21"
Department for Work and Pensions,Corporate,20-Oct-11,COMPUTER SERVICES,CIT,ACCENTURE UK LTD,2022935359,"1,002,158.00"
Department for Work and Pensions,Employment Programmes,18-Oct-11,GRANTS IN AID,STR,REMPLOY LTD,1004991,"1,000,000.00"
Department for Work and Pensions,Corporate,31-Oct-11,TRADE DEBTORS,Excluded,TELEREAL TRILLIUM,2023030021,"960,512.29"
Department for Work and Pensions,European Social Fund,07-Oct-11,ESF Expenditure,STR,SKILLS FUNDING AGENCY,5000000740,"938,083.00"
Department for Work and Pensions,Corporate,18-Oct-11,COMPUTER SERVICES,CIT,HP ENTERPRISE SERVICES UK LTD,2022868574,"931,833.36"
Department for Work and Pensions,Corporate,18-Oct-11,TELEPHONE AND POSTAGE,F&C,UK MAIL,2022870518,"929,964.74"
Department for Work and Pensions,Corporate,31-Oct-11,NETWORK,CIT,BT GLOBAL SERVICES,2023027789,"900,000.00"
Department for Work and Pensions,Jobcentre Plus,14-Oct-11,ACCOMMODATION,COO,TELEREAL TRILLIUM,2022860792,"850,242.68"
Department for Work and Pensions,Corporate,10-Oct-11,TELEPHONE AND POSTAGE,F&C,ROYAL MAIL GROUP PLC,2022781309,"846,897.58"
Department for Work and Pensions,Corporate,05-Oct-11,GRANTS IN AID,STR,PENSION PROTECTION FUND,1004973,"831,595.00"
Department for Work and Pensions,Corporate,18-Oct-11,COMPUTER SERVICES,CIT,HP ENTERPRISE SERVICES UK LTD,2022868574,"829,035.64"
Department for Work and Pensions,Corporate,17-Oct-11,IS/IT,CIT,HP ENTERPRISE SERVICES UK LTD,2022864834,"814,344.20"
Department for Work and Pensions,Housing Benefits,14-Oct-11,Housing Benefit Admin,COO,CITY OF GLASGOW,2022862327,"789,476.00"
Department for Work and Pensions,Corporate,31-Oct-11,MISCELLANEOUS EXPENDITURE,STR,OFFICE FOR NATIONAL STATISTICS,2023029645,"750,000.00"
Department for Work and Pensions,Corporate,18-Oct-11,APPS DEV,CIT,HP ENTERPRISE SERVICES UK LTD,2022868574,"746,861.48"
Department for Work and Pensions,Employment Programmes,19-Oct-11,INTRA DWP PAYABLES,Excluded,DWP,2002831,"715,750.06"
Department for Work and Pensions,"Pension, Disability Carers Services",07-Oct-11,AOS CONTRACTED OUT SERVICES,COO,BALFOUR BEATTY WORKPLACE LTD,2022774237,"711,857.30"
Department for Work and Pensions,Corporate,31-Oct-11,ACCOMMODATION,F&C,TELEREAL TRILLIUM,2023030020,"699,951.57"
Department for Work and Pensions,Corporate,06-Oct-11,GRANTS IN AID,STR,THE PENSIONS OMBUDSMAN,1004977,"653,000.00"
Department for Work and Pensions,Housing Benefits,14-Oct-11,Housing Benefit Admin,COO,LIVERPOOL CITY COUNCIL,2022862428,"625,683.00"
Department for Work and Pensions,Jobcentre Plus,27-Oct-11,AOS CONTRACTED OUT SERVICES,COO,VERTEX DATA SCIENCE LTD,2023022163,"570,135.11"
Department for Work and Pensions,Corporate,11-Oct-11,COMPUTER SERVICES,F&C,FUJITSU SERVICES LTD,2022785431,"562,192.52"
Department for Work and Pensions,Housing Benefits,14-Oct-11,Housing Benefit Admin,COO,LEEDS CITY COUNCIL,2022862423,"559,512.00"
Department for Work and Pensions,"Pension, Disability Carers Services",10-Oct-11,TEMPORARY (TEMP) STAFF COSTS,COO,CLUB 24 LTD T/A VENTURA,2022778649,"557,635.98"
Department for Work and Pensions,Corporate,17-Oct-11,COMPUTER SERVICES,CIT,HP ENTERPRISE SERVICES UK LTD,2022864834,"542,601.06"
Department for Work and Pensions,Corporate,31-Oct-11,ACCOMMODATION,F&C,TELEREAL TRILLIUM,2023030020,"540,520.87"
Department for Work and Pensions,European Social Fund,20-Oct-11,INTRA DWP PAYABLES,STR,DEPARTMENT FOR WORK & PENSIONS,5000000766,"540,195.11"
Department for Work and Pensions,Corporate,31-Oct-11,ACCOMMODATION,F&C,TELEREAL TRILLIUM,2023030020,"536,267.43"
Department for Work and Pensions,Corporate,18-Oct-11,COMPUTER SERVICES,CIT,ACCENTURE UK LTD,2022866915,"526,947.64"
Department for Work and Pensions,Corporate,18-Oct-11,COMPUTER SERVICES,CIT,HP ENTERPRISE SERVICES UK LTD,2022868574,"524,036.88"
Department for Work and Pensions,Jobcentre Plus,31-Oct-11,COMPUTER SERVICES,COO,STERIA,2023029963,"521,433.37"
Department for Work and Pensions,Housing Benefits,14-Oct-11,Housing Benefit Admin,COO,MANCHESTER CITY COUNCIL,2022862461,"521,148.00"
Department for Work and Pensions,Corporate,17-Oct-11,COMPUTER SERVICES,CIT,HP ENTERPRISE SERVICES UK LTD,2022864834,"496,626.54"
Department for Work and Pensions,Corporate,18-Oct-11,COMPUTER SERVICES,CIT,HP ENTERPRISE SERVICES UK LTD,2022868574,"474,178.00"
Department for Work and Pensions,Jobcentre Plus,31-Oct-11,MEDICAL SERVICES,Change PMU,ATOS HEALTHCARE,2023027736,"467,675.38"
Department for Work and Pensions,Jobcentre Plus,31-Oct-11,MEDICAL SERVICES,Change PMU,ATOS HEALTHCARE,2023027735,"449,911.97"
Department for Work and Pensions,Corporate,18-Oct-11,APPS DEV,Change PMU,HP ENTERPRISE SERVICES UK LTD,2022868574,"448,755.15"
Department for Work and Pensions,Housing Benefits,14-Oct-11,Housing Benefit Admin,COO,DURHAM COUNCIL,2022862356,"446,708.00"
Department for Work and Pensions,Housing Benefits,14-Oct-11,Housing Benefit Admin,COO,BRADFORD METROPOLITAN BOROUGH COUNCIL,2022862292,"443,966.00"
Department for Work and Pensions,Corporate,27-Oct-11,COMPUTER SERVICES,CIT,ACCENTURE UK LTD,2023018531,"435,493.04"
Department for Work and Pensions,Jobcentre Plus,18-Oct-11,APPS DEV,COO,HP ENTERPRISE SERVICES UK LTD,2022868574,"409,539.84"
Department for Work and Pensions,"Pension, Disability Carers Services",31-Oct-11,ACCOMMODATION,COO,TELEREAL TRILLIUM,2023030021,"406,890.17"
Department for Work and Pensions,Employment Programmes,12-Oct-11,EP PROVIDER PAYMENT - NON-WORK PROGRAMME,COO,A4E LTD,2022793791,"397,015.00"
Department for Work and Pensions,Corporate,27-Oct-11,AOS CONTRACTED OUT SERVICES,My Civil Seevice Pension,CAPITA BUSINESS SERVICES LTD,2023018816,"394,506.79"
Department for Work and Pensions,Employment Programmes,18-Oct-11,YOUNG PERSON'S GUARANTEE,COO,SALFORD CITY  COUNCIL,2022870338,"394,200.00"
Department for Work and Pensions,Corporate,07-Oct-11,COMPUTER SERVICES,CIT,ACCENTURE UK LTD,2022774175,"390,210.04"
Department for Work and Pensions,Housing Benefits,14-Oct-11,Housing Benefit Admin,COO,LONDON BOROUGH OF TOWER HAMLETS,2022862454,"388,535.00"
Department for Work and Pensions,Corporate,18-Oct-11,APPS DEV,Change PMU,HP ENTERPRISE SERVICES UK LTD,2022868574,"387,536.23"
Department for Work and Pensions,Employment Programmes,28-Oct-11,EP PROVIDER PAYMENT - NON-WORK PROGRAMME,COO,SHAW TRUST,2023026319,"386,799.92"
Department for Work and Pensions,Housing Benefits,14-Oct-11,Housing Benefit Admin,COO,SHEFFIELD CITY COUNCIL,2022862540,"382,037.00"
Department for Work and Pensions,Corporate,12-Oct-11,COMPUTER SERVICES,CIT,HMRC,2022810423,"381,112.58"
Department for Work and Pensions,Corporate,14-Oct-11,OTHER EXPENDITURE,My Civil Seevice Pension,XAFINITY CLAYBROOK,2022860897,"379,764.00"
Department for Work and Pensions,Housing Benefits,14-Oct-11,Housing Benefit Admin,COO,LONDON BOROUGH OF LAMBETH,2022862446,"370,235.00"
Department for Work and Pensions,Housing Benefits,14-Oct-11,Housing Benefit Admin,COO,CORNWALL COUNCIL,2022862336,"368,509.00"
Department for Work and Pensions,Corporate,18-Oct-11,COMPUTER SERVICES,CIT,BT GLOBAL SERVICES,2022867041,"368,338.30"
Department for Work and Pensions,Housing Benefits,14-Oct-11,Housing Benefit Admin,COO,LONDON BOROUGH OF LEWISHAM,2022862447,"365,854.00"
Department for Work and Pensions,Housing Benefits,14-Oct-11,Housing Benefit Admin,COO,HACKNEY LBC,2022862395,"364,812.00"
Department for Work and Pensions,Housing Benefits,14-Oct-11,Housing Benefit Admin,COO,BRISTOL CITY COUNCIL,2022862298,"363,124.00"
Department for Work and Pensions,European Social Fund,18-Oct-11,ESF Expenditure,STR,CORNWALL COLLEGE,5000000762,"362,709.00"
Department for Work and Pensions,Corporate,31-Oct-11,TRADE DEBTORS,Excluded,TELEREAL TRILLIUM,2023030024,"362,533.07"
Department for Work and Pensions,Housing Benefits,14-Oct-11,Housing Benefit Admin,COO,LONDON BOROUGH OF SOUTHWARK,2022862452,"353,365.00"
Department for Work and Pensions,Employment Programmes,03-Oct-11,YOUNG PERSON'S GUARANTEE,COO,BIRMINGHAM CITY COUNCIL,2022697912,"348,300.00"
Department for Work and Pensions,Corporate,31-Oct-11,ACCOMMODATION,F&C,TELEREAL TRILLIUM,2023030021,"345,486.76"
Department for Work and Pensions,European Social Fund,11-Oct-11,ESF Expenditure,STR,NATIONAL OFFENDER MANAGEMENT SERVICES,5000000747,"344,849.00"
Department for Work and Pensions,Jobcentre Plus,14-Oct-11,COMPUTER SERVICES,Change PMU,SPECIALIST COMPUTER CENTRES PLC,2022860731,"340,764.00"
Department for Work and Pensions,Housing Benefits,14-Oct-11,Housing Benefit Admin,COO,LONDON BOROUGH OF NEWHAM,2022862449,"338,233.00"
Department for Work and Pensions,Housing Benefits,14-Oct-11,Housing Benefit Admin,COO,EDINBURGH DISTRICT COUNCIL,2022862373,"338,190.00"
Department for Work and Pensions,"Pension, Disability Carers Services",18-Oct-11,APPS DEV,Change PMU,HP ENTERPRISE SERVICES UK LTD,2022868574,"333,674.26"
Department for Work and Pensions,Jobcentre Plus,24-Oct-11,COMPUTER SERVICES,Change PMU,ACCENTURE UK LTD,2022945366,"321,145.91"
Department for Work and Pensions,Corporate,05-Oct-11,ACCOMMODATION COSTS,F&C,TELEREAL TRILLIUM,2022765509,"320,572.94"
Department for Work and Pensions,Housing Benefits,14-Oct-11,Housing Benefit Admin,COO,LONDON BOROUGH OF BRENT,2022862432,"317,783.00"
Department for Work and Pensions,Housing Benefits,14-Oct-11,Housing Benefit Admin,COO,KIRKLEES METROPOLITAN BOROUGH COUNCIL,2022862420,"311,862.00"
Department for Work and Pensions,Housing Benefits,14-Oct-11,Housing Benefit Admin,COO,SANDWELL BOROUGH COUNCIL,2022862533,"306,783.00"
Department for Work and Pensions,Housing Benefits,14-Oct-11,Housing Benefit Admin,COO,CROYDON PEO%,2022862343,"305,707.00"
Department for Work and Pensions,Corporate,31-Oct-11,ACCOMMODATION,F&C,TELEREAL TRILLIUM,2023030020,"304,508.11"
Department for Work and Pensions,Jobcentre Plus,31-Oct-11,ACCOMMODATION,COO,TELEREAL TRILLIUM,2023030021,"302,386.58"
Department for Work and Pensions,Housing Benefits,14-Oct-11,Housing Benefit Admin,COO,LONDON BOROUGH OF ISLINGTON,2022862444,"302,185.00"
Department for Work and Pensions,Housing Benefits,14-Oct-11,Housing Benefit Admin,COO,LONDON BOROUGH OF EALING,2022862435,"301,452.00"
Department for Work and Pensions,Jobcentre Plus,18-Oct-11,APPS DEV,Change PMU,HP ENTERPRISE SERVICES UK LTD,2022868574,"300,572.59"
Department for Work and Pensions,Employment Programmes,28-Oct-11,EP PROVIDER PAYMENT - NON-WORK PROGRAMME,COO,WORKING LINKS,2023026464,"297,357.82"
Department for Work and Pensions,Corporate,18-Oct-11,IS/IT,CIT,HP ENTERPRISE SERVICES UK LTD,2022868574,"297,167.53"
Department for Work and Pensions,Housing Benefits,14-Oct-11,Housing Benefit Admin,COO,LONDON BOROUGH OF HARINGEY,2022862439,"293,615.00"
Department for Work and Pensions,Housing Benefits,14-Oct-11,Housing Benefit Admin,COO,NOTTINGHAM CITY COUNCIL,2022862497,"293,187.00"
Department for Work and Pensions,Housing Benefits,14-Oct-11,Housing Benefit Admin,COO,LEICESTER CITY COUNCIL,2022862424,"287,913.00"
Department for Work and Pensions,Housing Benefits,14-Oct-11,Housing Benefit Admin,COO,LONDON BOROUGH OF ENFIELD,2022862436,"287,554.00"
Department for Work and Pensions,Corporate,31-Oct-11,ACCOMMODATION,F&C,TELEREAL TRILLIUM,2023030020,"285,545.03"
Department for Work and Pensions,Corporate,31-Oct-11,ACCOMMODATION,F&C,TELEREAL TRILLIUM,2023030020,"285,411.70"
Department for Work and Pensions,Employment Programmes,04-Oct-11,YOUNG PERSON'S GUARANTEE,COO,KNOWSLEY METROPOLITAN BOROUGH COUNCIL,2022704283,"285,295.36"
Department for Work and Pensions,Corporate,11-Oct-11,COMPUTER SERVICES,CIT,ACCENTURE UK LTD,2022783173,"284,243.95"
Department for Work and Pensions,Corporate,31-Oct-11,ACCOMMODATION,F&C,TELEREAL TRILLIUM,2023030021,"284,232.77"
Department for Work and Pensions,Housing Benefits,14-Oct-11,Housing Benefit Admin,COO,NORTH LANARKSHIRE COUNCIL,2022862487,"283,007.00"
Department for Work and Pensions,Employment Programmes,06-Oct-11,YOUNG PERSON'S GUARANTEE,COO,BIRMINGHAM CITY COUNCIL,2022769757,"282,600.00"
Department for Work and Pensions,Housing Benefits,14-Oct-11,Housing Benefit Admin,COO,SUNDERLAND CITY COUNCIL,2022862579,"281,931.00"
Department for Work and Pensions,Corporate,10-Oct-11,STAFF COSTS,HRD,RIGHT CORECARE,2022781299,"279,288.98"
Department for Work and Pensions,Housing Benefits,14-Oct-11,Housing Benefit Admin,COO,WAKEFIELD METROPOLITAN DISTRICT COUNCIL,2022862605,"276,618.00"
Department for Work and Pensions,Housing Benefits,14-Oct-11,Housing Benefit Admin,COO,COVENTRY CITY COUNCIL,2022862340,"276,337.00"
Department for Work and Pensions,Employment Programmes,28-Oct-11,EP PROVIDER PAYMENT - NON-WORK PROGRAMME,COO,SHAW TRUST,2023026319,"274,324.76"
Department for Work and Pensions,Housing Benefits,14-Oct-11,Housing Benefit Admin,COO,KINGSTON UPON HULL CITY COUNCIL,2022862419,"274,061.00"
Department for Work and Pensions,Housing Benefits,14-Oct-11,Housing Benefit Admin,COO,WIRRAL BOROUGH COUNCIL,2022862628,"271,978.00"
Department for Work and Pensions,Employment Programmes,18-Oct-11,RESIDENTIAL TRAINING,COO,FINCHALE TRAINING COLLEGE,2022868354,"271,852.83"
Department for Work and Pensions,Housing Benefits,14-Oct-11,Housing Benefit Admin,COO,BRIGHTON & HOVE COUNCIL,2022862297,"271,462.00"
Department for Work and Pensions,Housing Benefits,14-Oct-11,Housing Benefit Admin,COO,WALSALL BOROUGH COUNCIL,2022862606,"270,578.00"
Department for Work and Pensions,"Pension, Disability Carers Services",17-Oct-11,MEDICAL SERVICES,Change PMU,G4S FORENSIC MEDICAL SERVICES UK LTD,2022864788,"270,166.17"
Department for Work and Pensions,Employment Programmes,28-Oct-11,EP PROVIDER PAYMENT - NON-WORK PROGRAMME,COO,THE PLUSS ORGANISATION,2023026395,"267,040.23"
Department for Work and Pensions,European Social Fund,31-Oct-11,ESF Expenditure,STR,UNIVERSITY OF CUMBRIA,5000000777,"265,863.00"
Department for Work and Pensions,Employment Programmes,28-Oct-11,EP PROVIDER PAYMENT - NON-WORK PROGRAMME,COO,SEETEC BUSINESS TECHNOLOGY CENTRE LTD,2023026315,"265,529.03"
Department for Work and Pensions,Housing Benefits,14-Oct-11,Housing Benefit Admin,COO,LONDON BOROUGH OF WANDSWORTH,2022862456,"264,293.00"
Department for Work and Pensions,Housing Benefits,14-Oct-11,Housing Benefit Admin,COO,FIFE COUNCIL,2022862382,"262,739.00"
Department for Work and Pensions,Corporate,07-Oct-11,AOS CONTRACTED OUT SERVICES,F&C,BALFOUR BEATTY WORKPLACE LTD,2022774237,"261,663.89"
Department for Work and Pensions,Housing Benefits,14-Oct-11,Housing Benefit Admin,COO,LONDON BOROUGH OF GREENWICH,2022862437,"260,369.00"
Department for Work and Pensions,Employment Programmes,14-Oct-11,RESIDENTIAL TRAINING,COO,ST LOYES COLLEGE FOUNDATION,2022860736,"259,625.30"
Department for Work and Pensions,Employment Programmes,28-Oct-11,EP PROVIDER PAYMENT - NON-WORK PROGRAMME,COO,SHAW TRUST,2023026319,"256,444.02"
Department for Work and Pensions,Housing Benefits,14-Oct-11,Housing Benefit Admin,COO,CARDIFF CITY COUNCIL,2022862310,"255,850.00"
Department for Work and Pensions,Housing Benefits,14-Oct-11,Housing Benefit Admin,COO,LONDON BOROUGH OF CAMDEN,2022862434,"255,078.00"
Department for Work and Pensions,Employment Programmes,11-Oct-11,YOUNG PERSON'S GUARANTEE,COO,BIRMINGHAM CITY COUNCIL,2022783278,"253,650.00"
Department for Work and Pensions,Housing Benefits,14-Oct-11,Housing Benefit Admin,COO,WOLVERHAMPTON CITY COUNCIL,2022862631,"251,247.00"
Department for Work and Pensions,Corporate,18-Oct-11,AMS,CIT,HP ENTERPRISE SERVICES UK LTD,2022868574,"248,905.75"
Department for Work and Pensions,European Social Fund,11-Oct-11,ESF Expenditure,STR,SEFTON METROPOLITAN BOROUGH COUNCIL,5000000748,"248,699.00"
Department for Work and Pensions,Employment Programmes,28-Oct-11,EP PROVIDER PAYMENT - NON-WORK PROGRAMME,COO,SHAW TRUST,2023026319,"248,094.65"
Department for Work and Pensions,Housing Benefits,14-Oct-11,Housing Benefit Admin,COO,LONDON BOROUGH OF BARNET,2022862430,"246,635.00"
Department for Work and Pensions,Housing Benefits,14-Oct-11,Housing Benefit Admin,COO,NEWCASTLE CITY COUNCIL,2022862477,"244,177.00"
Department for Work and Pensions,Employment Programmes,12-Oct-11,EP PROVIDER PAYMENT - NON-WORK PROGRAMME,COO,A4E LTD,2022793791,"243,189.20"
Department for Work and Pensions,Corporate,18-Oct-11,APPS DEV,Change PMU,HP ENTERPRISE SERVICES UK LTD,2022868574,"242,998.51"
Department for Work and Pensions,Housing Benefits,14-Oct-11,Housing Benefit Admin,COO,DONCASTER METROPOLITAN BOROUGH COUNCIL,2022862351,"242,625.00"
Department for Work and Pensions,Employment Programmes,28-Oct-11,EP PROVIDER PAYMENT - NON-WORK PROGRAMME,COO,THE PLUSS ORGANISATION,2023026395,"240,963.75"
Department for Work and Pensions,Housing Benefits,14-Oct-11,Housing Benefit Admin,COO,SALFORD CITY COUNCIL,2022862532,"240,644.00"
Department for Work and Pensions,Corporate,04-Oct-11,AOS CONTRACTED OUT SERVICES,F&C,SPECIALIST COMPUTER CENTRES PLC,2022705929,"240,400.00"
Department for Work and Pensions,Housing Benefits,14-Oct-11,Housing Benefit Admin,COO,SOUTH LANARKSHIRE COUNCIL,2022862555,"239,641.00"
Department for Work and Pensions,Corporate,17-Oct-11,APPS DEV,Change PMU,HP ENTERPRISE SERVICES UK LTD,2022864834,"238,385.89"
Department for Work and Pensions,European Social Fund,18-Oct-11,ESF Expenditure,STR,BARNSLEY METROPOLITAN BOROUGH COUNCIL,5000000761,"235,839.00"
Department for Work and Pensions,Employment Programmes,28-Oct-11,EP PROVIDER PAYMENT - NON-WORK PROGRAMME,COO,ADVANCE HOUSING & SUPPORT LTD,2023024098,"235,101.14"
Department for Work and Pensions,Housing Benefits,14-Oct-11,Housing Benefit Admin,COO,CITY OF WESTMINSTER,2022862328,"235,056.00"
Department for Work and Pensions,Corporate,27-Oct-11,MISCELLANEOUS EXPENDITURE,PS,ECONOMIC & SOCIAL RESEARCH COUNCIL,2023020323,"235,000.00"
Department for Work and Pensions,Housing Benefits,14-Oct-11,Housing Benefit Admin,COO,LONDON BOROUGH OF WALTHAM FOREST,2022862455,"232,821.00"
Department for Work and Pensions,Employment Programmes,14-Oct-11,RESIDENTIAL TRAINING,COO,QUEEN ELIZABETHS FOUNDATION TRAINING COLLEGE,2022860473,"232,726.68"
Department for Work and Pensions,Housing Benefits,14-Oct-11,Housing Benefit Admin,COO,WIGAN BOROUGH COUNCIL,2022862624,"231,937.00"
Department for Work and Pensions,Corporate,07-Oct-11,COMPUTER SERVICES,CIT,ACCENTURE,2022774174,"230,927.71"
Department for Work and Pensions,Housing Benefits,14-Oct-11,Housing Benefit Admin,COO,WILTSHIRE COUNCIL,2022862625,"229,642.00"
Department for Work and Pensions,Employment Programmes,25-Oct-11,FND,COO,SKILLS DEVELOPMENT,2022953437,"228,600.00"
Department for Work and Pensions,Corporate,21-Oct-11,EMPLOYMENT ZONES,Change PMU,THE FIVE LAMPS ORGANISATION,2022943865,"228,480.00"
Department for Work and Pensions,Employment Programmes,28-Oct-11,EP PROVIDER PAYMENT - NON-WORK PROGRAMME,COO,SHAW TRUST,2023026319,"227,067.12"
Department for Work and Pensions,Corporate,31-Oct-11,ACCOMMODATION,F&C,TELEREAL TRILLIUM,2023030020,"226,221.01"
Department for Work and Pensions,Corporate,21-Oct-11,COMPUTER SERVICES,CIT,TELEFONICA O2 UK LTD,2022943861,"224,992.86"
Department for Work and Pensions,Employment Programmes,28-Oct-11,EP PROVIDER PAYMENT - NON-WORK PROGRAMME,COO,SHAW TRUST,2023026319,"222,885.73"
Department for Work and Pensions,Corporate,21-Oct-11,COMPUTER SERVICES,CIT,DELL FINANCIAL SERVICES,2022941249,"222,774.53"
Department for Work and Pensions,Corporate,07-Oct-11,AOS CONTRACTED OUT SERVICES,F&C,BALFOUR BEATTY WORKPLACE LTD,2022774237,"221,871.30"
Department for Work and Pensions,Housing Benefits,14-Oct-11,Housing Benefit Admin,COO,DUDLEY METROPOLITAN BOROUGH COUNCIL,2022862353,"221,667.00"
Department for Work and Pensions,European Social Fund,18-Oct-11,ESF Expenditure,STR,LOCAL AUTHORITIES IN THE EAST MIDLANDS,5000000763,"221,585.00"
Department for Work and Pensions,Corporate,27-Oct-11,OTHER PROJECTS,STR,BBC,2023018629,"221,554.67"
Department for Work and Pensions,Corporate,18-Oct-11,EMPLOYMENT ZONES,Change PMU,POLLOK CREDIT UNION,2022869804,"220,200.00"
Department for Work and Pensions,Housing Benefits,14-Oct-11,Housing Benefit Admin,COO,STOKE ON TRENT CITY COUNCIL,2022862575,"219,935.00"
Department for Work and Pensions,"Pension, Disability Carers Services",07-Oct-11,CONTRACTED OUT OFFICE SERVICES,COO,BALFOUR BEATTY WORKPLACE LTD,2022774237,"219,064.91"
Department for Work and Pensions,Employment Programmes,28-Oct-11,EP PROVIDER PAYMENT - NON-WORK PROGRAMME,COO,WORKING LINKS,2023026464,"218,037.24"
Department for Work and Pensions,Housing Benefits,14-Oct-11,Housing Benefit Admin,COO,BOLTON METROPOLITAN BOROUGH COUNCIL,2022862285,"217,405.00"
Department for Work and Pensions,Housing Benefits,14-Oct-11,Housing Benefit Admin,COO,SEFTON METROPOLITAN BOROUGH COUNCIL,2022862537,"216,843.00"
Department for Work and Pensions,Housing Benefits,14-Oct-11,Housing Benefit Admin,COO,NORTHUMBERLAND COUNCIL,2022862495,"212,210.00"
Department for Work and Pensions,Employment Programmes,28-Oct-11,EP PROVIDER PAYMENT - NON-WORK PROGRAMME,COO,SHAW TRUST,2023026319,"210,757.09"
Department for Work and Pensions,"Pension, Disability Carers Services",18-Oct-11,MEDICAL SERVICES,COO,ATOS HEALTHCARE,2022866939,"210,233.47"
Department for Work and Pensions,Corporate,05-Oct-11,PAYMENTS TO CSAS,HRD,ATOS HEALTHCARE,2022712400,"208,808.46"
Department for Work and Pensions,Employment Programmes,28-Oct-11,EP PROVIDER PAYMENT - NON-WORK PROGRAMME,COO,MOMENTUM SCOTLAND,2023025892,"208,420.68"
Department for Work and Pensions,"Pension, Disability Carers Services",31-Oct-11,ACCOMMODATION,COO,TELEREAL TRILLIUM,2023030024,"207,035.23"
Department for Work and Pensions,Jobcentre Plus,04-Oct-11,EU PROGRAMMES,COO,AVANTA ENTERPRISE LTD,2022699760,"206,856.00"
Department for Work and Pensions,Employment Programmes,28-Oct-11,EP PROVIDER PAYMENT - NON-WORK PROGRAMME,COO,SHAW TRUST,2023026319,"206,652.10"
Department for Work and Pensions,Corporate,18-Oct-11,MISCELLANEOUS EXPENDITURE,STR,OFFICE FOR NATIONAL STATISTICS,2022869679,"206,250.00"
Department for Work and Pensions,Employment Programmes,19-Oct-11,EMPLOYMENT INITIATIVES,COO,REED IN PARTNERSHIP HACKNEY LTD,2022921013,"204,700.00"
Department for Work and Pensions,Jobcentre Plus,18-Oct-11,APPS DEV,COO,HP ENTERPRISE SERVICES UK LTD,2022868574,"204,570.96"
Department for Work and Pensions,Employment Programmes,28-Oct-11,EP PROVIDER PAYMENT - NON-WORK PROGRAMME,COO,SHAW TRUST,2023026319,"203,538.94"
Department for Work and Pensions,Jobcentre Plus,31-Oct-11,MEDICAL SERVICES,Change PMU,ATOS HEALTHCARE,2023027736,"203,399.39"
Department for Work and Pensions,Housing Benefits,14-Oct-11,Housing Benefit Admin,COO,PLYMOUTH CITY COUNCIL,2022862507,"202,462.00"
Department for Work and Pensions,Housing Benefits,14-Oct-11,Housing Benefit Admin,COO,LONDON BOROUGH OF HOUNSLOW,2022862443,"201,896.00"
Department for Work and Pensions,Employment Programmes,28-Oct-11,EP PROVIDER PAYMENT - NON-WORK PROGRAMME,COO,SHAW TRUST,2023026319,"201,564.75"
Department for Work and Pensions,Housing Benefits,14-Oct-11,Housing Benefit Admin,COO,LONDON BOROUGH OF HILLINGDON,2022862442,"201,509.00"
Department for Work and Pensions,Corporate,14-Oct-11,TRADE DEBTORS,Excluded,TELEREAL TRILLIUM,2022860792,"200,947.30"
Department for Work and Pensions,European Social Fund,04-Oct-11,ESF Expenditure,STR,ESFD DWP POLICY TEAM,5000000731,"200,868.00"
Department for Work and Pensions,Employment Programmes,25-Oct-11,Financial Assets,COO,THE FIVE LAMPS ORGANISATION,2022953581,"200,000.00"
Department for Work and Pensions,Corporate,17-Oct-11,APPS DEV,Change PMU,HP ENTERPRISE SERVICES UK LTD,2022864834,"196,974.35"
Department for Work and Pensions,Housing Benefits,14-Oct-11,Housing Benefit Admin,COO,ROTHERHAM BOROUGH COUNCIL,2022862524,"196,790.00"
Department for Work and Pensions,Jobcentre Plus,20-Oct-11,Accommodation Costs,COO,COMPANIES HOUSE,2022940792,"196,757.36"
Department for Work and Pensions,Employment Programmes,28-Oct-11,EP PROVIDER PAYMENT - NON-WORK PROGRAMME,COO,SHAW TRUST,2023026319,"196,103.17"
Department for Work and Pensions,European Social Fund,11-Oct-11,ESF Expenditure,STR,TRIBAL EDUCATION,5000000750,"196,052.00"
Department for Work and Pensions,Corporate,17-Oct-11,IS/IT,CIT,HP ENTERPRISE SERVICES UK LTD,2022864834,"195,415.99"
Department for Work and Pensions,Employment Programmes,28-Oct-11,EP PROVIDER PAYMENT - NON-WORK PROGRAMME,COO,SHAW TRUST,2023026319,"194,319.23"
Department for Work and Pensions,Housing Benefits,14-Oct-11,Housing Benefit Admin,COO,EAST RIDING OF YORKSHIRE BOROUGH COUNCIL,2022862368,"191,497.00"
Department for Work and Pensions,Housing Benefits,14-Oct-11,Housing Benefit Admin,COO,CHESHIRE WEST & CHESTER COUNCIL,2022862320,"191,385.00"
Department for Work and Pensions,Housing Benefits,14-Oct-11,Housing Benefit Admin,COO,MEDWAY TOWNS COUNCIL,2022862463,"191,188.00"
Department for Work and Pensions,Housing Benefits,14-Oct-11,Housing Benefit Admin,COO,TAMESIDE BOROUGH COUNCIL,2022862584,"191,093.00"
Department for Work and Pensions,Housing Benefits,14-Oct-11,Housing Benefit Admin,COO,LONDON BOROUGH OF HAMMERSMITH & FULHAM,2022862438,"190,663.00"
Department for Work and Pensions,Employment Programmes,28-Oct-11,EP PROVIDER PAYMENT - NON-WORK PROGRAMME,COO,WORKING LINKS,2023026464,"189,747.84"
Department for Work and Pensions,Housing Benefits,14-Oct-11,Housing Benefit Admin,COO,SOUTHAMPTON CITY COUNCIL,2022862563,"187,775.00"
Department for Work and Pensions,Housing Benefits,14-Oct-11,Housing Benefit Admin,COO,PORTSMOUTH CITY COUNCIL,2022862509,"187,378.00"
Department for Work and Pensions,Housing Benefits,14-Oct-11,Housing Benefit Admin,COO,RHONDDA CYNON TAFF COUNTY BOROUGH COUNCIL,2022862517,"186,767.00"
Department for Work and Pensions,Corporate,18-Oct-11,APPS DEV,CIT,HP ENTERPRISE SERVICES UK LTD,2022868574,"185,810.59"
Department for Work and Pensions,Corporate,20-Oct-11,PRINTING STATIONERY IT CONSUMABLES,F&C,XEROX UK LTD 3W,2022938625,"185,649.02"
Department for Work and Pensions,Jobcentre Plus,31-Oct-11,COMPUTER SERVICES,Change PMU,ACCENTURE UK LTD,2023027710,"184,263.19"
Department for Work and Pensions,Housing Benefits,14-Oct-11,Housing Benefit Admin,COO,CHESHIRE EAST BOROUGH COUNCIL,2022862319,"184,198.00"
Department for Work and Pensions,Housing Benefits,14-Oct-11,Housing Benefit Admin,COO,STOCKPORT BOROUGH COUNCIL,2022862573,"182,624.00"
Department for Work and Pensions,Housing Benefits,14-Oct-11,Housing Benefit Admin,COO,LONDON BOROUGH OF HARROW,2022862440,"181,018.00"
Department for Work and Pensions,Housing Benefits,14-Oct-11,Housing Benefit Admin,COO,BARNSLEY BOROUGH COUNCIL,2022862272,"180,115.00"
Department for Work and Pensions,Employment Programmes,28-Oct-11,EP PROVIDER PAYMENT - NON-WORK PROGRAMME,COO,SHAW TRUST,2023026319,"180,028.20"
Department for Work and Pensions,Employment Programmes,11-Oct-11,YOUNG PERSON'S GUARANTEE,COO,IXION HOLDINGS LTD,2022785680,"179,700.00"
Department for Work and Pensions,Employment Programmes,20-Oct-11,RESIDENTIAL TRAINING,COO,RNCB ROYAL NATIONAL COLLEGE FOR BLIND,2022938191,"179,238.76"
Department for Work and Pensions,Employment Programmes,28-Oct-11,EP PROVIDER PAYMENT - NON-WORK PROGRAMME,COO,CDG WISE ABILITY LTD,2023024303,"178,665.23"
Department for Work and Pensions,Housing Benefits,14-Oct-11,Housing Benefit Admin,COO,MILTON KEYNES BOROUGH COUNCIL,2022862471,"178,651.00"
Department for Work and Pensions,Corporate,20-Oct-11,COMPUTER SERVICES,Change PMU,ACCENTURE UK LTD,2022935359,"176,641.81"
Department for Work and Pensions,Housing Benefits,14-Oct-11,Housing Benefit Admin,COO,SWANSEA CITY COUNCIL,2022862582,"176,582.00"
Department for Work and Pensions,Jobcentre Plus,17-Oct-11,APPS DEV,Change PMU,HP ENTERPRISE SERVICES UK LTD,2022864834,"176,174.28"
Department for Work and Pensions,Corporate,14-Oct-11,ACCOMMODATION,F&C,TELEREAL TRILLIUM,2022860792,"175,528.92"
Department for Work and Pensions,Housing Benefits,14-Oct-11,Housing Benefit Admin,COO,DERBY CITY COUNCIL,2022862349,"175,281.00"
Department for Work and Pensions,Housing Benefits,14-Oct-11,Housing Benefit Admin,COO,ROCHDALE BOROUGH COUNCIL,2022862520,"174,891.00"
Department for Work and Pensions,Housing Benefits,14-Oct-11,Housing Benefit Admin,COO,OLDHAM BOROUGH COUNCIL,2022862500,"174,833.00"
Department for Work and Pensions,Corporate,17-Oct-11,APPS DEV,CIT,HP ENTERPRISE SERVICES UK LTD,2022864834,"174,734.44"
Department for Work and Pensions,Employment Programmes,28-Oct-11,EP PROVIDER PAYMENT - NON-WORK PROGRAMME,COO,INGEUS UK LTD,2023025389,"174,468.36"
Department for Work and Pensions,Housing Benefits,14-Oct-11,Housing Benefit Admin,COO,LONDON BOROUGH OF KENSINGTON & CHELSEA,2022862445,"173,743.00"
Department for Work and Pensions,Jobcentre Plus,20-Oct-11,EMPLOYMENT PROGRAMMES,Excluded,CAREERS DEVELOPMENT GROUP LTD,2022935604,"173,164.67"
Department for Work and Pensions,"Pension, Disability Carers Services",24-Oct-11,COMPUTER SERVICES,Change PMU,HM REVENUE & CUSTOMS,2002848,"172,814.25"
Department for Work and Pensions,European Social Fund,11-Oct-11,ESF Expenditure,STR,NATIONAL INSTITUTE OF ADULT CONTINUING EDUCATION NIACE,5000000746,"172,610.00"
Department for Work and Pensions,Corporate,07-Oct-11,COMPUTER SERVICES,CIT,VODAFONE LTD,2022776895,"172,411.51"
Department for Work and Pensions,European Social Fund,27-Oct-11,ESF Expenditure,STR,CORNWALL COUNTY COUNCIL,5000000771,"172,235.00"
Department for Work and Pensions,Housing Benefits,14-Oct-11,Housing Benefit Admin,COO,LONDON BOROUGH OF BROMLEY,2022862433,"171,631.00"
Department for Work and Pensions,"Pension, Disability Carers Services",20-Oct-11,COMPUTER SERVICES,COO,LAND REGISTRY,2022937686,"170,943.00"
Department for Work and Pensions,Housing Benefits,14-Oct-11,Housing Benefit Admin,COO,SHROPSHIRE COUNCIL,2022862543,"170,683.00"
Department for Work and Pensions,Housing Benefits,14-Oct-11,Housing Benefit Admin,COO,LONDON BOROUGH OF BARKING & DAGENHAM,2022862429,"169,473.00"
Department for Work and Pensions,Housing Benefits,14-Oct-11,Housing Benefit Admin,COO,KNOWSLEY BOROUGH COUNCIL,2022862421,"167,742.00"
Department for Work and Pensions,Housing Benefits,14-Oct-11,Housing Benefit Admin,COO,GATESHEAD BOROUGH COUNCIL,2022862387,"167,075.00"
Department for Work and Pensions,Housing Benefits,14-Oct-11,Housing Benefit Admin,COO,LONDON BOROUGH OF REDBRIDGE,2022862450,"164,618.00"
Department for Work and Pensions,Housing Benefits,14-Oct-11,Housing Benefit Admin,COO,BLACKPOOL BOROUGH COUNCIL,2022862282,"162,953.00"
Department for Work and Pensions,Employment Programmes,04-Oct-11,YOUNG PERSON'S GUARANTEE,COO,TNG LTD,2022706122,"162,184.00"
Department for Work and Pensions,Employment Programmes,28-Oct-11,EP PROVIDER PAYMENT - NON-WORK PROGRAMME,COO,SHAW TRUST,2023026319,"161,662.17"
Department for Work and Pensions,Jobcentre Plus,17-Oct-11,APPS DEV,COO,HP ENTERPRISE SERVICES UK LTD,2022864834,"161,558.04"
Department for Work and Pensions,Jobcentre Plus,17-Oct-11,Accommodation Costs,COO,FORESTRY COMMISSION,2022864755,"161,420.14"
Department for Work and Pensions,Employment Programmes,18-Oct-11,EMPLOYMENT INITIATIVES,COO,WORKING LINKS,2022870611,"160,900.00"
Department for Work and Pensions,Employment Programmes,28-Oct-11,EP PROVIDER PAYMENT - NON-WORK PROGRAMME,COO,WORKING LINKS,2023026464,"160,278.42"
Department for Work and Pensions,Employment Programmes,28-Oct-11,EP PROVIDER PAYMENT - NON-WORK PROGRAMME,COO,SHAW TRUST,2023026319,"159,909.68"
Department for Work and Pensions,European Social Fund,14-Oct-11,ESF Expenditure,STR,CENTRAL BEDFORDSHIRE DISTRICT COUNCIL,5000000757,"159,505.00"
Department for Work and Pensions,Housing Benefits,14-Oct-11,Housing Benefit Admin,COO,BOURNEMOUTH BOROUGH COUNCIL,2022862290,"157,665.00"
Department for Work and Pensions,Housing Benefits,14-Oct-11,Housing Benefit Admin,COO,MIDDLESBROUGH COUNCIL,2022862469,"157,582.00"
Department for Work and Pensions,Housing Benefits,14-Oct-11,Housing Benefit Admin,COO,CALDERDALE BOROUGH COUNCIL,2022862306,"157,069.00"
Department for Work and Pensions,"Pension, Disability Carers Services",27-Oct-11,MEDICAL SERVICES,COO,ATOS HEALTHCARE,2023018560,"156,789.14"
Department for Work and Pensions,Housing Benefits,14-Oct-11,Housing Benefit Admin,COO,NORTH TYNESIDE BOROUGH COUNCIL,2022862491,"154,947.00"
Department for Work and Pensions,Housing Benefits,14-Oct-11,Housing Benefit Admin,COO,RENFREWSHIRE COUNCIL,2022862516,"154,503.00"
Department for Work and Pensions,Housing Benefits,14-Oct-11,Housing Benefit Admin,COO,PETERBOROUGH CITY COUNCIL,2022862506,"154,406.00"
Department for Work and Pensions,Housing Benefits,14-Oct-11,Housing Benefit Admin,COO,DUNDEE CITY COUNCIL,2022862355,"153,546.00"
Department for Work and Pensions,Employment Programmes,04-Oct-11,YOUNG PERSON'S GUARANTEE,COO,THE INTRAINING GROUP,2022706109,"153,267.00"
Department for Work and Pensions,Corporate,18-Oct-11,APPS DEV,Change PMU,HP ENTERPRISE SERVICES UK LTD,2022868574,"153,219.72"
Department for Work and Pensions,Housing Benefits,14-Oct-11,Housing Benefit Admin,COO,ST HELENS BOROUGH COUNCIL,2022862568,"153,140.00"
Department for Work and Pensions,Housing Benefits,14-Oct-11,Housing Benefit Admin,COO,NORTHAMPTON BOROUGH COUNCIL,2022862494,"152,650.00"
Department for Work and Pensions,Housing Benefits,14-Oct-11,Housing Benefit Admin,COO,NORTH EAST LINCOLNSHIRE COUNCIL,2022862484,"152,348.00"
Department for Work and Pensions,Corporate,10-Oct-11,COMPUTER SERVICES,CIT,DETICA LTD,2022778799,"151,713.00"
Department for Work and Pensions,Corporate,14-Oct-11,OTHER GOODS AND SERVICES,Change PMU,DLA PIPER UK,2022858124,"151,110.82"
Department for Work and Pensions,Employment Programmes,04-Oct-11,YOUNG PERSON'S GUARANTEE,COO,THE INTRAINING GROUP,2022706109,"149,111.00"
Department for Work and Pensions,Employment Programmes,28-Oct-11,EP PROVIDER PAYMENT - NON-WORK PROGRAMME,COO,SHAW TRUST,2023026319,"146,848.02"
Department for Work and Pensions,Housing Benefits,14-Oct-11,Housing Benefit Admin,COO,STOCKTON  BOROUGH COUNCIL,2022862574,"146,783.00"
Department for Work and Pensions,Housing Benefits,14-Oct-11,Housing Benefit Admin,COO,LUTON BOROUGH COUNCIL,2022862457,"146,527.00"
Department for Work and Pensions,Housing Benefits,14-Oct-11,Housing Benefit Admin,COO,HIGHLAND COUNCIL,2022862408,"146,382.00"
Department for Work and Pensions,Employment Programmes,28-Oct-11,EP PROVIDER PAYMENT - NON-WORK PROGRAMME,COO,WORKING LINKS,2023026464,"146,316.09"
Department for Work and Pensions,Housing Benefits,14-Oct-11,Housing Benefit Admin,COO,NORTH SOMERSET COUNCIL,2022862490,"146,237.00"
Department for Work and Pensions,Employment Programmes,04-Oct-11,YOUNG PERSON'S GUARANTEE,COO,THE INTRAINING GROUP,2022706109,"145,200.00"
Department for Work and Pensions,Housing Benefits,14-Oct-11,Housing Benefit Admin,COO,THANET DISTRICT COUNCIL,2022862592,"143,795.00"
Department for Work and Pensions,Housing Benefits,14-Oct-11,Housing Benefit Admin,COO,SOUTHEND ON SEA BOROUGH COUNCIL,2022862564,"143,761.00"
Department for Work and Pensions,Employment Programmes,18-Oct-11,EMPLOYMENT INITIATIVES,COO,PERTEMPS,2022869796,"143,698.00"
Department for Work and Pensions,Employment Programmes,19-Oct-11,EMPLOYMENT INITIATIVES,COO,REED IN PARTNERSHIP HACKNEY LTD,2022921013,"143,458.00"
Department for Work and Pensions,Corporate,25-Oct-11,Accommodation Costs,F&C,VALUATION OFFICE AGENCY,2002853,"142,430.85"
Department for Work and Pensions,Jobcentre Plus,20-Oct-11,EMPLOYMENT PROGRAMMES,Excluded,INBIZ LTD,2022937299,"141,550.14"
Department for Work and Pensions,Housing Benefits,14-Oct-11,Housing Benefit Admin,COO,TORBAY  COUNCIL,2022862597,"140,673.00"
Department for Work and Pensions,Housing Benefits,14-Oct-11,Housing Benefit Admin,COO,LONDON BOROUGH OF HAVERING,2022862441,"139,103.00"
Department for Work and Pensions,Corporate,31-Oct-11,ACCOMMODATION,F&C,TELEREAL TRILLIUM,2023030020,"139,076.93"
Department for Work and Pensions,Housing Benefits,14-Oct-11,Housing Benefit Admin,COO,LONDON BOROUGH OF BEXLEY,2022862431,"138,794.00"
Department for Work and Pensions,Housing Benefits,14-Oct-11,Housing Benefit Admin,COO,SOUTH TYNESIDE METROPOLITAN BOROUGH COUNCIL,2022862562,"138,217.00"
Department for Work and Pensions,Housing Benefits,14-Oct-11,Housing Benefit Admin,COO,SOUTH GLOUCESTERSHIRE COUNCIL,2022862550,"137,635.00"
Department for Work and Pensions,"Pension, Disability Carers Services",10-Oct-11,TELEPHONE AND POSTAGE,COO,ROYAL MAIL GROUP PLC,2022781309,"137,284.40"
Department for Work and Pensions,Corporate,17-Oct-11,EMPLOYMENT ZONES,Change PMU,MY HOME FINANCE,2022865218,"136,800.00"
Department for Work and Pensions,Housing Benefits,14-Oct-11,Housing Benefit Admin,COO,TRAFFORD BOROUGH COUNCIL,2022862600,"136,601.00"
Department for Work and Pensions,Employment Programmes,12-Oct-11,EP PROVIDER PAYMENT - NON-WORK PROGRAMME,COO,SEETEC BUSINESS TECHNOLOGY CENTRE LTD,2022845622,"135,683.00"
Department for Work and Pensions,Housing Benefits,14-Oct-11,Housing Benefit Admin,COO,BOROUGH OF TELFORD & WREKIN COUNCIL,2022862287,"134,540.00"
Department for Work and Pensions,Housing Benefits,14-Oct-11,Housing Benefit Admin,COO,BASILDON DISTRICT COUNCIL,2022862274,"133,613.00"
Department for Work and Pensions,Housing Benefits,14-Oct-11,Housing Benefit Admin,COO,LONDON BOROUGH OF MERTON,2022862448,"133,101.00"
Department for Work and Pensions,Employment Programmes,19-Oct-11,EMPLOYMENT INITIATIVES,COO,REED IN PARTNERSHIP HACKNEY LTD,2022921013,"133,044.00"
Department for Work and Pensions,Housing Benefits,14-Oct-11,Housing Benefit Admin,COO,BURY METROPOLITAN BOROUGH COUNCIL,2022862304,"133,002.00"
Department for Work and Pensions,Housing Benefits,14-Oct-11,Housing Benefit Admin,COO,SWINDON BOROUGH COUNCIL,2022862583,"131,877.00"
Department for Work and Pensions,Housing Benefits,31-Oct-11,PROFESSIONAL FEES,COO,EXPERIAN LTD,2023029052,"131,850.00"
Department for Work and Pensions,Employment Programmes,04-Oct-11,YOUNG PERSON'S GUARANTEE,COO,TNG LTD,2022706122,"131,843.00"
Department for Work and Pensions,Corporate,17-Oct-11,EMPLOYMENT ZONES,Change PMU,EAST LANCS MONEYLINE,2022864728,"131,460.00"
Department for Work and Pensions,Housing Benefits,14-Oct-11,Housing Benefit Admin,COO,NORTH AYRSHIRE COUNCIL,2022862480,"131,001.00"
Department for Work and Pensions,Housing Benefits,14-Oct-11,Housing Benefit Admin,COO,BLACKBURN BOROUGH COUNCIL,2022862281,"130,093.00"
Department for Work and Pensions,Employment Programmes,13-Oct-11,RESIDENTIAL TRAINING,COO,PORTLAND COLLEGE,2022855304,"129,090.75"
Department for Work and Pensions,Housing Benefits,14-Oct-11,Housing Benefit Admin,COO,CAERPHILLY COUNTY BOROUGH COUNCIL,2022862305,"129,074.00"
Department for Work and Pensions,Housing Benefits,14-Oct-11,Housing Benefit Admin,COO,LONDON BOROUGH OF SUTTON,2022862453,"129,052.00"
Department for Work and Pensions,Corporate,04-Oct-11,STAFF COSTS,HRD,RIGHT CORECARE,2022705454,"127,195.00"
Department for Work and Pensions,European Social Fund,27-Oct-11,ESF Expenditure,STR,TRURO & PENWITH COLLEGE,5000000773,"127,107.00"
Department for Work and Pensions,Jobcentre Plus,10-Oct-11,ACCOMMODATION COSTS,Change PMU,TELEREAL TRILLIUM,2022781665,"126,631.79"
Department for Work and Pensions,Housing Benefits,14-Oct-11,Housing Benefit Admin,COO,REDCAR & CLEVELAND BOROUGH  COUNCIL,2022862514,"126,622.00"
Department for Work and Pensions,Housing Benefits,14-Oct-11,Housing Benefit Admin,COO,NORWICH CITY COUNCIL,2022862496,"126,542.00"
Department for Work and Pensions,Housing Benefits,14-Oct-11,Housing Benefit Admin,COO,TENDRING DISTRICT COUNCIL,2022862589,"125,983.00"
Department for Work and Pensions,Housing Benefits,14-Oct-11,Housing Benefit Admin,COO,CENTRAL BEDFORDSHIRE DISTRICT COUNCIL,2022862313,"125,868.00"
Department for Work and Pensions,Employment Programmes,12-Oct-11,EP PROVIDER PAYMENT - NON-WORK PROGRAMME,COO,TNG LTD,2022848269,"125,573.00"
Department for Work and Pensions,Housing Benefits,14-Oct-11,Housing Benefit Admin,COO,ABERDEEN CITY COUNCIL,2022862260,"125,393.00"
Department for Work and Pensions,Employment Programmes,11-Oct-11,YOUNG PERSON'S GUARANTEE,COO,LONDON BOROUGH OF HACKNEY,2022786370,"125,250.00"
Department for Work and Pensions,Corporate,04-Oct-11,COMPUTER SERVICES,CIT,ATOS ORIGIN IT SERVICES UK LTD,2022699755,"124,388.36"
Department for Work and Pensions,Employment Programmes,14-Oct-11,RESIDENTIAL TRAINING,COO,DONCASTER DEAF TRUST,2022858126,"124,111.22"
Department for Work and Pensions,Housing Benefits,14-Oct-11,Housing Benefit Admin,COO,WEST LOTHIAN COUNCIL,2022862620,"123,574.00"
Department for Work and Pensions,Housing Benefits,14-Oct-11,Housing Benefit Admin,COO,NORTH LINCOLNSHIRE COUNCIL,2022862488,"122,277.00"
Department for Work and Pensions,"Pension, Disability Carers Services",14-Oct-11,ACCOMMODATION,COO,TELEREAL TRILLIUM,2022860792,"121,764.53"
Department for Work and Pensions,Corporate,31-Oct-11,ACCOMMODATION,F&C,TELEREAL TRILLIUM,2023030021,"121,586.42"
Department for Work and Pensions,Housing Benefits,14-Oct-11,Housing Benefit Admin,COO,CARMARTHENSHIRE COUNTY COUNCIL,2022862311,"121,563.00"
Department for Work and Pensions,Housing Benefits,14-Oct-11,Housing Benefit Admin,COO,ISLE OF WIGHT COUNTY COUNCIL,2022862416,"121,156.00"
Department for Work and Pensions,Employment Programmes,12-Oct-11,EP PROVIDER PAYMENT - NON-WORK PROGRAMME,COO,PINNACLE PEOPLE,2022835656,"120,314.00"
Department for Work and Pensions,Housing Benefits,14-Oct-11,Housing Benefit Admin,COO,DUMFRIES & GALLOWAY COUNCIL,2022862354,"120,266.00"
Department for Work and Pensions,Corporate,10-Oct-11,COMPUTER SERVICES,F&C,FUJITSU SERVICES LTD,2022780120,"120,228.88"
Department for Work and Pensions,Housing Benefits,14-Oct-11,Housing Benefit Admin,COO,SOLIHULL METROPOLITAN BOROUGH COUNCIL,2022862545,"117,560.00"
Department for Work and Pensions,Jobcentre Plus,31-Oct-11,ACCOMMODATION,COO,TELEREAL TRILLIUM,2023030024,"117,544.01"
Department for Work and Pensions,Housing Benefits,14-Oct-11,Housing Benefit Admin,COO,BEDFORD BOROUGH COUNCIL,2022862278,"116,749.00"
Department for Work and Pensions,Corporate,11-Oct-11,Other Administration Costs,STR,SPECIALIST SCHOOLS & ACADEMIES TRUST,1004982,"116,662.00"
Department for Work and Pensions,Corporate,31-Oct-11,COMPUTER SERVICES,CIT,ATOS ORIGIN IT SERVICES UK LTD,2023027737,"116,104.05"
Department for Work and Pensions,Employment Programmes,21-Oct-11,YOUNG PERSON'S GUARANTEE,COO,SWINDON BOROUGH COUNCIL,2022943805,"115,500.00"
Department for Work and Pensions,Corporate,18-Oct-11,COMPUTER SERVICES,CIT,ACCENTURE,2022866914,"115,393.95"
Department for Work and Pensions,Housing Benefits,14-Oct-11,Housing Benefit Admin,COO,READING BOROUGH COUNCIL,2022862513,"115,026.00"
Department for Work and Pensions,Housing Benefits,14-Oct-11,Housing Benefit Admin,COO,WARRINGTON BOROUGH COUNCIL,2022862607,"114,286.00"
Department for Work and Pensions,Corporate,18-Oct-11,APPS DEV,CIT,HP ENTERPRISE SERVICES UK LTD,2022868574,"113,148.41"
Department for Work and Pensions,Jobcentre Plus,18-Oct-11,COMPUTER SERVICES,Change PMU,ACCENTURE UK LTD,2022866915,"112,915.41"
Department for Work and Pensions,Corporate,07-Oct-11,COMPUTER SERVICES,CIT,ORANGE PCS LTD,2022776324,"112,554.16"
Department for Work and Pensions,Housing Benefits,14-Oct-11,Housing Benefit Admin,COO,THURROCK BOROUGH COUNCIL,2022862595,"112,469.00"
Department for Work and Pensions,Corporate,31-Oct-11,ACCOMMODATION,F&C,TELEREAL TRILLIUM,2023030020,"112,444.23"
Department for Work and Pensions,Employment Programmes,04-Oct-11,YOUNG PERSON'S GUARANTEE,COO,SARINA RUSSO JOB ACCESS GB PTY LTD,2022705900,"112,444.00"
Department for Work and Pensions,Housing Benefits,14-Oct-11,Housing Benefit Admin,COO,SLOUGH BOROUGH COUNCIL,2022862544,"112,375.00"
Department for Work and Pensions,Housing Benefits,14-Oct-11,Housing Benefit Admin,COO,HALTON BOROUGH COUNCIL,2022862396,"112,183.00"
Department for Work and Pensions,Corporate,31-Oct-11,ACCOMMODATION,F&C,TELEREAL TRILLIUM,2023030020,"112,054.84"
Department for Work and Pensions,Corporate,20-Oct-11,STAFF COSTS,HRD,ASE CORPORATE EYECARE LTD,2022935389,"112,045.97"
Department for Work and Pensions,"Pension, Disability Carers Services",24-Oct-11,AOS CONTRACTED OUT SERVICES,COO,XEROX UK LTD 3W,2022948186,"111,872.21"
Department for Work and Pensions,Housing Benefits,14-Oct-11,Housing Benefit Admin,COO,NEATH PORT TALBOT COUNTY BOROUGH COUNCIL,2022862474,"111,346.00"
Department for Work and Pensions,Employment Programmes,24-Oct-11,YOUNG PERSON'S GUARANTEE,COO,SCOTTISH COUNCIL FOR VOLUNTARY ORGANISATIONS,2022948001,"111,300.00"
Department for Work and Pensions,European Social Fund,31-Oct-11,ESF Expenditure,STR,SOCIAL ENTERPRISE NETWORK LTD,5000000776,"110,884.00"
Department for Work and Pensions,Housing Benefits,14-Oct-11,Housing Benefit Admin,COO,ABERDEENSHIRE COUNCIL,2022862261,"110,675.00"
Department for Work and Pensions,Employment Programmes,12-Oct-11,EP PROVIDER PAYMENT - NON-WORK PROGRAMME,COO,REED IN PARTNERSHIP LTD,2022838241,"110,011.00"
Department for Work and Pensions,Housing Benefits,14-Oct-11,Housing Benefit Admin,COO,FALKIRK DISTRICT COUNCIL,2022862379,"109,810.00"
Department for Work and Pensions,Housing Benefits,14-Oct-11,Housing Benefit Admin,COO,NEWPORT CITY COUNCIL,2022862479,"109,795.00"
Department for Work and Pensions,Employment Programmes,04-Oct-11,YOUNG PERSON'S GUARANTEE,COO,SARINA RUSSO JOB ACCESS GB PTY LTD,2022705900,"109,778.00"
Department for Work and Pensions,Employment Programmes,13-Oct-11,RESIDENTIAL TRAINING,COO,QUEEN ALEXANDRA COLLEGE,2022855314,"109,663.40"
Department for Work and Pensions,Employment Programmes,19-Oct-11,JSP ESF DEL P COSTS,COO,WORKING LINKS,2022932498,"109,340.00"
Department for Work and Pensions,Jobcentre Plus,17-Oct-11,APPS DEV,CIT,HP ENTERPRISE SERVICES UK LTD,2022864834,"108,045.68"
Department for Work and Pensions,Corporate,27-Oct-11,COMPUTER SERVICES,Change PMU,ACCENTURE UK LTD,2023018531,"107,812.35"
Department for Work and Pensions,Housing Benefits,14-Oct-11,Housing Benefit Admin,COO,EAST LINDSEY DISTRICT COUNCIL,2022862364,"107,744.00"
Department for Work and Pensions,Housing Benefits,14-Oct-11,Housing Benefit Admin,COO,HASTINGS BOROUGH COUNCIL,2022862403,"107,349.00"
Department for Work and Pensions,Employment Programmes,04-Oct-11,YOUNG PERSON'S GUARANTEE,COO,TNG LTD,2022706122,"107,114.00"
Department for Work and Pensions,Employment Programmes,12-Oct-11,EP PROVIDER PAYMENT - NON-WORK PROGRAMME,COO,PERTEMPS,2022835653,"106,495.00"
Department for Work and Pensions,Employment Programmes,12-Oct-11,EP PROVIDER PAYMENT - NON-WORK PROGRAMME,COO,PINNACLE PEOPLE,2022835656,"106,372.00"
Department for Work and Pensions,Corporate,10-Oct-11,COMPUTER SERVICES,F&C,FUJITSU SERVICES LTD,2022780121,"105,999.00"
Department for Work and Pensions,Corporate,31-Oct-11,ACCOMMODATION,F&C,TELEREAL TRILLIUM,2023030020,"105,779.55"
Department for Work and Pensions,Housing Benefits,14-Oct-11,Housing Benefit Admin,COO,EAST AYRSHIRE COUNCIL FINANCE DEPARTMENT,2022862357,"105,756.00"
Department for Work and Pensions,Housing Benefits,14-Oct-11,Housing Benefit Admin,COO,BRIDGEND COUNTY BOROUGH COUNCIL,2022862296,"105,740.00"
Department for Work and Pensions,Employment Programmes,19-Oct-11,EMPLOYMENT INITIATIVES,COO,INGEUS UK LTD,2022893859,"105,513.00"
Department for Work and Pensions,Employment Programmes,04-Oct-11,YOUNG PERSON'S GUARANTEE,COO,TBG LEARNING LTD,2022706094,"105,111.00"
Department for Work and Pensions,Employment Programmes,04-Oct-11,EP PROVIDER PAYMENT - WORK PROGRAMME,COO,INGEUS UK LTD,2022703673,"104,400.00"
Department for Work and Pensions,"Pension, Disability Carers Services",10-Oct-11,MEDICAL SERVICES,COO,ATOS HEALTHCARE,2022778405,"104,301.00"
Department for Work and Pensions,Housing Benefits,14-Oct-11,Housing Benefit Admin,COO,HARTLEPOOL BOROUGH COUNCIL,2022862402,"103,357.00"
Department for Work and Pensions,Housing Benefits,14-Oct-11,Housing Benefit Admin,COO,WEST DUNBARTONSHIRE COUNCIL,2022862617,"103,105.00"
Department for Work and Pensions,Corporate,18-Oct-11,GRANTS IN AID,STR,PENSION PROTECTION FUND,1004989,"103,000.00"
Department for Work and Pensions,Employment Programmes,04-Oct-11,YOUNG PERSON'S GUARANTEE,COO,TBG LEARNING LTD,2022706094,"102,667.00"
Department for Work and Pensions,Employment Programmes,31-Oct-11,Financial Assets,COO,EAST LANCS MONEYLINE,2023029033,"102,375.00"
Department for Work and Pensions,Housing Benefits,14-Oct-11,Housing Benefit Admin,COO,HEREFORDSHIRE COUNCIL,2022862405,"102,338.00"
Department for Work and Pensions,Housing Benefits,14-Oct-11,Housing Benefit Admin,COO,LONDON BOROUGH OF RICHMOND UPON THAMES,2022862451,"102,105.00"
Department for Work and Pensions,Housing Benefits,14-Oct-11,Housing Benefit Admin,COO,CITY OF YORK COUNCIL,2022862329,"101,543.00"
Department for Work and Pensions,Corporate,18-Oct-11,COMPUTER SERVICES,Change PMU,ACCENTURE UK LTD,2022866915,"100,887.14"
Department for Work and Pensions,Employment Programmes,04-Oct-11,YOUNG PERSON'S GUARANTEE,COO,GROUNDWORK UK,2022703499,"100,311.00"
Department for Work and Pensions,Housing Benefits,14-Oct-11,Housing Benefit Admin,COO,SCARBOROUGH BOROUGH COUNCIL,2022862534,"100,215.00"
Department for Work and Pensions,Housing Benefits,14-Oct-11,Housing Benefit Admin,COO,PRESTON BOROUGH COUNCIL,2022862511,"100,099.00"
Department for Work and Pensions,Jobcentre Plus,27-Oct-11,EMPLOYMENT PROGRAMMES,Excluded,BIRMINGHAM CHAMBER TRAINING,2023018645,"100,058.41"
Department for Work and Pensions,Corporate,06-Oct-11,GRANTS IN AID,STR,THE PENSIONS REGULATOR,1004978,"100,000.00"
Department for Work and Pensions,Jobcentre Plus,07-Oct-11,JOBCENTRE PLUS PATHWAYS TO WORK,COO,A4E LTD,2022774171,"99,943.82"
Department for Work and Pensions,Housing Benefits,14-Oct-11,Housing Benefit Admin,COO,BATH & NORTH EAST SOMERSET COUNCIL,2022862277,"99,037.00"
Department for Work and Pensions,Housing Benefits,14-Oct-11,Housing Benefit Admin,COO,ARUN DISTRICT COUNCIL,2022862267,"98,951.00"
Department for Work and Pensions,"Pension, Disability Carers Services",17-Oct-11,APPS DEV,CIT,HP ENTERPRISE SERVICES UK LTD,2022864834,"98,138.67"
Department for Work and Pensions,Housing Benefits,14-Oct-11,Housing Benefit Admin,COO,KINGS LYNN & WEST NORFOLK BOROUGH COUNCIL,2022862418,"97,628.00"
Department for Work and Pensions,Jobcentre Plus,14-Oct-11,EU PROGRAMMES,COO,WENTA,2022860880,"97,200.00"
Department for Work and Pensions,Jobcentre Plus,27-Oct-11,AOS CONTRACTED OUT SERVICES,COO,VERTEX DATA SCIENCE LTD,2023022163,"97,071.28"
Department for Work and Pensions,Corporate,11-Oct-11,PROFESSIONAL FEES,STR,SOCIAL POLICY RESEARCH UNIT,2022787473,"96,880.00"
Department for Work and Pensions,Housing Benefits,14-Oct-11,Housing Benefit Admin,COO,COLCHESTER BOROUGH COUNCIL,2022862331,"95,771.00"
Department for Work and Pensions,Housing Benefits,14-Oct-11,Housing Benefit Admin,COO,IPSWICH BOROUGH COUNCIL,2022862414,"95,545.00"
Department for Work and Pensions,European Social Fund,28-Oct-11,ESF Expenditure,STR,KNOWSLEY METROPOLITIAN BOROUGH COUNCIL,5000000774,"95,336.00"
Department for Work and Pensions,Housing Benefits,14-Oct-11,Housing Benefit Admin,COO,SOUTH SOMERSET DISTRICT COUNCIL,2022862560,"95,157.00"
Department for Work and Pensions,Employment Programmes,12-Oct-11,EP PROVIDER PAYMENT - NON-WORK PROGRAMME,COO,A4E LTD,2022793791,"95,028.00"
Department for Work and Pensions,Housing Benefits,14-Oct-11,Housing Benefit Admin,COO,SWALE BOROUGH COUNCIL,2022862581,"93,818.00"
Department for Work and Pensions,Jobcentre Plus,18-Oct-11,COMPUTER SERVICES,COO,STERIA,2022870381,"93,396.91"
Department for Work and Pensions,Housing Benefits,14-Oct-11,Housing Benefit Admin,COO,GLOUCESTER CITY COUNCIL,2022862389,"93,271.00"
Department for Work and Pensions,Housing Benefits,14-Oct-11,Housing Benefit Admin,COO,ROYAL BOROUGH OF KINGSTON UPON THAMES,2022862525,"92,853.00"
Department for Work and Pensions,Employment Programmes,04-Oct-11,EP PROVIDER PAYMENT - WORK PROGRAMME,COO,WORKING LINKS,2022706268,"92,800.00"
Department for Work and Pensions,Corporate,04-Oct-11,COMPUTER SERVICES,CIT,ATOS ORIGIN IT SERVICES UK LTD,2022699755,"92,124.00"
Department for Work and Pensions,European Social Fund,24-Oct-11,ESF Expenditure,STR,GROUNDWORK UK,5000000768,"91,656.00"
Department for Work and Pensions,Housing Benefits,14-Oct-11,Housing Benefit Admin,COO,GREAT YARMOUTH COUNCIL,2022862392,"91,238.00"
Department for Work and Pensions,Housing Benefits,14-Oct-11,Housing Benefit Admin,COO,BRAINTREE DISTRICT COUNCIL,2022862293,"91,224.00"
Department for Work and Pensions,"Pension, Disability Carers Services",17-Oct-11,APPS DEV,Change PMU,HP ENTERPRISE SERVICES UK LTD,2022864834,"90,764.79"
Department for Work and Pensions,Jobcentre Plus,18-Oct-11,APPS DEV,Change PMU,HP ENTERPRISE SERVICES UK LTD,2022868574,"90,225.57"
Department for Work and Pensions,Corporate,31-Oct-11,MISCELLANEOUS EXPENDITURE,PS,CENTRE FOR ECONOMIC & SOCIAL INCLUSION,2023027878,"89,928.00"
Department for Work and Pensions,Housing Benefits,14-Oct-11,Housing Benefit Admin,COO,WAVENEY DISTRICT COUNCIL,2022862610,"89,606.00"
Department for Work and Pensions,Corporate,26-Oct-11,POSTAGE,F&C,DX NETWORK SERVICES LTD,2022970123,"89,439.35"
Department for Work and Pensions,Employment Programmes,04-Oct-11,EP PROVIDER PAYMENT - WORK PROGRAMME,COO,INGEUS UK LTD,2022703673,"89,200.00"
Department for Work and Pensions,Jobcentre Plus,27-Oct-11,EMPLOYMENT PROGRAMMES,Excluded,A4E LTD,2023018526,"89,143.34"
Department for Work and Pensions,Employment Programmes,14-Oct-11,YOUNG PERSON'S GUARANTEE,COO,CHESHIRE WEST & CHESTER COUNCIL,2022858007,"88,650.00"
Department for Work and Pensions,Housing Benefits,14-Oct-11,Housing Benefit Admin,COO,LANCASTER CITY COUNCIL,2022862422,"88,544.00"
Department for Work and Pensions,Housing Benefits,14-Oct-11,Housing Benefit Admin,COO,BURNLEY BOROUGH COUNCIL,2022862303,"88,067.00"
Department for Work and Pensions,Employment Programmes,04-Oct-11,EP PROVIDER PAYMENT - WORK PROGRAMME,COO,INGEUS UK LTD,2022703673,"88,000.00"
Department for Work and Pensions,Housing Benefits,14-Oct-11,Housing Benefit Admin,COO,EASTBOURNE BOROUGH COUNCIL,2022862370,"87,969.00"
Department for Work and Pensions,Employment Programmes,14-Oct-11,YOUNG PERSON'S GUARANTEE,COO,IXION HOLDINGS LTD,2022859800,"87,900.00"
Department for Work and Pensions,Employment Programmes,12-Oct-11,EP PROVIDER PAYMENT - NON-WORK PROGRAMME,COO,ESG HOLDINGS LTD,2022806410,"87,418.00"
Department for Work and Pensions,Housing Benefits,14-Oct-11,Housing Benefit Admin,COO,SOUTH AYRSHIRE COUNCIL,2022862546,"87,382.00"
Department for Work and Pensions,Housing Benefits,14-Oct-11,Housing Benefit Admin,COO,INVERCLYDE DISTRICT COUNCIL,2022862413,"86,800.00"
Department for Work and Pensions,Housing Benefits,06-Oct-11,Housing Benefit Admin,COO,BIRMINGHAM CITY COUNCIL,2022769756,"86,580.47"
Department for Work and Pensions,Housing Benefits,14-Oct-11,Housing Benefit Admin,COO,OXFORD CITY COUNCIL,2022862502,"86,447.00"
Department for Work and Pensions,Employment Programmes,12-Oct-11,EP PROVIDER PAYMENT - NON-WORK PROGRAMME,COO,A4E LTD,2022793791,"86,405.00"
Department for Work and Pensions,Employment Programmes,04-Oct-11,YOUNG PERSON'S GUARANTEE,COO,A4E LTD,2022699696,"86,400.00"
Department for Work and Pensions,Employment Programmes,19-Oct-11,INTRA DWP PAYABLES,Excluded,NORTHUMBERLAND NHS CARE TRUST,615895,"86,334.00"
Department for Work and Pensions,Employment Programmes,04-Oct-11,YOUNG PERSON'S GUARANTEE,COO,SARINA RUSSO JOB ACCESS GB PTY LTD,2022705900,"86,111.00"
Department for Work and Pensions,Employment Programmes,12-Oct-11,EP PROVIDER PAYMENT - NON-WORK PROGRAMME,COO,INGEUS UK LTD,2022810868,"85,861.00"
Department for Work and Pensions,Housing Benefits,14-Oct-11,Housing Benefit Admin,COO,FLINTSHIRE COUNTY COUNCIL,2022862383,"85,757.00"
Department for Work and Pensions,Housing Benefits,14-Oct-11,Housing Benefit Admin,COO,PERTH & KINROSS COUNCIL,2022862505,"85,118.00"
Department for Work and Pensions,Housing Benefits,14-Oct-11,Housing Benefit Admin,COO,POOLE BOROUGH COUNCIL,2022862508,"85,056.00"
Department for Work and Pensions,Housing Benefits,14-Oct-11,Housing Benefit Admin,COO,DARLINGTON BOROUGH COUNCIL,2022862345,"84,596.00"
Department for Work and Pensions,Corporate,04-Oct-11,PRINCES YOUTH TRUST,Change PMU,LONDON BOROUGH OF BARNET,1004968,"84,437.00"
Department for Work and Pensions,Housing Benefits,14-Oct-11,Housing Benefit Admin,COO,BASINGSTOKE DISTRICT COUNCIL,2022862275,"84,281.00"
Department for Work and Pensions,Housing Benefits,14-Oct-11,Housing Benefit Admin,COO,NUNEATON BOROUGH COUNCIL,2022862498,"83,851.00"
Department for Work and Pensions,Corporate,19-Oct-11,EMPLOYMENT ZONES,Change PMU,MANCHESTER CREDIT UNION,2022914013,"83,800.00"
Department for Work and Pensions,Housing Benefits,14-Oct-11,Housing Benefit Admin,COO,WYCOMBE DISTRICT COUNCIL,2022862636,"83,612.00"
Department for Work and Pensions,Employment Programmes,27-Oct-11,YOUNG PERSON'S GUARANTEE,COO,SCOTTISH COUNCIL FOR VOLUNTARY ORGANISATIONS,2023021959,"83,550.00"
Department for Work and Pensions,Housing Benefits,14-Oct-11,Housing Benefit Admin,COO,DACORUM BOROUGH COUNCIL,2022862344,"83,545.00"
Department for Work and Pensions,Jobcentre Plus,17-Oct-11,Accommodation Costs,COO,WELSH ASSEMBLY GOVERNMENT,2022866656,"83,354.00"
Department for Work and Pensions,Corporate,18-Oct-11,UNALLOCATED BUDGET GROUP,STR,MOTABILITY,1004986,"83,330.00"
Department for Work and Pensions,Housing Benefits,14-Oct-11,Housing Benefit Admin,COO,HUNTINGDON DISTRICT COUNCIL,2022862411,"83,110.00"
Department for Work and Pensions,Housing Benefits,14-Oct-11,Housing Benefit Admin,COO,AYLESBURY VALE DISTRICT COUNCIL,2022862270,"83,036.00"
Department for Work and Pensions,Housing Benefits,14-Oct-11,Housing Benefit Admin,COO,ASHFIELD DISTRICT COUNCIL,2022862268,"82,987.00"
Department for Work and Pensions,Employment Programmes,12-Oct-11,EP PROVIDER PAYMENT - NON-WORK PROGRAMME,COO,JHP GROUP LTD,2022816617,"82,941.00"
Department for Work and Pensions,Housing Benefits,14-Oct-11,Housing Benefit Admin,COO,NEW FOREST DISTRICT COUNCIL,2022862475,"82,865.00"
Department for Work and Pensions,Housing Benefits,14-Oct-11,Housing Benefit Admin,COO,CHELMSFORD BOROUGH COUNCIL,2022862316,"82,804.00"
Department for Work and Pensions,Housing Benefits,14-Oct-11,Housing Benefit Admin,COO,CANTERBURY CITY COUNCIL,2022862309,"82,650.00"
Department for Work and Pensions,Employment Programmes,28-Oct-11,YOUNG PERSON'S GUARANTEE,COO,KNOWSLEY METROPOLITAN BOROUGH COUNCIL,2023025633,"82,262.16"
Department for Work and Pensions,Housing Benefits,14-Oct-11,Housing Benefit Admin,COO,MANSFIELD DISTRICT COUNCIL,2022862462,"82,260.00"
Department for Work and Pensions,Corporate,25-Oct-11,Intangible Assets,Change PMU,CAPGEMINI UK PLC,2022949810,"82,018.04"
Department for Work and Pensions,Housing Benefits,14-Oct-11,Housing Benefit Admin,COO,CONWY COUNTY BOROUGH  COUNCIL,2022862333,"81,715.00"
Department for Work and Pensions,Corporate,31-Oct-11,ACCOMMODATION,F&C,TELEREAL TRILLIUM,2023030020,"81,658.67"
Department for Work and Pensions,Housing Benefits,14-Oct-11,Housing Benefit Admin,COO,PENDLE BOROUGH COUNCIL,2022862504,"81,549.00"
Department for Work and Pensions,Corporate,11-Oct-11,STAFF COSTS,HRD,PREMIER PARTNERSHIP,2022786910,"81,540.21"
Department for Work and Pensions,Housing Benefits,14-Oct-11,Housing Benefit Admin,COO,SHEPWAY DISTRICT COUNCIL,2022862541,"80,796.00"
Department for Work and Pensions,Corporate,04-Oct-11,PRINCES YOUTH TRUST,Change PMU,ESSEX COUNTY COUNCIL,1004966,"80,587.00"
Department for Work and Pensions,Employment Programmes,18-Oct-11,EMPLOYMENT INITIATIVES,COO,WORKING LINKS,2022870611,"80,434.00"
Department for Work and Pensions,Housing Benefits,14-Oct-11,Housing Benefit Admin,COO,CHESTERFIELD BOROUGH COUNCIL,2022862321,"80,324.00"
Department for Work and Pensions,Housing Benefits,14-Oct-11,Housing Benefit Admin,COO,HAVANT BOROUGH COUNCIL,2022862404,"80,318.00"
Department for Work and Pensions,Jobcentre Plus,27-Oct-11,OTHER GOODS AND SERVICES,COO,DEPARTMENT OF HEALTH,2023019006,"80,239.65"
Department for Work and Pensions,Housing Benefits,14-Oct-11,Housing Benefit Admin,COO,SCOTTISH BORDERS COUNCIL,2022862535,"80,001.00"
Department for Work and Pensions,Housing Benefits,14-Oct-11,Housing Benefit Admin,COO,CRAWLEY BOROUGH COUNCIL,2022862342,"79,563.00"
Department for Work and Pensions,Housing Benefits,14-Oct-11,Housing Benefit Admin,COO,WREXHAM COUNTY BOROUGH COUNCIL,2022862634,"79,405.00"
Department for Work and Pensions,European Social Fund,07-Oct-11,ESF Expenditure,STR,AGE CONCERN,5000000735,"79,265.00"
Department for Work and Pensions,Housing Benefits,14-Oct-11,Housing Benefit Admin,COO,TORFAEN BOROUGH COUNCIL,2022862598,"78,577.00"
Department for Work and Pensions,Housing Benefits,14-Oct-11,Housing Benefit Admin,COO,CHERWELL DISTRICT COUNCIL,2022862318,"78,566.00"
Department for Work and Pensions,Jobcentre Plus,13-Oct-11,ACCOMMODATION COSTS,Change PMU,TELEREAL TRILLIUM,2022855687,"78,563.55"
Department for Work and Pensions,Housing Benefits,14-Oct-11,Housing Benefit Admin,COO,BRECKLAND DISTRICT COUNCIL,2022862294,"78,508.00"
Department for Work and Pensions,Housing Benefits,14-Oct-11,Housing Benefit Admin,COO,MAIDSTONE BOROUGH COUNCIL,2022862458,"78,478.00"
Department for Work and Pensions,Employment Programmes,19-Oct-11,EMPLOYMENT INITIATIVES,COO,REED IN PARTNERSHIP HACKNEY LTD,2022921013,"78,381.00"
Department for Work and Pensions,Housing Benefits,14-Oct-11,Housing Benefit Admin,COO,GWYNEDD COUNCIL,2022862394,"77,986.00"
Department for Work and Pensions,Housing Benefits,14-Oct-11,Housing Benefit Admin,COO,WEST BERKSHIRE COUNCIL,2022862614,"77,607.00"
Department for Work and Pensions,Housing Benefits,14-Oct-11,Housing Benefit Admin,COO,WYRE BOROUGH COUNCIL,2022862637,"76,857.00"
Department for Work and Pensions,Corporate,04-Oct-11,PRINCES YOUTH TRUST,Change PMU,LEICESTER CITY COUNCIL,1004967,"76,781.00"
Department for Work and Pensions,Housing Benefits,14-Oct-11,Housing Benefit Admin,COO,DOVER DISTRICT COUNCIL,2022862352,"76,750.00"
Department for Work and Pensions,Housing Benefits,14-Oct-11,Housing Benefit Admin,COO,CHARNWOOD BOROUGH COUNCIL,2022862315,"76,664.00"
Department for Work and Pensions,Housing Benefits,14-Oct-11,Housing Benefit Admin,COO,VALE OF GLAMORGAN COUNCIL,2022862603,"76,596.00"
Department for Work and Pensions,Housing Benefits,14-Oct-11,Housing Benefit Admin,COO,PEMBROKESHIRE COUNTY COUNCIL,2022862503,"76,544.00"
Department for Work and Pensions,"Pension, Disability Carers Services",20-Oct-11,CONTRACTED OUT SERVICES,COO,PROMOTIONAL LOGISTICS LTD,2022938085,"76,473.71"
Department for Work and Pensions,European Social Fund,07-Oct-11,ESF Expenditure,STR,MERSEYSIDE EXPANDING HORIZONS LTD,5000000739,"75,836.00"
Department for Work and Pensions,Housing Benefits,14-Oct-11,Housing Benefit Admin,COO,TEIGNBRIDGE DISTRICT COUNCIL,2022862588,"75,813.00"
Department for Work and Pensions,Employment Programmes,04-Oct-11,EP PROVIDER PAYMENT - WORK PROGRAMME,COO,SEETEC BUSINESS TECHNOLOGY CENTRE LTD,2022705908,"75,600.00"
Department for Work and Pensions,Housing Benefits,14-Oct-11,Housing Benefit Admin,COO,BASSETLAW DISTRICT COUNCIL,2022862276,"75,257.00"
Department for Work and Pensions,Housing Benefits,14-Oct-11,Housing Benefit Admin,COO,NORTH HERTFORDSHIRE DISTRICT COUNCIL,2022862485,"74,925.00"
Department for Work and Pensions,Corporate,31-Oct-11,ACCOMMODATION,F&C,TELEREAL TRILLIUM,2023030020,"74,796.38"
Department for Work and Pensions,Employment Programmes,12-Oct-11,EP PROVIDER PAYMENT - NON-WORK PROGRAMME,COO,JHP GROUP LTD,2022816617,"74,530.00"
Department for Work and Pensions,Employment Programmes,12-Oct-11,EP PROVIDER PAYMENT - NON-WORK PROGRAMME,COO,JHP GROUP LTD,2022816617,"74,079.00"
Department for Work and Pensions,Housing Benefits,14-Oct-11,Housing Benefit Admin,COO,NEWCASTLE UNDER LYME BOROUGH COUNCIL,2022862478,"74,074.00"
Department for Work and Pensions,Housing Benefits,14-Oct-11,Housing Benefit Admin,COO,EREWASH BOROUGH COUNCIL,2022862377,"73,888.00"
Department for Work and Pensions,Jobcentre Plus,05-Oct-11,COMPUTER SERVICES,Change PMU,ACCENTURE UK LTD,2022712363,"73,772.80"
Department for Work and Pensions,Housing Benefits,14-Oct-11,Housing Benefit Admin,COO,HYNDBURN BOROUGH COUNCIL,2022862412,"73,690.00"
Department for Work and Pensions,Employment Programmes,04-Oct-11,EP PROVIDER PAYMENT - WORK PROGRAMME,COO,INGEUS UK LTD,2022703673,"73,600.00"
Department for Work and Pensions,Housing Benefits,14-Oct-11,Housing Benefit Admin,COO,AMBER VALLEY BOROUGH COUNCIL,2022862264,"73,477.00"
Department for Work and Pensions,Corporate,24-Oct-11,COMPUTER SERVICES,Change PMU,FUJITSU SERVICES LTD,2022946972,"73,358.30"
Department for Work and Pensions,Housing Benefits,14-Oct-11,Housing Benefit Admin,COO,FENLAND DISTRICT COUNCIL,2022862381,"73,019.00"
Department for Work and Pensions,Corporate,18-Oct-11,EMPLOYMENT ZONES,Change PMU,ENTERPRISE CREDIT UNION,2022868298,"73,000.00"
Department for Work and Pensions,Housing Benefits,14-Oct-11,Housing Benefit Admin,COO,EXETER CITY COUNCIL,2022862378,"72,846.00"
Department for Work and Pensions,Housing Benefits,14-Oct-11,Housing Benefit Admin,COO,LINCOLN CITY COUNCIL,2022862427,"72,808.00"
Department for Work and Pensions,Housing Benefits,14-Oct-11,Housing Benefit Admin,COO,ANGUS COUNCIL,2022862265,"72,682.00"
Department for Work and Pensions,Housing Benefits,14-Oct-11,Housing Benefit Admin,COO,HARROGATE BOROUGH COUNCIL,2022862400,"72,421.00"
Department for Work and Pensions,Housing Benefits,14-Oct-11,Housing Benefit Admin,COO,POWYS COUNTY COUNCIL,2022862510,"72,208.00"
Department for Work and Pensions,Housing Benefits,14-Oct-11,Housing Benefit Admin,COO,WYRE FOREST DISTRICT COUNCIL,2022862638,"71,827.00"
Department for Work and Pensions,Jobcentre Plus,17-Oct-11,APPS DEV,Change PMU,HP ENTERPRISE SERVICES UK LTD,2022864834,"71,398.03"
Department for Work and Pensions,Employment Programmes,17-Oct-11,YOUNG PERSON'S GUARANTEE,COO,THE SALVATION ARMY,2022865596,"71,364.98"
Department for Work and Pensions,Employment Programmes,24-Oct-11,YOUNG PERSON'S GUARANTEE,COO,WILTSHIRE COUNCIL,2022948179,"71,273.34"
Department for Work and Pensions,Housing Benefits,06-Oct-11,Housing Benefit Admin,COO,CITY OF GLASGOW,2022769921,"71,241.05"
Department for Work and Pensions,Housing Benefits,14-Oct-11,Housing Benefit Admin,COO,EAST STAFFORDSHIRE DISTRICT COUNCIL,2022862369,"71,233.00"
Department for Work and Pensions,Corporate,18-Oct-11,APPS DEV,Change PMU,HP ENTERPRISE SERVICES UK LTD,2022868574,"71,188.26"
Department for Work and Pensions,Housing Benefits,14-Oct-11,Housing Benefit Admin,COO,SEDGEMOOR DISTRICT COUNCIL,2022862536,"71,065.00"
Department for Work and Pensions,Jobcentre Plus,18-Oct-11,APPS DEV,COO,HP ENTERPRISE SERVICES UK LTD,2022868574,"70,755.48"
Department for Work and Pensions,Corporate,17-Oct-11,AOS CONTRACTED OUT SERVICES,STR,CAPITA BUSINESS SERVICES LTD,2022862888,"70,700.00"
Department for Work and Pensions,European Social Fund,24-Oct-11,ESF Expenditure,STR,CORNWALL COUNTY COUNCIL,5000000767,"70,575.00"
Department for Work and Pensions,Employment Programmes,28-Oct-11,YOUNG PERSON'S GUARANTEE,COO,SCOTTISH COUNCIL FOR VOLUNTARY ORGANISATIONS,2023026311,"70,500.00"
Department for Work and Pensions,Housing Benefits,14-Oct-11,Housing Benefit Admin,COO,SOUTH KESTEVEN DISTRICT COUNCIL,2022862553,"70,457.00"
Department for Work and Pensions,Housing Benefits,14-Oct-11,Housing Benefit Admin,COO,GEDLING BOROUGH COUNCIL,2022862388,"70,119.00"
Department for Work and Pensions,Corporate,04-Oct-11,PRINCES YOUTH TRUST,Change PMU,MANCHESTER CITY COUNCIL,1004970,"70,000.00"
Department for Work and Pensions,Corporate,06-Oct-11,Accommodation Costs,F&C,CITY OF WESTMINSTER,1004975,"69,835.39"
Department for Work and Pensions,Housing Benefits,14-Oct-11,Housing Benefit Admin,COO,HARLOW DISTRICT COUNCIL,2022862399,"69,793.00"
Department for Work and Pensions,Corporate,21-Oct-11,Accommodation Costs,F&C,SOUTHERN ELECTRIC PLC,2022943790,"69,652.96"
Department for Work and Pensions,Corporate,18-Oct-11,APPS DEV,Change PMU,HP ENTERPRISE SERVICES UK LTD,2022868574,"69,437.14"
Department for Work and Pensions,European Social Fund,18-Oct-11,ESF Expenditure,STR,SKILLS FUNDING AGENCY,5000000764,"69,362.00"
Department for Work and Pensions,"Pension, Disability Carers Services",04-Oct-11,CONTRACTED OUT SERVICES,COO,PROMOTIONAL LOGISTICS LTD,2022705226,"69,352.15"
Department for Work and Pensions,Housing Benefits,14-Oct-11,Housing Benefit Admin,COO,WORTHING BOROUGH COUNCIL,2022862633,"69,308.00"
Department for Work and Pensions,Corporate,13-Oct-11,ACCOMMODATION COSTS,F&C,TELEREAL TRILLIUM,2022855687,"69,069.00"
Department for Work and Pensions,Employment Programmes,28-Oct-11,YOUNG PERSON'S GUARANTEE,COO,WEST LOTHIAN COUNCIL,2023026458,"68,850.00"
Department for Work and Pensions,Housing Benefits,14-Oct-11,Housing Benefit Admin,COO,CHELTENHAM BOROUGH COUNCIL,2022862317,"68,832.00"
Department for Work and Pensions,Housing Benefits,14-Oct-11,Housing Benefit Admin,COO,CAMBRIDGE CITY COUNCIL,2022862307,"68,579.00"
Department for Work and Pensions,Employment Programmes,19-Oct-11,YOUNG PERSON'S GUARANTEE,COO,SCOTTISH PREMIER LEAGUE LTD,2022928301,"68,550.00"
Department for Work and Pensions,Housing Benefits,14-Oct-11,Housing Benefit Admin,COO,DENBIGHSHIRE COUNTY COUNCIL,2022862348,"68,208.00"
Department for Work and Pensions,Employment Programmes,04-Oct-11,EP PROVIDER PAYMENT - WORK PROGRAMME,COO,A4E LTD,2022699696,"68,000.00"
Department for Work and Pensions,Corporate,13-Oct-11,OTHER EXPENDITURE,PS,NATIONAL CENTRE FOR SOCIAL RESEARCH NCSR,2022855192,"68,000.00"
Department for Work and Pensions,Employment Programmes,26-Oct-11,YOUNG PERSON'S GUARANTEE,COO,SWINDON BOROUGH COUNCIL,2023011474,"67,950.00"
Department for Work and Pensions,Housing Benefits,14-Oct-11,Housing Benefit Admin,COO,GRAVESHAM BOROUGH COUNCIL,2022862391,"67,731.00"
Department for Work and Pensions,Jobcentre Plus,14-Oct-11,ACCOMMODATION,COO,TELEREAL TRILLIUM,2022860792,"67,264.02"
Department for Work and Pensions,Housing Benefits,14-Oct-11,Housing Benefit Admin,COO,WEST LANCASHIRE DISTRICT COUNCIL,2022862618,"66,807.00"
Department for Work and Pensions,Corporate,27-Oct-11,NETWORK,CIT,BT GLOBAL SERVICES,2023018667,"66,715.20"
Department for Work and Pensions,Housing Benefits,14-Oct-11,Housing Benefit Admin,COO,BROXBOURNE BOROUGH COUNCIL,2022862301,"66,664.00"
Department for Work and Pensions,Housing Benefits,14-Oct-11,Housing Benefit Admin,COO,GUILDFORD BOROUGH COUNCIL,2022862393,"66,363.00"
Department for Work and Pensions,Housing Benefits,14-Oct-11,Housing Benefit Admin,COO,WARWICK DISTRICT COUNCIL,2022862608,"66,314.00"
Department for Work and Pensions,Housing Benefits,14-Oct-11,Housing Benefit Admin,COO,REIGATE & BANSTEAD BOROUGH COUNCIL,2022862515,"66,240.00"
Department for Work and Pensions,Housing Benefits,14-Oct-11,Housing Benefit Admin,COO,EAST DEVON DISTRICT COUNCIL,2022862359,"66,196.00"
Department for Work and Pensions,Housing Benefits,14-Oct-11,Housing Benefit Admin,COO,ASHFORD BOROUGH COUNCIL,2022862269,"66,138.00"
Department for Work and Pensions,Corporate,18-Oct-11,TELEPHONE AND POSTAGE,F&C,UK MAIL,2022870518,"66,070.18"
Department for Work and Pensions,Employment Programmes,04-Oct-11,YOUNG PERSON'S GUARANTEE,COO,GROUNDWORK WREXHAM & FLINTSHIRE,2022703501,"65,652.40"
Department for Work and Pensions,European Social Fund,14-Oct-11,ESF Expenditure,STR,BUSINESS IN THE COMMUNITY,5000000756,"65,337.00"
Department for Work and Pensions,Corporate,18-Oct-11,Accommodation Costs,F&C,COMPANIES HOUSE,1004984,"65,271.27"
Department for Work and Pensions,Housing Benefits,14-Oct-11,Housing Benefit Admin,COO,TAUNTON DEANE BOROUGH COUNCIL,2022862587,"65,246.00"
Department for Work and Pensions,Employment Programmes,21-Oct-11,YOUNG PERSON'S GUARANTEE,COO,SWINDON BOROUGH COUNCIL,2022943804,"65,100.00"
Department for Work and Pensions,Housing Benefits,14-Oct-11,Housing Benefit Admin,COO,NORTH DEVON DISTRICT COUNCIL,2022862481,"64,957.00"
Department for Work and Pensions,Corporate,31-Oct-11,ACCOMMODATION,F&C,TELEREAL TRILLIUM,2023030024,"64,599.58"
Department for Work and Pensions,Housing Benefits,14-Oct-11,Housing Benefit Admin,COO,WORCESTER CITY COUNCIL,2022862632,"64,477.00"
Department for Work and Pensions,Housing Benefits,14-Oct-11,Housing Benefit Admin,COO,WELWYN HATFIELD DISTRICT COUNCIL,2022862613,"64,239.00"
Department for Work and Pensions,Housing Benefits,14-Oct-11,Housing Benefit Admin,COO,NORTH NORFOLK DISTRICT COUNCIL,2022862489,"64,072.00"
Department for Work and Pensions,Housing Benefits,14-Oct-11,Housing Benefit Admin,COO,MENDIP DISTRICT COUNCIL,2022862465,"64,055.00"
Department for Work and Pensions,Employment Programmes,04-Oct-11,EP PROVIDER PAYMENT - WORK PROGRAMME,COO,PERTEMPS,2022705202,"64,000.00"
Department for Work and Pensions,Housing Benefits,14-Oct-11,Housing Benefit Admin,COO,CITY OF CARLISLE DISTRICT COUNCIL,2022862326,"63,983.00"
Department for Work and Pensions,Housing Benefits,14-Oct-11,Housing Benefit Admin,COO,WINDSOR & MAIDENHEAD BOROUGH COUNCIL,2022862627,"63,911.00"
Department for Work and Pensions,Employment Programmes,12-Oct-11,EP PROVIDER PAYMENT - NON-WORK PROGRAMME,COO,A4E LTD,2022793791,"63,650.00"
Department for Work and Pensions,Employment Programmes,04-Oct-11,EP PROVIDER PAYMENT - WORK PROGRAMME,COO,SEETEC BUSINESS TECHNOLOGY CENTRE LTD,2022705908,"63,600.00"
Department for Work and Pensions,Housing Benefits,14-Oct-11,Housing Benefit Admin,COO,BLAENAU GWENT COUNTY BOROUGH COUNCIL,2022862283,"63,461.00"
Department for Work and Pensions,Housing Benefits,14-Oct-11,Housing Benefit Admin,COO,EPPING FOREST DISTRICT COUNCIL,2022862375,"63,296.00"
Department for Work and Pensions,Housing Benefits,14-Oct-11,Housing Benefit Admin,COO,CANNOCK CHASE DISTRICT COUNCIL,2022862308,"63,108.00"
Department for Work and Pensions,Corporate,25-Oct-11,STAFF COSTS,HRD,FLETCHER CONSULTANCY,2022951346,"62,930.44"
Department for Work and Pensions,Housing Benefits,14-Oct-11,Housing Benefit Admin,COO,HERTSMERE BOROUGH COUNCIL,2022862406,"62,878.00"
Department for Work and Pensions,Housing Benefits,14-Oct-11,Housing Benefit Admin,COO,ARGYLL & BUTE COUNCIL,2022862266,"62,865.00"
Department for Work and Pensions,Corporate,31-Oct-11,ACCOMMODATION,F&C,TELEREAL TRILLIUM,2023030021,"62,735.97"
Department for Work and Pensions,Corporate,31-Oct-11,EMPLOYMENT ZONES,Change PMU,PARK ROAD COMMUNITY CREDIT UNION LTD,2023029706,"62,400.00"
Department for Work and Pensions,Jobcentre Plus,27-Oct-11,EMPLOYMENT PROGRAMMES,Excluded,INGEUS UK LTD,2023020577,"62,176.78"
Department for Work and Pensions,Corporate,04-Oct-11,PRINCES YOUTH TRUST,Change PMU,BARNSLEY METROPOLITAN BOROUGH COUNCIL,1004965,"62,113.00"
Department for Work and Pensions,"Pension, Disability Carers Services",10-Oct-11,TELEPHONE AND POSTAGE,COO,ROYAL MAIL GROUP PLC,2022781309,"62,060.94"
Department for Work and Pensions,Housing Benefits,14-Oct-11,Housing Benefit Admin,COO,ALLERDALE DISTRICT COUNCIL,2022862263,"61,755.00"
Department for Work and Pensions,Jobcentre Plus,13-Oct-11,EMPLOYMENT PROGRAMMES,Excluded,SHAW TRUST LTD,2022855600,"61,740.26"
Department for Work and Pensions,Housing Benefits,14-Oct-11,Housing Benefit Admin,COO,WEALDEN DISTRICT COUNCIL,2022862612,"61,582.00"
Department for Work and Pensions,Housing Benefits,14-Oct-11,Housing Benefit Admin,COO,NEWARK DISTRICT COUNCIL,2022862476,"61,494.00"
Department for Work and Pensions,Employment Programmes,19-Oct-11,YOUNG PERSON'S GUARANTEE,COO,ORIENT REGENERATION TRUST LTD,2022916710,"61,050.00"
Department for Work and Pensions,Corporate,04-Oct-11,PRINCES YOUTH TRUST,Change PMU,LONDON BOROUGH OF NEWHAM,1004969,"60,812.00"
Department for Work and Pensions,Corporate,17-Oct-11,IS/IT,CIT,HP ENTERPRISE SERVICES UK LTD,2022864834,"60,796.07"
Department for Work and Pensions,Housing Benefits,14-Oct-11,Housing Benefit Admin,COO,TONBRIDGE & MALLING DISTRICT COUNCIL,2022862596,"60,672.00"
Department for Work and Pensions,Housing Benefits,14-Oct-11,Housing Benefit Admin,COO,CHICHESTER DISTRICT COUNCIL,2022862322,"60,573.00"
Department for Work and Pensions,Jobcentre Plus,20-Oct-11,EMPLOYMENT PROGRAMMES,Excluded,WORKING LINKS,2022938618,"60,521.31"
Department for Work and Pensions,Housing Benefits,14-Oct-11,Housing Benefit Admin,COO,EAST HERTFORDSHIRE DISTRICT COUNCIL,2022862363,"60,402.00"
Department for Work and Pensions,Employment Programmes,24-Oct-11,EP PROVIDER PAYMENT - WORK PROGRAMME,COO,CAREERS DEVELOPMENT GROUP,2022945568,"60,400.00"
Department for Work and Pensions,Employment Programmes,28-Oct-11,YOUNG PERSON'S GUARANTEE,COO,ROYAL BOROUGH KINGSTON UPON THAMES FUTURE JOB FUND,2023026145,"60,100.00"
Department for Work and Pensions,Employment Programmes,04-Oct-11,EP PROVIDER PAYMENT - WORK PROGRAMME,COO,A4E LTD,2022699696,"60,000.00"
Department for Work and Pensions,Housing Benefits,14-Oct-11,Housing Benefit Admin,COO,GOSPORT BOROUGH COUNCIL,2022862390,"59,919.00"
Department for Work and Pensions,Corporate,31-Oct-11,ACCOMMODATION,F&C,TELEREAL TRILLIUM,2023030021,"59,690.87"
Department for Work and Pensions,Employment Programmes,12-Oct-11,EP PROVIDER PAYMENT - NON-WORK PROGRAMME,COO,INGEUS UK LTD,2022810868,"59,676.00"
Department for Work and Pensions,Housing Benefits,14-Oct-11,Housing Benefit Admin,COO,WATFORD BOROUGH COUNCIL,2022862609,"59,615.00"
Department for Work and Pensions,Corporate,10-Oct-11,AOS CONTRACTED OUT SERVICES,F&C,IQOR RECOVERY SERVICES LTD,2022780277,"59,485.68"
Department for Work and Pensions,Housing Benefits,14-Oct-11,Housing Benefit Admin,COO,STEVENAGE BOROUGH COUNCIL,2022862571,"59,462.00"
Department for Work and Pensions,Housing Benefits,14-Oct-11,Housing Benefit Admin,COO,SOUTH NORFOLK DISTRICT COUNCIL,2022862556,"59,382.00"
Department for Work and Pensions,Housing Benefits,14-Oct-11,Housing Benefit Admin,COO,SUFFOLK COASTAL DISTRICT COUNCIL,2022862578,"59,230.00"
Department for Work and Pensions,European Social Fund,11-Oct-11,ESF Expenditure,STR,IMPACT HOUSING ASSOCIATION,5000000745,"59,206.00"
Department for Work and Pensions,Jobcentre Plus,05-Oct-11,IS/IT,Change PMU,SPECIALIST COMPUTER CENTRES PLC,2022762898,"59,181.60"
Department for Work and Pensions,Housing Benefits,14-Oct-11,Housing Benefit Admin,COO,EAST LOTHIAN DISTRICT COUNCIL,2022862365,"58,888.00"
Department for Work and Pensions,Employment Programmes,06-Oct-11,EP PROVIDER PAYMENT - WORK PROGRAMME,COO,A4E LTD,2022769664,"58,800.00"
Department for Work and Pensions,Employment Programmes,17-Oct-11,EP PROVIDER PAYMENT - WORK PROGRAMME,COO,CAREERS DEVELOPMENT GROUP,2022862893,"58,400.00"
Department for Work and Pensions,Employment Programmes,24-Oct-11,YOUNG PERSON'S GUARANTEE,COO,LEEDS CITY COUNCIL,2022947456,"58,200.00"
Department for Work and Pensions,Jobcentre Plus,06-Oct-11,EMPLOYMENT PROGRAMMES,Excluded,THE WISE GROUP,2022772071,"57,975.11"
Department for Work and Pensions,Housing Benefits,14-Oct-11,Housing Benefit Admin,COO,BRACKNELL FOREST BOROUGH COUNCIL,2022862291,"57,945.00"
Department for Work and Pensions,Housing Benefits,14-Oct-11,Housing Benefit Admin,COO,ROTHER DISTRICT COUNCIL,2022862523,"57,903.00"
Department for Work and Pensions,Employment Programmes,04-Oct-11,EP PROVIDER PAYMENT - WORK PROGRAMME,COO,INGEUS UK LTD,2022703673,"57,600.00"
Department for Work and Pensions,Employment Programmes,12-Oct-11,EP PROVIDER PAYMENT - NON-WORK PROGRAMME,COO,A4E LTD,2022793791,"57,372.00"
Department for Work and Pensions,Housing Benefits,14-Oct-11,Housing Benefit Admin,COO,BROXTOWE BOROUGH COUNCIL,2022862302,"57,302.00"
Department for Work and Pensions,Housing Benefits,14-Oct-11,Housing Benefit Admin,COO,STRATFORD ON AVON DISTRICT COUNCIL,2022862576,"57,238.00"
Department for Work and Pensions,Housing Benefits,14-Oct-11,Housing Benefit Admin,COO,RUGBY BOROUGH COUNCIL,2022862526,"57,209.00"
Department for Work and Pensions,Housing Benefits,14-Oct-11,Housing Benefit Admin,COO,BARROW BOROUGH COUNCIL,2022862273,"56,861.00"
Department for Work and Pensions,Housing Benefits,14-Oct-11,Housing Benefit Admin,COO,ST EDMUNDSBURY BOROUGH COUNCIL,2022862567,"56,680.00"
Department for Work and Pensions,Employment Programmes,12-Oct-11,EP PROVIDER PAYMENT - NON-WORK PROGRAMME,COO,INGEUS UK LTD,2022810868,"56,474.00"
Department for Work and Pensions,Housing Benefits,14-Oct-11,Housing Benefit Admin,COO,CHORLEY BOROUGH COUNCIL,2022862324,"56,458.00"
Department for Work and Pensions,European Social Fund,13-Oct-11,ESF Expenditure,STR,WORKERS EDUCATIONAL ASSOCIATION EAST MIDLANDS REGION,5000000755,"56,302.00"
Department for Work and Pensions,Housing Benefits,14-Oct-11,Housing Benefit Admin,COO,LEWES DISTRICT COUNCIL,2022862425,"56,193.00"
Department for Work and Pensions,Housing Benefits,14-Oct-11,Housing Benefit Admin,COO,BOROUGH OF REDDITCH,2022862286,"56,169.00"
Department for Work and Pensions,Housing Benefits,14-Oct-11,Housing Benefit Admin,COO,TUNBRIDGE WELLS BOROUGH COUNCIL,2022862601,"55,959.00"
Department for Work and Pensions,Corporate,07-Oct-11,TELEPHONE AND POSTAGE,F&C,ROYAL MAIL GROUP PLC,2022776528,"55,927.15"
Department for Work and Pensions,Housing Benefits,14-Oct-11,Housing Benefit Admin,COO,RUSHMOOR BOROUGH COUNCIL,2022862529,"55,901.00"
Department for Work and Pensions,Housing Benefits,14-Oct-11,Housing Benefit Admin,COO,WYCHAVON DISTRICT COUNCIL,2022862635,"55,778.00"
Department for Work and Pensions,Housing Benefits,14-Oct-11,Housing Benefit Admin,COO,STROUD DISTRICT COUNCIL,2022862577,"55,411.00"
Department for Work and Pensions,Jobcentre Plus,27-Oct-11,EMPLOYMENT PROGRAMMES,Excluded,SCVO,2023021963,"55,200.73"
Department for Work and Pensions,Housing Benefits,14-Oct-11,Housing Benefit Admin,COO,ELMBRIDGE BOROUGH COUNCIL,2022862374,"55,151.00"
Department for Work and Pensions,Corporate,14-Oct-11,TEMPORARY (TEMP) STAFF COSTS,Change PMU,CAPITA RESOURCING LTD,2022857996,"54,959.50"
Department for Work and Pensions,Housing Benefits,14-Oct-11,Housing Benefit Admin,COO,SOUTH RIBBLE BOROUGH COUNCIL C,2022862559,"54,828.00"
Department for Work and Pensions,Housing Benefits,14-Oct-11,Housing Benefit Admin,COO,WEST LINDSEY DISTRICT COUNCIL,2022862619,"54,699.00"
Department for Work and Pensions,Corporate,31-Oct-11,MANAGEMENT CONSULTANCY,Change PMU,BRAMBLE CC LTD,2023027783,"54,652.50"
Department for Work and Pensions,Housing Benefits,14-Oct-11,Housing Benefit Admin,COO,BOROUGH OF WELLINGBOROUGH,2022862288,"54,483.00"
Department for Work and Pensions,Employment Programmes,04-Oct-11,EP PROVIDER PAYMENT - WORK PROGRAMME,COO,BEST LTD,2022699852,"54,400.00"
Department for Work and Pensions,Employment Programmes,04-Oct-11,EP PROVIDER PAYMENT - WORK PROGRAMME,COO,MAXIMUS EMPLOYMENT UK LTD,2022704854,"54,400.00"
Department for Work and Pensions,Housing Benefits,14-Oct-11,Housing Benefit Admin,COO,EASTLEIGH BOROUGH COUNCIL,2022862371,"54,293.00"
Department for Work and Pensions,Housing Benefits,14-Oct-11,Housing Benefit Admin,COO,TEST VALLEY BOROUGH COUNCIL,2022862590,"54,275.00"
Department for Work and Pensions,Housing Benefits,14-Oct-11,Housing Benefit Admin,COO,MIDLOTHIAN COUNCIL,2022862470,"54,224.00"
Department for Work and Pensions,Housing Benefits,14-Oct-11,Housing Benefit Admin,COO,BOLSOVER DISTRICT COUNCIL,2022862284,"54,204.00"
Department for Work and Pensions,Jobcentre Plus,27-Oct-11,EMPLOYMENT PROGRAMMES,Excluded,SHAW TRUST LTD,2023021980,"54,160.77"
Department for Work and Pensions,Employment Programmes,04-Oct-11,EP PROVIDER PAYMENT - WORK PROGRAMME,COO,INGEUS UK LTD,2022703673,"54,000.00"
Department for Work and Pensions,Housing Benefits,14-Oct-11,Housing Benefit Admin,COO,DARTFORD BOROUGH COUNCIL,2022862346,"53,981.00"
Department for Work and Pensions,Housing Benefits,14-Oct-11,Housing Benefit Admin,COO,HIGH PEAK BOROUGH COUNCIL,2022862407,"53,861.00"
Department for Work and Pensions,Housing Benefits,14-Oct-11,Housing Benefit Admin,COO,KETTERING BOROUGH COUNCIL,2022862417,"53,668.00"
Department for Work and Pensions,Corporate,20-Oct-11,PRINCES YOUTH TRUST,Change PMU,MORI SOCIAL RESEARCH INSTITUTE,2022937897,"53,590.00"
Department for Work and Pensions,Housing Benefits,14-Oct-11,Housing Benefit Admin,COO,STAFFORD BOROUGH COUNCIL,2022862569,"53,477.00"
Department for Work and Pensions,Housing Benefits,14-Oct-11,Housing Benefit Admin,COO,ST ALBANS DISTRICT COUNCIL,2022862566,"53,217.00"
Department for Work and Pensions,Jobcentre Plus,17-Oct-11,APPS DEV,Change PMU,HP ENTERPRISE SERVICES UK LTD,2022864834,"53,104.31"
Department for Work and Pensions,Jobcentre Plus,13-Oct-11,EMPLOYMENT PROGRAMMES,Excluded,WORKING LINKS,2022855789,"53,048.08"
Department for Work and Pensions,Corporate,17-Oct-11,AOS CONTRACTED OUT SERVICES,F&C,COMMERCIAL COLLECTION SERVICES LTD,2022862917,"53,015.89"
Department for Work and Pensions,Housing Benefits,14-Oct-11,Housing Benefit Admin,COO,SEVENOAKS DISTRICT COUNCIL,2022862539,"52,703.00"
Department for Work and Pensions,Corporate,14-Oct-11,TEMPORARY (TEMP) STAFF COSTS,CIT,CAPITA RESOURCING LTD,2022857996,"52,576.99"
Department for Work and Pensions,Housing Benefits,14-Oct-11,Housing Benefit Admin,COO,NORTH EAST DERBYSHIRE DISTRICT COUNCIL,2022862483,"52,479.00"
Department for Work and Pensions,Housing Benefits,14-Oct-11,Housing Benefit Admin,COO,VALE OF WHITE HORSE DISTRICT COUNCIL,2022862604,"52,472.00"
Department for Work and Pensions,Employment Programmes,04-Oct-11,EP PROVIDER PAYMENT - WORK PROGRAMME,COO,EOS WORKS LTD,2022703290,"52,400.00"
Department for Work and Pensions,Employment Programmes,04-Oct-11,EP PROVIDER PAYMENT - WORK PROGRAMME,COO,PERTEMPS,2022705202,"52,400.00"
Department for Work and Pensions,Corporate,18-Oct-11,COMPUTER SERVICES,CIT,HP ENTERPRISE SERVICES UK LTD,2022868574,"52,352.44"
Department for Work and Pensions,Housing Benefits,14-Oct-11,Housing Benefit Admin,COO,WEYMOUTH & PORTLAND BOROUGH COUNCIL,2022862623,"52,141.00"
Department for Work and Pensions,Housing Benefits,14-Oct-11,Housing Benefit Admin,COO,BROADLAND DISTRICT COUNCIL,2022862299,"51,871.00"
Department for Work and Pensions,Housing Benefits,14-Oct-11,Housing Benefit Admin,COO,WEST DORSET DISTRICT COUNCIL,2022862616,"51,703.00"
Department for Work and Pensions,Employment Programmes,04-Oct-11,EP PROVIDER PAYMENT - WORK PROGRAMME,COO,NEWCASTLE COLLEGE GROUP,2022705024,"51,600.00"
Department for Work and Pensions,Housing Benefits,06-Oct-11,Housing Benefit Admin,COO,LEEDS CITY COUNCIL,2022771231,"51,481.96"
Department for Work and Pensions,Housing Benefits,14-Oct-11,Housing Benefit Admin,COO,MID SUSSEX DISTRICT COUNCIL,2022862468,"51,302.00"
Department for Work and Pensions,Housing Benefits,14-Oct-11,Housing Benefit Admin,COO,CASTLE POINT DISTRICT COUNCIL,2022862312,"51,273.00"
Department for Work and Pensions,Housing Benefits,14-Oct-11,Housing Benefit Admin,COO,SOUTH HOLLAND DISTRICT COUNCIL,2022862552,"51,269.00"
Department for Work and Pensions,Housing Benefits,14-Oct-11,Housing Benefit Admin,COO,EAST HAMPSHIRE DISTRICT COUNCIL,2022862362,"51,086.00"
Department for Work and Pensions,Housing Benefits,06-Oct-11,Housing Benefit Admin,COO,MANCHESTER CITY COUNCIL,2022771423,"50,783.29"
Department for Work and Pensions,Jobcentre Plus,07-Oct-11,EU PROGRAMMES,COO,WYEA LTD,2022776965,"50,760.00"
Department for Work and Pensions,Housing Benefits,14-Oct-11,Housing Benefit Admin,COO,ROSSENDALE BOROUGH COUNCIL,2022862522,"50,717.00"
Department for Work and Pensions,Corporate,13-Oct-11,COMPUTER SERVICES,CIT,ACCENTURE UK LTD,2022852649,"50,539.18"
Department for Work and Pensions,Employment Programmes,04-Oct-11,EP PROVIDER PAYMENT - WORK PROGRAMME,COO,REED IN PARTNERSHIP LTD,2022705442,"50,400.00"
Department for Work and Pensions,Corporate,04-Oct-11,PRINCES YOUTH TRUST,Change PMU,SURREY COUNTY COUNCIL,1004972,"50,271.00"
Department for Work and Pensions,Housing Benefits,14-Oct-11,Housing Benefit Admin,COO,WAVERLEY BOROUGH COUNCIL,2022862611,"50,074.00"
Department for Work and Pensions,Employment Programmes,04-Oct-11,EP PROVIDER PAYMENT - WORK PROGRAMME,COO,AVANTA ENTERPRISE LTD,2022699761,"50,000.00"
Department for Work and Pensions,Employment Programmes,12-Oct-11,YOUNG PERSON'S GUARANTEE,COO,ORIENT REGENERATION TRUST LTD,2022833913,"49,950.00"
Department for Work and Pensions,Employment Programmes,18-Oct-11,EMPLOYMENT INITIATIVES,COO,WORKING LINKS,2022870611,"49,714.00"
Department for Work and Pensions,Housing Benefits,06-Oct-11,Housing Benefit Admin,COO,LIVERPOOL CITY COUNCIL,2022771245,"49,629.30"
Department for Work and Pensions,Housing Benefits,14-Oct-11,Housing Benefit Admin,COO,SOUTH STAFFORDSHIRE DISTRICT COUNCIL,2022862561,"49,608.00"
Department for Work and Pensions,Employment Programmes,04-Oct-11,EP PROVIDER PAYMENT - WORK PROGRAMME,COO,INGEUS UK LTD,2022703673,"49,600.00"
Department for Work and Pensions,Housing Benefits,14-Oct-11,Housing Benefit Admin,COO,NORTH WEST LEICESTER DISTRICT COUNCIL,2022862493,"49,400.00"
Department for Work and Pensions,Housing Benefits,14-Oct-11,Housing Benefit Admin,COO,CORBY BOROUGH COUNCIL,2022862335,"49,279.00"
Department for Work and Pensions,Housing Benefits,14-Oct-11,Housing Benefit Admin,COO,HORSHAM DISTRICT COUNCIL,2022862410,"49,267.00"
Department for Work and Pensions,Housing Benefits,14-Oct-11,Housing Benefit Admin,COO,HINCKLEY & BOSWORTH BOROUGH COUNCIL,2022862409,"49,143.00"
Department for Work and Pensions,Housing Benefits,14-Oct-11,Housing Benefit Admin,COO,SOUTH CAMBRIDGESHIRE DISTRICT COUNCIL,2022862548,"49,139.00"
Department for Work and Pensions,Corporate,27-Oct-11,COMPUTER SERVICES,CIT,CAPGEMINI UK PLC,2023018815,"48,913.00"
Department for Work and Pensions,Housing Benefits,14-Oct-11,Housing Benefit Admin,COO,FOREST OF DEAN DISTRICT COUNCIL,2022862385,"48,808.00"
Department for Work and Pensions,Employment Programmes,12-Oct-11,EP PROVIDER PAYMENT - NON-WORK PROGRAMME,COO,CAPITAL TRAINING GROUP LTD,2022799476,"48,748.00"
Department for Work and Pensions,Corporate,17-Oct-11,TEMPORARY (TEMP) STAFF COSTS,CIT,CAPITA RESOURCING LTD,2022862889,"48,665.42"
Department for Work and Pensions,Corporate,18-Oct-11,BANKING AND ENCASHMENT COSTS,F&C,VOCALINK,2022870565,"48,626.00"
Department for Work and Pensions,"Pension, Disability Carers Services",17-Oct-11,STATIONERY/ PUBLICATIONS/IT CONSUMABLES,Change PMU,HM REVENUE & CUSTOMS,2002826,"48,607.00"
Department for Work and Pensions,Corporate,31-Oct-11,ACCOMMODATION,F&C,TELEREAL TRILLIUM,2023030021,"48,598.87"
Department for Work and Pensions,Corporate,31-Oct-11,ACCOMMODATION,F&C,TELEREAL TRILLIUM,2023030020,"48,580.42"
Department for Work and Pensions,Corporate,18-Oct-11,COMPUTER SERVICES,CIT,BT GLOBAL SERVICES,2022867041,"48,522.00"
Department for Work and Pensions,Housing Benefits,14-Oct-11,Housing Benefit Admin,COO,SPELTHORNE BOROUGH COUNCIL,2022862565,"48,436.00"
Department for Work and Pensions,Employment Programmes,04-Oct-11,EP PROVIDER PAYMENT - WORK PROGRAMME,COO,INGEUS UK LTD,2022703673,"48,400.00"
Department for Work and Pensions,Housing Benefits,14-Oct-11,Housing Benefit Admin,COO,NORTH KESTEVEN DISTRICT COUNCIL,2022862486,"48,177.00"
Department for Work and Pensions,Jobcentre Plus,27-Oct-11,EMPLOYMENT PROGRAMMES,Excluded,WORKING LINKS,2023022197,"48,137.70"
Department for Work and Pensions,European Social Fund,24-Oct-11,ESF Expenditure,STR,CORNWALL COUNTY COUNCIL,5000000767,"48,123.00"
Department for Work and Pensions,Housing Benefits,14-Oct-11,Housing Benefit Admin,COO,SOUTH OXFORDSHIRE DISTRICT COUNCIL,2022862558,"48,080.00"
Department for Work and Pensions,Corporate,31-Oct-11,STAFF COSTS,HRD,FLETCHER CONSULTANCY,2023029064,"48,050.00"
Department for Work and Pensions,Employment Programmes,04-Oct-11,EP PROVIDER PAYMENT - WORK PROGRAMME,COO,A4E LTD,2022699696,"48,000.00"
Department for Work and Pensions,Housing Benefits,14-Oct-11,Housing Benefit Admin,COO,THE MORAY COUNCIL,2022862593,"47,965.00"
Department for Work and Pensions,Corporate,18-Oct-11,COMPUTER SERVICES,CIT,ACCENTURE,2022866914,"47,824.32"
Department for Work and Pensions,Employment Programmes,04-Oct-11,YOUNG PERSON'S GUARANTEE,COO,PROSPECT SERVICES LTD,2022705227,"47,800.00"
Department for Work and Pensions,Housing Benefits,14-Oct-11,Housing Benefit Admin,COO,LICHFIELD DISTRICT COUNCIL,2022862426,"47,741.00"
Department for Work and Pensions,Housing Benefits,14-Oct-11,Housing Benefit Admin,COO,COPELAND BOROUGH COUNCIL,2022862334,"47,635.00"
Department for Work and Pensions,Corporate,18-Oct-11,NETWORK,CIT,BT GLOBAL SERVICES,2022867041,"47,407.20"
Department for Work and Pensions,Employment Programmes,14-Oct-11,YOUNG PERSON'S GUARANTEE,COO,IXION HOLDINGS LTD,2022859800,"47,400.00"
Department for Work and Pensions,Employment Programmes,04-Oct-11,EP PROVIDER PAYMENT - WORK PROGRAMME,COO,A4E LTD,2022699696,"47,200.00"
Department for Work and Pensions,Employment Programmes,24-Oct-11,EMPLOYMENT INITIATIVES,COO,TNG WORKZONE LTD,2022948109,"47,086.00"
Department for Work and Pensions,Housing Benefits,14-Oct-11,Housing Benefit Admin,COO,EAST DUNBARTONSHIRE COUNCIL,2022862361,"46,979.00"
Department for Work and Pensions,Corporate,10-Oct-11,AOS CONTRACTED OUT SERVICES,F&C,CREDIT SOLUTIONS LTD,2022778662,"46,862.25"
Department for Work and Pensions,Employment Programmes,04-Oct-11,EP PROVIDER PAYMENT - WORK PROGRAMME,COO,EOS WORKS LTD,2022703290,"46,800.00"
Department for Work and Pensions,Employment Programmes,31-Oct-11,YOUNG PERSON'S GUARANTEE,COO,LONDON YOUTH,2023029462,"46,650.00"
Department for Work and Pensions,Corporate,31-Oct-11,ACCOMMODATION,F&C,TELEREAL TRILLIUM,2023030024,"46,561.56"
Department for Work and Pensions,Corporate,19-Oct-11,COMPUTER SERVICES,CIT,HP ENTERPRISE SERVICES UK LTD,2022893413,"46,530.87"
Department for Work and Pensions,Housing Benefits,14-Oct-11,Housing Benefit Admin,COO,MONMOUTHSHIRE COUNTY  COUNCIL,2022862473,"46,448.00"
Department for Work and Pensions,Employment Programmes,04-Oct-11,EP PROVIDER PAYMENT - WORK PROGRAMME,COO,NEWCASTLE COLLEGE GROUP,2022705024,"46,400.00"
Department for Work and Pensions,Housing Benefits,14-Oct-11,Housing Benefit Admin,COO,SOUTH HAMS DISTRICT COUNCIL,2022862551,"46,266.00"
Department for Work and Pensions,Housing Benefits,14-Oct-11,Housing Benefit Admin,COO,STIRLING COUNCIL,2022862572,"46,099.00"
Department for Work and Pensions,Housing Benefits,14-Oct-11,Housing Benefit Admin,COO,WEST OXFORDSHIRE DISTRICT COUNCIL,2022862621,"46,058.00"
Department for Work and Pensions,Employment Programmes,28-Oct-11,YOUNG PERSON'S GUARANTEE,COO,PERTH & KINROSS COUNCIL,2023026045,"45,900.00"
Department for Work and Pensions,Housing Benefits,14-Oct-11,Housing Benefit Admin,COO,WOKINGHAM DISTRICT COUNCIL,2022862630,"45,811.00"
Department for Work and Pensions,Housing Benefits,14-Oct-11,Housing Benefit Admin,COO,WOKING BOROUGH COUNCIL,2022862629,"45,675.00"
Department for Work and Pensions,Jobcentre Plus,20-Oct-11,EMPLOYMENT PROGRAMMES,Excluded,TOMORROWS PEOPLE TRUST LTD,2022938550,"45,660.78"
Department for Work and Pensions,Employment Programmes,04-Oct-11,EP PROVIDER PAYMENT - WORK PROGRAMME,COO,REHAB JOBFIT,2022705444,"45,600.00"
Department for Work and Pensions,Housing Benefits,14-Oct-11,Housing Benefit Admin,COO,ISLE OF ANGLESEY COUNTY COUNCIL,2022862415,"45,478.00"
Department for Work and Pensions,Corporate,31-Oct-11,ACCOMMODATION,F&C,TELEREAL TRILLIUM,2023030020,"45,333.96"
Department for Work and Pensions,Employment Programmes,04-Oct-11,EP PROVIDER PAYMENT - WORK PROGRAMME,COO,REHAB JOBFIT,2022705444,"45,200.00"
Department for Work and Pensions,Housing Benefits,14-Oct-11,Housing Benefit Admin,COO,TAMWORTH BOROUGH COUNCIL,2022862585,"44,914.00"
Department for Work and Pensions,Housing Benefits,14-Oct-11,Housing Benefit Admin,COO,WINCHESTER CITY COUNCIL,2022862626,"44,807.00"
Department for Work and Pensions,Jobcentre Plus,17-Oct-11,ACCOMMODATION COSTS,Change PMU,TELEREAL TRILLIUM,2022865589,"44,803.00"
Department for Work and Pensions,Corporate,17-Oct-11,APPS DEV,CIT,HP ENTERPRISE SERVICES UK LTD,2022864834,"44,768.75"
Department for Work and Pensions,Corporate,10-Oct-11,TELEPHONE AND POSTAGE,F&C,ROYAL MAIL GROUP PLC,2022781309,"44,297.63"
Department for Work and Pensions,Jobcentre Plus,27-Oct-11,EMPLOYMENT PROGRAMMES,Excluded,REED IN PARTNERSHIP LTD,2023021686,"44,233.38"
Department for Work and Pensions,Housing Benefits,14-Oct-11,Housing Benefit Admin,COO,EAST NORTHANTS DISTRICT COUNCIL,2022862366,"44,176.00"
Department for Work and Pensions,Jobcentre Plus,31-Oct-11,MANAGEMENT CONSULTANCY,COO,TELEREAL TRILLIUM,2023030023,"44,128.90"
Department for Work and Pensions,Employment Programmes,12-Oct-11,YOUNG PERSON'S GUARANTEE,COO,RNIB ROYAL NATIONAL INSTITUTE FOR THE BLIND,2022838255,"44,058.25"
Department for Work and Pensions,Corporate,31-Oct-11,ACCOMMODATION,F&C,TELEREAL TRILLIUM,2023030024,"43,861.52"
Department for Work and Pensions,Corporate,31-Oct-11,ACCOMMODATION,F&C,TELEREAL TRILLIUM,2023030020,"43,733.55"
Department for Work and Pensions,Corporate,13-Oct-11,EMPLOYMENT ZONES,Change PMU,STREET UK LTD,2022855620,"43,560.00"
Department for Work and Pensions,Employment Programmes,12-Oct-11,EP PROVIDER PAYMENT - NON-WORK PROGRAMME,COO,WORKING LINKS,2022849829,"43,546.00"
Department for Work and Pensions,Housing Benefits,14-Oct-11,Housing Benefit Admin,COO,BOSTON BOROUGH COUNCIL,2022862289,"43,363.00"
Department for Work and Pensions,Housing Benefits,14-Oct-11,Housing Benefit Admin,COO,FAREHAM BOROUGH COUNCIL,2022862380,"43,228.00"
Department for Work and Pensions,Jobcentre Plus,20-Oct-11,EMPLOYMENT PROGRAMMES,Excluded,STOKE ON TRENT COLLEGE,2022938452,"43,018.32"
Department for Work and Pensions,Employment Programmes,31-Oct-11,EP PROVIDER PAYMENT - WORK PROGRAMME,COO,INGEUS UK LTD,2023029185,"42,800.00"
Department for Work and Pensions,Housing Benefits,14-Oct-11,Housing Benefit Admin,COO,CEREDIGION COUNTY COUNCIL,2022862314,"42,774.00"
Department for Work and Pensions,Employment Programmes,20-Oct-11,RESIDENTIAL TRAINING,COO,RNIB ROYAL NATIONAL INSTITUTE FOR THE BLIND,2022938192,"42,543.33"
Department for Work and Pensions,Corporate,28-Oct-11,APPS DEV,CIT,HP ENTERPRISE SERVICES UK LTD,2023025370,"42,493.72"
Department for Work and Pensions,Housing Benefits,14-Oct-11,Housing Benefit Admin,COO,THREE RIVERS DISTRICT COUNCIL,2022862594,"42,440.00"
Department for Work and Pensions,European Social Fund,05-Oct-11,ESF Expenditure,STR,WIRRAL BOROUGH COUNCIL,5000000734,"42,306.00"
Department for Work and Pensions,Corporate,20-Oct-11,Accommodation Costs,F&C,DFE RM SHARED SERVICES,2002834,"42,219.00"
Department for Work and Pensions,Housing Benefits,14-Oct-11,Housing Benefit Admin,COO,STAFFORDSHIRE MOORLANDS DISTRICT COUNCIL,2022862570,"42,195.00"
Department for Work and Pensions,Employment Programmes,18-Oct-11,EMPLOYMENT INITIATIVES,COO,THE WISE GROUP,2022870504,"42,100.00"
Department for Work and Pensions,Employment Programmes,07-Oct-11,EP PROVIDER PAYMENT - WORK PROGRAMME,COO,G4S REGIONAL MANAGEMENT UK & I LTD,2022775537,"42,000.00"
Department for Work and Pensions,Corporate,24-Oct-11,EMPLOYMENT ZONES,Change PMU,CITY SAVE CREDIT UNION,2022945586,"42,000.00"
Department for Work and Pensions,Corporate,28-Oct-11,EMPLOYMENT ZONES,Change PMU,DERWENT & SOLWAY HOUSING ASSOCIATION,2023024437,"41,950.00"
Department for Work and Pensions,Housing Benefits,14-Oct-11,Housing Benefit Admin,COO,TORRIDGE DISTRICT COUNCIL,2022862599,"41,926.00"
Department for Work and Pensions,Jobcentre Plus,04-Oct-11,Accommodation Costs,COO,COPELAND BOROUGH COUNCIL,2022700230,"41,797.25"
Department for Work and Pensions,Jobcentre Plus,20-Oct-11,Accommodation Costs,COO,COPELAND BOROUGH COUNCIL,2022935630,"41,797.25"
Department for Work and Pensions,Jobcentre Plus,14-Oct-11,IS/IT,Change PMU,SPECIALIST COMPUTER CENTRES PLC,2022860731,"41,751.60"
Department for Work and Pensions,Housing Benefits,14-Oct-11,Housing Benefit Admin,COO,SOUTH LAKELAND DISTRICT COUNCIL,2022862554,"41,699.00"
Department for Work and Pensions,Housing Benefits,14-Oct-11,Housing Benefit Admin,COO,RUNNYMEDE BOROUGH COUNCIL,2022862527,"41,666.00"
Department for Work and Pensions,Corporate,31-Oct-11,ACCOMMODATION,F&C,TELEREAL TRILLIUM,2023030020,"41,557.62"
Department for Work and Pensions,Housing Benefits,14-Oct-11,Housing Benefit Admin,COO,BABERGH DISTRICT COUNCIL,2022862271,"41,488.00"
Department for Work and Pensions,Corporate,31-Oct-11,ACCOMMODATION,F&C,TELEREAL TRILLIUM,2023030024,"41,442.02"
Department for Work and Pensions,Employment Programmes,28-Oct-11,EU PROGRAMMES,COO,ST HELENS CHAMBERS LTD,2023026330,"41,400.00"
Department for Work and Pensions,Housing Benefits,14-Oct-11,Housing Benefit Admin,COO,COTSWOLD DISTRICT COUNCIL,2022862338,"41,367.00"
Department for Work and Pensions,Corporate,28-Oct-11,PAYMENTS TO CSAS,HRD,ATOS HEALTHCARE,2023024115,"41,353.86"
Department for Work and Pensions,"Pension, Disability Carers Services",18-Oct-11,APPS DEV,CIT,HP ENTERPRISE SERVICES UK LTD,2022868574,"41,310.71"
Department for Work and Pensions,Housing Benefits,14-Oct-11,Housing Benefit Admin,COO,TEWKESBURY BOROUGH COUNCIL,2022862591,"41,076.00"
Department for Work and Pensions,Corporate,13-Oct-11,EMPLOYMENT ZONES,Change PMU,LONDON COMMUNITY CREDIT UNION,2022854951,"41,000.00"
Department for Work and Pensions,Employment Programmes,03-Oct-11,YOUNG PERSON'S GUARANTEE,COO,SURREY COUNTY COUNCIL,2022698490,"40,800.00"
Department for Work and Pensions,Employment Programmes,10-Oct-11,EP PROVIDER PAYMENT - WORK PROGRAMME,COO,INGEUS UK LTD,2022780274,"40,800.00"
Department for Work and Pensions,Employment Programmes,20-Oct-11,EP PROVIDER PAYMENT - WORK PROGRAMME,COO,BEST LTD,2022935461,"40,800.00"
Department for Work and Pensions,Housing Benefits,14-Oct-11,Housing Benefit Admin,COO,MID DEVON DISTRICT COUNCIL,2022862466,"40,537.00"
Department for Work and Pensions,Housing Benefits,14-Oct-11,Housing Benefit Admin,COO,EAST CAMBRIDGESHIRE DISTRICT COUNCIL,2022862358,"40,444.00"
Department for Work and Pensions,Housing Benefits,14-Oct-11,Housing Benefit Admin,COO,SOUTH DERBYSHIRE DISTRICT COUNCIL,2022862549,"40,436.00"
Department for Work and Pensions,Employment Programmes,11-Oct-11,EP PROVIDER PAYMENT - WORK PROGRAMME,COO,MAXIMUS EMPLOYMENT UK LTD,2022786622,"40,400.00"
Department for Work and Pensions,Employment Programmes,17-Oct-11,YOUNG PERSON'S GUARANTEE,COO,ORIENT REGENERATION TRUST LTD,2022865264,"40,200.00"
Department for Work and Pensions,Corporate,17-Oct-11,STAFF COSTS,HRD,HAPPY COMPUTERS LTD,2022864822,"40,000.00"
Department for Work and Pensions,Employment Programmes,21-Oct-11,EP PROVIDER PAYMENT - WORK PROGRAMME,COO,G4S REGIONAL MANAGEMENT UK & I LTD,2022942860,"40,000.00"
Department for Work and Pensions,Jobcentre Plus,31-Oct-11,OTHER GOODS AND SERVICES,COO,VALUATION OFFICE AGENCY,2023030062,"39,930.00"
Department for Work and Pensions,Corporate,28-Oct-11,EMPLOYMENT ZONES,Change PMU,HULL & EAST YORKSHIRE CREDIT UNION LTD,2023025371,"39,900.00"
Department for Work and Pensions,Corporate,25-Oct-11,MISCELLANEOUS EXPENDITURE,PS,OXFORD INSTITUTE OF SOCIAL POLICY,2022952712,"39,820.00"
Department for Work and Pensions,Housing Benefits,14-Oct-11,Housing Benefit Admin,COO,RUSHCLIFFE BOROUGH COUNCIL,2022862528,"39,778.00"
Department for Work and Pensions,Corporate,14-Oct-11,TEMPORARY (TEMP) STAFF COSTS,CIT,CAPITA RESOURCING LTD,2022857996,"39,735.42"
Department for Work and Pensions,Employment Programmes,04-Oct-11,EP PROVIDER PAYMENT - WORK PROGRAMME,COO,INGEUS UK LTD,2022703673,"39,600.00"
Department for Work and Pensions,Corporate,20-Oct-11,COMPUTER SERVICES,CIT,ATOS ORIGIN IT SERVICES UK LTD,2022935393,"39,572.31"
Department for Work and Pensions,Housing Benefits,14-Oct-11,Housing Benefit Admin,COO,CLACKMANNANSHIRE COUNCIL,2022862330,"39,489.00"
Department for Work and Pensions,"Pension, Disability Carers Services",19-Oct-11,MISCELLANEOUS EXPENDITURE,Change PMU,IFF RESEARCH,2022893857,"39,424.00"
Department for Work and Pensions,Housing Benefits,14-Oct-11,Housing Benefit Admin,COO,HAMBLETON DISTRICT COUNCIL,2022862397,"39,421.00"
Department for Work and Pensions,Jobcentre Plus,20-Oct-11,EMPLOYMENT PROGRAMMES,Excluded,BTCV,2022935486,"39,416.87"
Department for Work and Pensions,Jobcentre Plus,04-Oct-11,Accommodation Costs,COO,GROUNDWORK UK,2022703500,"39,357.47"
Department for Work and Pensions,Employment Programmes,12-Oct-11,YOUNG PERSON'S GUARANTEE,COO,LONDON BOROUGH OF LEWISHAM,2022826608,"39,300.00"
Department for Work and Pensions,Corporate,31-Oct-11,ACCOMMODATION,F&C,TELEREAL TRILLIUM,2023030020,"39,261.00"
Department for Work and Pensions,Employment Programmes,18-Oct-11,EP PROVIDER PAYMENT - WORK PROGRAMME,COO,A4E LTD,2022866906,"39,200.00"
Department for Work and Pensions,"Pension, Disability Carers Services",18-Oct-11,COMPUTER SERVICES,CIT,HP ENTERPRISE SERVICES UK LTD,2022868574,"39,145.41"
Department for Work and Pensions,Corporate,17-Oct-11,TEMPORARY (TEMP) STAFF COSTS,CIT,CAPITA RESOURCING LTD,2022862889,"39,072.54"
Department for Work and Pensions,Jobcentre Plus,13-Oct-11,EMPLOYMENT PROGRAMMES,Excluded,REMPLOY,2022855397,"39,035.68"
Department for Work and Pensions,Corporate,21-Oct-11,STAFF COSTS,HRD,ELISHA TRAINING LTD,2022942783,"38,910.00"
Department for Work and Pensions,Employment Programmes,14-Oct-11,EP PROVIDER PAYMENT - WORK PROGRAMME,COO,INGEUS UK LTD,2022859793,"38,800.00"
Department for Work and Pensions,Corporate,04-Oct-11,AOS CONTRACTED OUT SERVICES,PS,COI TRADING FUND,2022700218,"38,727.90"
Department for Work and Pensions,Employment Programmes,18-Oct-11,ACCESS TO WORK,COO,ROYAL BRITISH LEGION INDUSTRIES,2022870001,"38,716.97"
Department for Work and Pensions,Housing Benefits,14-Oct-11,Housing Benefit Admin,COO,MID SUFFOLK DISTRICT COUNCIL,2022862467,"38,488.00"
Department for Work and Pensions,Employment Programmes,04-Oct-11,EP PROVIDER PAYMENT - WORK PROGRAMME,COO,WORKING LINKS,2022706268,"38,400.00"
Department for Work and Pensions,Jobcentre Plus,06-Oct-11,EMPLOYMENT PROGRAMMES,Excluded,SHAW TRUST LTD,2022771910,"38,393.57"
Department for Work and Pensions,Housing Benefits,14-Oct-11,Housing Benefit Admin,COO,EAST DORSET DISTRICT COUNCIL,2022862360,"38,262.00"
Department for Work and Pensions,Employment Programmes,11-Oct-11,EP PROVIDER PAYMENT - WORK PROGRAMME,COO,WORKING LINKS,2022787722,"38,000.00"
Department for Work and Pensions,Employment Programmes,18-Oct-11,EP PROVIDER PAYMENT - WORK PROGRAMME,COO,WORKING LINKS,2022870612,"38,000.00"
Department for Work and Pensions,Corporate,18-Oct-11,APPS DEV,PS,HP ENTERPRISE SERVICES UK LTD,2022868574,"37,926.26"
Department for Work and Pensions,Housing Benefits,14-Oct-11,Housing Benefit Admin,COO,FYLDE BOROUGH COUNCIL,2022862386,"37,921.00"
Department for Work and Pensions,Housing Benefits,06-Oct-11,Housing Benefit Admin,COO,SHEFFIELD CITY COUNCIL,2022771911,"37,916.72"
Department for Work and Pensions,Jobcentre Plus,05-Oct-11,EU PROGRAMMES,COO,A4E LTD,2022712360,"37,745.00"
Department for Work and Pensions,Housing Benefits,14-Oct-11,Housing Benefit Admin,COO,SELBY DISTRICT COUNCIL,2022862538,"37,652.00"
Department for Work and Pensions,Employment Programmes,19-Oct-11,EP PROVIDER PAYMENT - WORK PROGRAMME,COO,A4E LTD,2022876757,"37,600.00"
Department for Work and Pensions,Jobcentre Plus,18-Oct-11,COMPUTER SERVICES,Change PMU,SPECIALIST COMPUTER CENTRES PLC,2022870373,"37,567.00"
Department for Work and Pensions,Housing Benefits,14-Oct-11,Housing Benefit Admin,COO,CHILTERN DISTRICT COUNCIL,2022862323,"37,274.00"
Department for Work and Pensions,Employment Programmes,03-Oct-11,YOUNG PERSON'S GUARANTEE,COO,SOLIHULL METROPOLITAN BOROUGH COUNCIL,2022698489,"37,200.00"
Department for Work and Pensions,Employment Programmes,04-Oct-11,EP PROVIDER PAYMENT - WORK PROGRAMME,COO,INGEUS UK LTD,2022703673,"37,200.00"
Department for Work and Pensions,Employment Programmes,10-Oct-11,EP PROVIDER PAYMENT - WORK PROGRAMME,COO,INGEUS UK LTD,2022780274,"37,200.00"
Department for Work and Pensions,Corporate,17-Oct-11,MISCELLANEOUS EXPENDITURE,PS,NATCEN,2022865251,"37,000.00"
Department for Work and Pensions,Corporate,24-Oct-11,AOS CONTRACTED OUT SERVICES,PS,COI TRADING FUND,2022945597,"36,944.06"
Department for Work and Pensions,Corporate,17-Oct-11,TEMPORARY (TEMP) STAFF COSTS,Change PMU,CAPITA RESOURCING LTD,2022862889,"36,941.28"
Department for Work and Pensions,Corporate,24-Oct-11,AOS CONTRACTED OUT SERVICES,F&C,FAIRFAX SOLICITORS LTD,2022946961,"36,876.25"
Department for Work and Pensions,Housing Benefits,06-Oct-11,Housing Benefit Admin,COO,DURHAM COUNCIL,2022774046,"36,856.94"
Department for Work and Pensions,Housing Benefits,14-Oct-11,Housing Benefit Admin,COO,ROCHFORD DISTRICT COUNCIL,2022862521,"36,812.00"
Department for Work and Pensions,Employment Programmes,18-Oct-11,ACCESS TO WORK,COO,SCOUT ENTERPRISES WESTERN LTD,2022870343,"36,577.48"
Department for Work and Pensions,Employment Programmes,11-Oct-11,EP PROVIDER PAYMENT - WORK PROGRAMME,COO,INGEUS UK LTD,2022785675,"36,400.00"
Department for Work and Pensions,Corporate,13-Oct-11,EMPLOYMENT ZONES,Change PMU,CLOCKWISE LEICESTER CREDIT UNION,2022852883,"36,400.00"
Department for Work and Pensions,Housing Benefits,14-Oct-11,Housing Benefit Admin,COO,BROMSGROVE DISTRICT COUNCIL,2022862300,"36,360.00"
Department for Work and Pensions,Housing Benefits,14-Oct-11,Housing Benefit Admin,COO,BLABY DISTRICT COUNCIL,2022862280,"36,318.00"
Department for Work and Pensions,Housing Benefits,14-Oct-11,Housing Benefit Admin,COO,ADUR DISTRICT COUNCIL,2022862262,"36,057.00"
Department for Work and Pensions,"Pension, Disability Carers Services",18-Oct-11,Accommodation Costs,COO,SOUTHERN ELECTRIC PLC,2022870371,"36,010.12"
Department for Work and Pensions,Employment Programmes,18-Oct-11,EP PROVIDER PAYMENT - WORK PROGRAMME,COO,INGEUS UK LTD,2022868614,"36,000.00"
Department for Work and Pensions,Housing Benefits,14-Oct-11,Housing Benefit Admin,COO,MALVERN HILLS DISTRICT COUNCIL,2022862460,"35,954.00"
Department for Work and Pensions,Employment Programmes,31-Oct-11,YOUNG PERSON'S GUARANTEE,COO,BARNARDOS,2023027762,"35,850.00"
Department for Work and Pensions,Corporate,25-Oct-11,TEMPORARY (TEMP) STAFF COSTS,CIT,CAPITA RESOURCING LTD,2022949811,"35,838.90"
Department for Work and Pensions,Jobcentre Plus,17-Oct-11,Accommodation Costs,COO,LAND REGISTRY,2022865100,"35,814.39"
Department for Work and Pensions,Employment Programmes,04-Oct-11,EP PROVIDER PAYMENT - WORK PROGRAMME,COO,CAREERS DEVELOPMENT GROUP,2022700174,"35,600.00"
Department for Work and Pensions,Employment Programmes,12-Oct-11,YOUNG PERSON'S GUARANTEE,COO,NATIONAL SKILLS ACADEMY FOR SPORT & ACTIVE LEISURE,2022833729,"35,400.00"
Department for Work and Pensions,Housing Benefits,14-Oct-11,Housing Benefit Admin,COO,EAST RENFREWSHIRE COUNCIL,2022862367,"35,320.00"
Department for Work and Pensions,European Social Fund,24-Oct-11,ESF Expenditure,STR,MEDWAY COUNCIL,5000000769,"35,261.00"
Department for Work and Pensions,Employment Programmes,21-Oct-11,YOUNG PERSON'S GUARANTEE,COO,NEWPORT CITY COUNCIL,2022945209,"35,250.00"
Department for Work and Pensions,Employment Programmes,31-Oct-11,ACCESS TO WORK,COO,KEY 4 LEARNING LTD T/A A2A,2023029367,"35,221.86"
Department for Work and Pensions,Employment Programmes,06-Oct-11,EP PROVIDER PAYMENT - WORK PROGRAMME,COO,A4E LTD,2022769664,"35,200.00"
Department for Work and Pensions,Employment Programmes,18-Oct-11,EP PROVIDER PAYMENT - WORK PROGRAMME,COO,BEST LTD,2022867019,"35,200.00"
Department for Work and Pensions,European Social Fund,11-Oct-11,ESF Expenditure,STR,UNIVERSITY OF SUNDERLAND,5000000752,"35,015.00"
Department for Work and Pensions,Corporate,18-Oct-11,EMPLOYMENT ZONES,Change PMU,KINGDOM CREDIT UNION,2022869096,"35,000.00"
Department for Work and Pensions,Jobcentre Plus,20-Oct-11,EMPLOYMENT PROGRAMMES,Excluded,INGEUS UK LTD,2022937303,"34,993.35"
Department for Work and Pensions,Housing Benefits,14-Oct-11,Housing Benefit Admin,COO,DAVENTRY DISTRICT COUNCIL,2022862347,"34,956.00"
Department for Work and Pensions,Employment Programmes,04-Oct-11,EP PROVIDER PAYMENT - WORK PROGRAMME,COO,INGEUS UK LTD,2022703673,"34,800.00"
Department for Work and Pensions,Corporate,18-Oct-11,COMPUTER SERVICES,Change PMU,HP ENTERPRISE SERVICES UK LTD,2022868574,"34,719.39"
Department for Work and Pensions,Housing Benefits,14-Oct-11,Housing Benefit Admin,COO,MOLE VALLEY DISTRICT COUNCIL,2022862472,"34,684.00"
Department for Work and Pensions,Housing Benefits,14-Oct-11,Housing Benefit Admin,COO,NORTH WARWICKSHIRE DISTRICT COUNCIL,2022862492,"34,654.00"
Department for Work and Pensions,Corporate,11-Oct-11,COMPUTER SERVICES,CIT,SPECIALIST COMPUTER CENTRES PLC,2022787481,"34,533.72"
Department for Work and Pensions,Corporate,10-Oct-11,PROFESSIONAL FEES,Change PMU,COMPASS MANAGEMENT CONSULTING,2022778654,"34,422.00"
Department for Work and Pensions,Employment Programmes,06-Oct-11,EP PROVIDER PAYMENT - WORK PROGRAMME,COO,WORKING LINKS,2022772183,"34,400.00"
Department for Work and Pensions,Corporate,18-Oct-11,EMPLOYMENT ZONES,Change PMU,KNOWSLEY CREDIT UNION,2022869100,"34,400.00"
Department for Work and Pensions,Employment Programmes,19-Oct-11,EP PROVIDER PAYMENT - WORK PROGRAMME,COO,INGEUS UK LTD,2022893860,"34,400.00"
Department for Work and Pensions,Employment Programmes,24-Oct-11,EP PROVIDER PAYMENT - WORK PROGRAMME,COO,WORKING LINKS,2022948181,"34,400.00"
Department for Work and Pensions,Employment Programmes,25-Oct-11,EP PROVIDER PAYMENT - WORK PROGRAMME,COO,INGEUS UK LTD,2022951614,"34,400.00"
Department for Work and Pensions,Housing Benefits,14-Oct-11,Housing Benefit Admin,COO,FOREST HEATH DISTRICT COUNCIL,2022862384,"34,169.00"
Department for Work and Pensions,Corporate,18-Oct-11,COMPUTER SERVICES,F&C,FUJITSU SERVICES LTD,2022868360,"34,107.00"
Department for Work and Pensions,Corporate,17-Oct-11,EMPLOYMENT ZONES,Change PMU,BRISTOL CITY CREDIT UNION,2022862804,"34,080.00"
Department for Work and Pensions,Employment Programmes,04-Oct-11,EP PROVIDER PAYMENT - WORK PROGRAMME,COO,WORKING LINKS,2022706268,"34,000.00"
Department for Work and Pensions,Employment Programmes,07-Oct-11,EP PROVIDER PAYMENT - WORK PROGRAMME,COO,INGEUS UK LTD,2022775656,"34,000.00"
Department for Work and Pensions,Employment Programmes,21-Oct-11,EP PROVIDER PAYMENT - WORK PROGRAMME,COO,AVANTA ENTERPRISE LTD,2022940981,"34,000.00"
Department for Work and Pensions,Employment Programmes,21-Oct-11,EP PROVIDER PAYMENT - WORK PROGRAMME,COO,INGEUS UK LTD,2022942926,"34,000.00"
Department for Work and Pensions,Corporate,21-Oct-11,EMPLOYMENT ZONES,Change PMU,RIVERSIDE CREDIT UNION,2022943626,"34,000.00"
Department for Work and Pensions,Employment Programmes,26-Oct-11,EP PROVIDER PAYMENT - WORK PROGRAMME,COO,INGEUS UK LTD,2022976784,"34,000.00"
Department for Work and Pensions,Employment Programmes,12-Oct-11,EP PROVIDER PAYMENT - NON-WORK PROGRAMME,COO,REED IN PARTNERSHIP LTD,2022838241,"33,929.00"
Department for Work and Pensions,Corporate,31-Oct-11,ACCOMMODATION,F&C,TELEREAL TRILLIUM,2023030024,"33,641.02"
Department for Work and Pensions,Housing Benefits,14-Oct-11,Housing Benefit Admin,COO,TANDRIDGE DISTRICT COUNCIL,2022862586,"33,605.00"
Department for Work and Pensions,Employment Programmes,04-Oct-11,EP PROVIDER PAYMENT - WORK PROGRAMME,COO,ESG HOLDINGS LIMITED,2022703294,"33,600.00"
Department for Work and Pensions,Corporate,11-Oct-11,EMPLOYMENT ZONES,Change PMU,LANCASHIRE COMMUNITY FINANCE IPS LTD,2022786358,"33,600.00"
Department for Work and Pensions,Employment Programmes,13-Oct-11,EP PROVIDER PAYMENT - WORK PROGRAMME,COO,BEST LTD,2022852718,"33,600.00"
Department for Work and Pensions,Employment Programmes,17-Oct-11,EP PROVIDER PAYMENT - WORK PROGRAMME,COO,INGEUS UK LTD,2022864852,"33,600.00"
Department for Work and Pensions,"Pension, Disability Carers Services",10-Oct-11,TELEPHONE AND POSTAGE,COO,ROYAL MAIL GROUP PLC,2022781309,"33,563.02"
Department for Work and Pensions,Employment Programmes,11-Oct-11,RESIDENTIAL TRAINING,COO,ENHAM,2022785374,"33,481.75"
Department for Work and Pensions,Housing Benefits,14-Oct-11,Housing Benefit Admin,COO,SURREY HEATH BOROUGH COUNCIL,2022862580,"33,368.00"
Department for Work and Pensions,Employment Programmes,04-Oct-11,EP PROVIDER PAYMENT - WORK PROGRAMME,COO,INGEUS UK LTD,2022703673,"33,200.00"
Department for Work and Pensions,Corporate,14-Oct-11,EMPLOYMENT ZONES,Change PMU,LASER CREDIT UNION LTD,2022860131,"33,200.00"
Department for Work and Pensions,Employment Programmes,26-Oct-11,EP PROVIDER PAYMENT - WORK PROGRAMME,COO,BEST LTD,2022960828,"33,200.00"
Department for Work and Pensions,Employment Programmes,27-Oct-11,EP PROVIDER PAYMENT - WORK PROGRAMME,COO,BEST LTD,2023018642,"33,200.00"
Department for Work and Pensions,Corporate,13-Oct-11,EMPLOYMENT ZONES,Change PMU,UNIFY CREDIT UNION LTD,2022855723,"33,000.00"
Department for Work and Pensions,Jobcentre Plus,18-Oct-11,COMPUTER SERVICES,Change PMU,BT GLOBAL SERVICES,2022867041,"32,997.18"
Department for Work and Pensions,Employment Programmes,25-Oct-11,ACCESS TO WORK,COO,UNIVERSITY OF LONDON,2022953615,"32,926.68"
Department for Work and Pensions,Employment Programmes,25-Oct-11,EP PROVIDER PAYMENT - WORK PROGRAMME,COO,A4E LTD,2022949448,"32,800.00"
Department for Work and Pensions,Employment Programmes,27-Oct-11,EP PROVIDER PAYMENT - WORK PROGRAMME,COO,INGEUS UK LTD,2023020578,"32,800.00"
Department for Work and Pensions,Corporate,04-Oct-11,TEMPORARY (TEMP) STAFF COSTS,Change PMU,NORTHERN IRELAND SOCIAL SECURITY AGENCY,1004971,"32,714.40"
Department for Work and Pensions,Corporate,21-Oct-11,EMPLOYMENT ZONES,Change PMU,CAPITAL CREDIT UNION LTD,2022941139,"32,600.00"
Department for Work and Pensions,Employment Programmes,04-Oct-11,ACCESS TO WORK,COO,KEY 4 LEARNING LTD T/A A2A,2022704273,"32,595.09"
Department for Work and Pensions,Housing Benefits,14-Oct-11,Housing Benefit Admin,COO,BRENTWOOD DISTRICT COUNCIL,2022862295,"32,562.00"
Department for Work and Pensions,Employment Programmes,10-Oct-11,EP PROVIDER PAYMENT - WORK PROGRAMME,COO,WORKING LINKS,2022781773,"32,400.00"
Department for Work and Pensions,Employment Programmes,11-Oct-11,EP PROVIDER PAYMENT - WORK PROGRAMME,COO,INGEUS UK LTD,2022785675,"32,400.00"
Department for Work and Pensions,Employment Programmes,12-Oct-11,EP PROVIDER PAYMENT - WORK PROGRAMME,COO,MAXIMUS EMPLOYMENT UK LTD,2022831190,"32,400.00"
Department for Work and Pensions,Employment Programmes,26-Oct-11,EP PROVIDER PAYMENT - WORK PROGRAMME,COO,A4E LTD,2022959752,"32,400.00"
Department for Work and Pensions,Employment Programmes,07-Oct-11,EP PROVIDER PAYMENT - WORK PROGRAMME,COO,INGEUS UK LTD,2022775656,"32,000.00"
Department for Work and Pensions,Employment Programmes,14-Oct-11,EP PROVIDER PAYMENT - WORK PROGRAMME,COO,JHP GROUP LTD,2022859961,"32,000.00"
Department for Work and Pensions,Jobcentre Plus,07-Oct-11,PRINTING STATIONERY IT CONSUMABLES,COO,XEROX UK LTD 3W,2022776968,"31,894.80"
Department for Work and Pensions,Corporate,18-Oct-11,COMPUTER SERVICES,Change PMU,ACCENTURE UK LTD,2022866916,"31,782.45"
Department for Work and Pensions,Housing Benefits,06-Oct-11,Housing Benefit Admin,COO,LONDON BOROUGH OF HACKNEY,2022771261,"31,769.97"
Department for Work and Pensions,Housing Benefits,14-Oct-11,Housing Benefit Admin,COO,MALDON DISTRICT COUNCIL,2022862459,"31,728.00"
Department for Work and Pensions,Employment Programmes,12-Oct-11,EP PROVIDER PAYMENT - WORK PROGRAMME,COO,WORKING LINKS,2022849829,"31,600.00"
Department for Work and Pensions,Jobcentre Plus,27-Oct-11,EMPLOYMENT PROGRAMMES,Excluded,PERSONAL DEVELOPMENT RESOURCE CENTRES LTD,2023021553,"31,547.35"
Department for Work and Pensions,Housing Benefits,14-Oct-11,Housing Benefit Admin,COO,NORTH DORSET DISTRICT COUNCIL,2022862482,"31,530.00"
Department for Work and Pensions,"Pension, Disability Carers Services",20-Oct-11,"OFFICE SUPPLIES, PRINTING AND PUBLICITY",COO,XEROX UK LTD 3W,2022938625,"31,509.93"
Department for Work and Pensions,Housing Benefits,06-Oct-11,Housing Benefit Admin,COO,BRISTOL CITY COUNCIL,2022769780,"31,495.22"
Department for Work and Pensions,Jobcentre Plus,27-Oct-11,EU PROGRAMMES,COO,A4E LTD,2023018527,"31,454.17"
Department for Work and Pensions,Housing Benefits,06-Oct-11,Housing Benefit Admin,COO,LONDON BOROUGH OF LAMBETH,2022771268,"31,330.36"
Department for Work and Pensions,Corporate,14-Oct-11,TEMPORARY (TEMP) STAFF COSTS,Change PMU,CAPITA RESOURCING LTD,2022857996,"31,248.47"
Department for Work and Pensions,Employment Programmes,04-Oct-11,EP PROVIDER PAYMENT - WORK PROGRAMME,COO,REHAB JOBFIT,2022705444,"31,200.00"
Department for Work and Pensions,Employment Programmes,12-Oct-11,EP PROVIDER PAYMENT - WORK PROGRAMME,COO,INGEUS UK LTD,2022810868,"31,200.00"
Department for Work and Pensions,Employment Programmes,31-Oct-11,EP PROVIDER PAYMENT - WORK PROGRAMME,COO,CAREERS DEVELOPMENT GROUP,2023027872,"31,200.00"
Department for Work and Pensions,Corporate,18-Oct-11,COMPUTER SERVICES,CIT,BT GLOBAL SERVICES,2022867041,"31,119.00"
Department for Work and Pensions,Housing Benefits,06-Oct-11,Housing Benefit Admin,COO,CORNWALL COUNCIL,2022774045,"31,079.15"
Department for Work and Pensions,Jobcentre Plus,18-Oct-11,COMPUTER SERVICES,Change PMU,ACCENTURE UK LTD,2022866916,"31,073.98"
Department for Work and Pensions,Housing Benefits,06-Oct-11,Housing Benefit Admin,COO,BRADFORD MBC,2022769774,"31,032.05"
Department for Work and Pensions,Housing Benefits,14-Oct-11,Housing Benefit Admin,COO,EPSOM & EWELL BOROUGH COUNCIL,2022862376,"30,963.00"
Department for Work and Pensions,Corporate,31-Oct-11,ACCOMMODATION,F&C,TELEREAL TRILLIUM,2023030021,"30,957.22"
Department for Work and Pensions,Jobcentre Plus,19-Oct-11,EU PROGRAMMES,COO,GATESHEAD COUNCIL,2022891829,"30,831.00"
Department for Work and Pensions,Employment Programmes,12-Oct-11,EP PROVIDER PAYMENT - WORK PROGRAMME,COO,INGEUS UK LTD,2022810868,"30,800.00"
Department for Work and Pensions,Employment Programmes,17-Oct-11,EP PROVIDER PAYMENT - WORK PROGRAMME,COO,INGEUS UK LTD,2022864852,"30,800.00"
Department for Work and Pensions,Employment Programmes,17-Oct-11,EP PROVIDER PAYMENT - WORK PROGRAMME,COO,SEETEC BUSINESS TECHNOLOGY CENTRE LTD,2022865513,"30,800.00"
Department for Work and Pensions,Jobcentre Plus,20-Oct-11,EU PROGRAMMES,COO,BLACK COUNTRY CHAMBER OF COMMERCE,2022935467,"30,678.26"
Department for Work and Pensions,Employment Programmes,04-Oct-11,ACCESS TO WORK,COO,SOUTH WEST LONDON & ST GEORGES NHS TRUST,2022705926,"30,630.35"
Department for Work and Pensions,Jobcentre Plus,17-Oct-11,Accommodation Costs,COO,VALUATION OFFICE AGENCY,2022865629,"30,557.02"
Department for Work and Pensions,Jobcentre Plus,20-Oct-11,EMPLOYMENT PROGRAMMES,Excluded,RBLI ROYAL BRITISH LEGION INDUSTRIES LTD,2022938175,"30,490.11"
Department for Work and Pensions,Jobcentre Plus,20-Oct-11,EMPLOYMENT PROGRAMMES,Excluded,PERSONAL DEVELOPMENT RESOURCE CENTRES LTD,2022938065,"30,452.89"
Department for Work and Pensions,Corporate,31-Oct-11,ACCOMMODATION,F&C,TELEREAL TRILLIUM,2023030021,"30,449.02"
Department for Work and Pensions,Employment Programmes,04-Oct-11,EP PROVIDER PAYMENT - WORK PROGRAMME,COO,MAXIMUS EMPLOYMENT UK LTD,2022704854,"30,400.00"
Department for Work and Pensions,Employment Programmes,14-Oct-11,EP PROVIDER PAYMENT - WORK PROGRAMME,COO,INGEUS UK LTD,2022859793,"30,400.00"
Department for Work and Pensions,Employment Programmes,20-Oct-11,EP PROVIDER PAYMENT - WORK PROGRAMME,COO,INGEUS UK LTD,2022937304,"30,400.00"
Department for Work and Pensions,Employment Programmes,31-Oct-11,EP PROVIDER PAYMENT - WORK PROGRAMME,COO,INGEUS UK LTD,2023029185,"30,400.00"
Department for Work and Pensions,Employment Programmes,03-Oct-11,YOUNG PERSON'S GUARANTEE,COO,DUDLEY MBC,2022698243,"30,300.00"
Department for Work and Pensions,Corporate,10-Oct-11,TELEPHONE AND POSTAGE,F&C,POST OFFICE LTD,2022781187,"30,200.00"
Department for Work and Pensions,Corporate,31-Oct-11,EMPLOYMENT ZONES,Change PMU,NORRIS GREEN COMMUNITY CREDIT UNION,2023029634,"30,140.00"
Department for Work and Pensions,Housing Benefits,06-Oct-11,Housing Benefit Admin,COO,EDINBURGH DISTRICT COUNCIL,2022770680,"30,066.47"
Department for Work and Pensions,Corporate,25-Oct-11,OTHER GOODS AND SERVICES,Change PMU,DLA PIPER UK,2022950046,"30,039.02"
Department for Work and Pensions,Employment Programmes,04-Oct-11,EP PROVIDER PAYMENT - WORK PROGRAMME,COO,AVANTA ENTERPRISE LTD,2022699761,"30,000.00"
Department for Work and Pensions,Corporate,13-Oct-11,BANKING AND ENCASHMENT COSTS,F&C,CITIBANK GLOBAL CORPORATE BANKING,2022852877,"30,000.00"
Department for Work and Pensions,"Pension, Disability Carers Services",25-Oct-11,PROFESSIONAL FEES,STR,TNS BMRB,2022953593,"30,000.00"
Department for Work and Pensions,Housing Benefits,06-Oct-11,Housing Benefit Admin,COO,LONDON BOROUGH OF SOUTHWARK,2022771276,"29,901.61"
Department for Work and Pensions,Corporate,31-Oct-11,ACCOMMODATION,F&C,TELEREAL TRILLIUM,2023030020,"29,842.02"
Department for Work and Pensions,Corporate,21-Oct-11,TOTAL SUPPLIES & SERVICES,HRD,ASE CORPORATE EYECARE LTD,2022940976,"29,822.00"
Department for Work and Pensions,Employment Programmes,04-Oct-11,EP PROVIDER PAYMENT - WORK PROGRAMME,COO,INGEUS UK LTD,2022703673,"29,600.00"
Department for Work and Pensions,Employment Programmes,12-Oct-11,EP PROVIDER PAYMENT - WORK PROGRAMME,COO,SEETEC BUSINESS TECHNOLOGY CENTRE LTD,2022845622,"29,600.00"
Department for Work and Pensions,Corporate,20-Oct-11,COMPUTER SERVICES,F&C,ATOS ORIGIN IT SERVICES UK LTD,2022935393,"29,501.10"
Department for Work and Pensions,Corporate,11-Oct-11,STAFF COSTS,HRD,ASPERITY EMPLOYEE BENEFITS LTD,2022783200,"29,490.00"
Department for Work and Pensions,Corporate,18-Oct-11,APPS DEV,CIT,HP ENTERPRISE SERVICES UK LTD,2022868574,"29,479.00"
Department for Work and Pensions,Jobcentre Plus,27-Oct-11,EMPLOYMENT PROGRAMMES,Excluded,REMPLOY,2023021691,"29,383.50"
Department for Work and Pensions,Employment Programmes,04-Oct-11,ACCESS TO WORK,COO,AME DISABILITY CONSULTANT,2022699742,"29,328.00"
Department for Work and Pensions,Employment Programmes,11-Oct-11,YOUNG PERSON'S GUARANTEE,COO,GROUNDWORK WEST MIDLANDS,2022785546,"29,250.00"
Department for Work and Pensions,Employment Programmes,04-Oct-11,EP PROVIDER PAYMENT - WORK PROGRAMME,COO,INGEUS UK LTD,2022703673,"29,200.00"
Department for Work and Pensions,Employment Programmes,20-Oct-11,EP PROVIDER PAYMENT - WORK PROGRAMME,COO,WORKING LINKS,2022938617,"29,200.00"
Department for Work and Pensions,Employment Programmes,26-Oct-11,ACCESS TO WORK,COO,SOUTH WEST LONDON & ST GEORGES NHS TRUST,2023011463,"29,004.05"
Department for Work and Pensions,Housing Benefits,14-Oct-11,Housing Benefit Admin,COO,HARBOROUGH DISTRICT COUNCIL,2022862398,"28,886.00"
Department for Work and Pensions,Jobcentre Plus,20-Oct-11,EMPLOYMENT PROGRAMMES,Excluded,BTCV ENTERPRISES LTD,2022935489,"28,844.21"
Department for Work and Pensions,Employment Programmes,04-Oct-11,EP PROVIDER PAYMENT - WORK PROGRAMME,COO,A4E LTD,2022699696,"28,800.00"
Department for Work and Pensions,Employment Programmes,17-Oct-11,EP PROVIDER PAYMENT - WORK PROGRAMME,COO,WORKING LINKS,2022865650,"28,800.00"
Department for Work and Pensions,Employment Programmes,24-Oct-11,EP PROVIDER PAYMENT - WORK PROGRAMME,COO,A4E LTD,2022945360,"28,800.00"
Department for Work and Pensions,Employment Programmes,25-Oct-11,EP PROVIDER PAYMENT - WORK PROGRAMME,COO,BEST LTD,2022949548,"28,800.00"
Department for Work and Pensions,Housing Benefits,14-Oct-11,Housing Benefit Admin,COO,CHRISTCHURCH BOROUGH COUNCIL,2022862325,"28,680.00"
Department for Work and Pensions,Housing Benefits,06-Oct-11,Housing Benefit Admin,COO,LONDON BOROUGH OF NEWHAM HB,2022771271,"28,622.02"
Department for Work and Pensions,Corporate,18-Oct-11,EMPLOYMENT ZONES,Change PMU,EREWASH CREDIT UNION LTD,2022868304,"28,600.00"
Department for Work and Pensions,Housing Benefits,14-Oct-11,Housing Benefit Admin,COO,WEST DEVON BOROUGH COUNCIL,2022862615,"28,428.00"
Department for Work and Pensions,Employment Programmes,04-Oct-11,EP PROVIDER PAYMENT - WORK PROGRAMME,COO,AVANTA ENTERPRISE LTD,2022699761,"28,400.00"
Department for Work and Pensions,Employment Programmes,04-Oct-11,EP PROVIDER PAYMENT - WORK PROGRAMME,COO,G4S REGIONAL MANAGEMENT UK & I LTD,2022703476,"28,400.00"
Department for Work and Pensions,Employment Programmes,06-Oct-11,EP PROVIDER PAYMENT - WORK PROGRAMME,COO,INGEUS UK LTD,2022770874,"28,400.00"
Department for Work and Pensions,Employment Programmes,13-Oct-11,EP PROVIDER PAYMENT - WORK PROGRAMME,COO,INGEUS UK LTD,2022854546,"28,400.00"
Department for Work and Pensions,Employment Programmes,27-Oct-11,EP PROVIDER PAYMENT - WORK PROGRAMME,COO,INGEUS UK LTD,2023020578,"28,400.00"
Department for Work and Pensions,Jobcentre Plus,20-Oct-11,EMPLOYMENT PROGRAMMES,Excluded,THE WISE GROUP,2022938540,"28,250.80"
Department for Work and Pensions,European Social Fund,07-Oct-11,ESF Expenditure,STR,THE AGE & EMPLOYMENT NETWORK TAEN,5000000741,"28,246.00"
Department for Work and Pensions,Corporate,14-Oct-11,Consultancy Fee,PS,FIELD FISHER WATERHOUSE LLP,2022859637,"28,183.16"
Department for Work and Pensions,Housing Benefits,14-Oct-11,Housing Benefit Admin,COO,UTTLESFORD DISTRICT COUNCIL,2022862602,"28,131.00"
Department for Work and Pensions,Housing Benefits,14-Oct-11,Housing Benefit Admin,COO,DERBYSHIRE DALES DISTRICT COUNCIL,2022862350,"28,096.00"
Department for Work and Pensions,Employment Programmes,04-Oct-11,EP PROVIDER PAYMENT - WORK PROGRAMME,COO,AVANTA ENTERPRISE LTD,2022699761,"28,000.00"
Department for Work and Pensions,Employment Programmes,04-Oct-11,EP PROVIDER PAYMENT - WORK PROGRAMME,COO,SEETEC BUSINESS TECHNOLOGY CENTRE LTD,2022705908,"28,000.00"
Department for Work and Pensions,Employment Programmes,12-Oct-11,EP PROVIDER PAYMENT - WORK PROGRAMME,COO,INGEUS UK LTD,2022810868,"28,000.00"
Department for Work and Pensions,Employment Programmes,19-Oct-11,EP PROVIDER PAYMENT - WORK PROGRAMME,COO,INGEUS UK LTD,2022893860,"28,000.00"
Department for Work and Pensions,Corporate,26-Oct-11,STAFF COSTS,STR,CABINET OFFICE RM SHARED SERVICES,1004996,"28,000.00"
Department for Work and Pensions,Housing Benefits,06-Oct-11,Housing Benefit Admin,COO,LONDON BOROUGH OF TOWER HAMLETS,2022771278,"27,939.05"
Department for Work and Pensions,Employment Programmes,11-Oct-11,YOUNG PERSON'S GUARANTEE,COO,INVERCLYDE COUNCIL,2022785678,"27,900.00"
Department for Work and Pensions,Employment Programmes,28-Oct-11,EP PROVIDER PAYMENT - NON-WORK PROGRAMME,COO,CDG WISE ABILITY LTD,2023024303,"27,728.56"
Department for Work and Pensions,Housing Benefits,06-Oct-11,Housing Benefit Admin,COO,NOTTINGHAM CITY COUNCIL,2022771542,"27,727.09"
Department for Work and Pensions,Corporate,19-Oct-11,COMPUTER SERVICES,F&C,ATOS ORIGIN IT SERVICES UK LTD,2022876796,"27,720.22"
Department for Work and Pensions,Housing Benefits,06-Oct-11,Housing Benefit Admin,COO,LONDON BOROUGH HARRINGEY,2022771249,"27,617.19"
Department for Work and Pensions,Employment Programmes,04-Oct-11,EP PROVIDER PAYMENT - WORK PROGRAMME,COO,SERCO LTD,2022705909,"27,600.00"
Department for Work and Pensions,Employment Programmes,17-Oct-11,EP PROVIDER PAYMENT - WORK PROGRAMME,COO,A4E LTD,2022862749,"27,600.00"
Department for Work and Pensions,Employment Programmes,19-Oct-11,EP PROVIDER PAYMENT - WORK PROGRAMME,COO,WORKING LINKS,2022932498,"27,600.00"
Department for Work and Pensions,Employment Programmes,21-Oct-11,EP PROVIDER PAYMENT - WORK PROGRAMME,COO,INGEUS UK LTD,2022942926,"27,600.00"
Department for Work and Pensions,Housing Benefits,14-Oct-11,Housing Benefit Admin,COO,SOUTH NORTHANTS COUNCIL,2022862557,"27,583.00"
Department for Work and Pensions,Employment Programmes,14-Oct-11,ACCESS TO WORK,COO,MOMENTUM SCOTLAND,2022860300,"27,505.63"
Department for Work and Pensions,Jobcentre Plus,21-Oct-11,EU PROGRAMMES,COO,NORTH LONDON LTD,2022943465,"27,432.00"
Department for Work and Pensions,Corporate,25-Oct-11,TEMPORARY (TEMP) STAFF COSTS,CIT,CAPITA RESOURCING LTD,2022949811,"27,317.10"
Department for Work and Pensions,Housing Benefits,06-Oct-11,Housing Benefit Admin,COO,LONDON BOROUGH OF LEWISHAM,2022771269,"27,256.08"
Department for Work and Pensions,Employment Programmes,06-Oct-11,EP PROVIDER PAYMENT - WORK PROGRAMME,COO,INGEUS UK LTD,2022770874,"27,200.00"
Department for Work and Pensions,Employment Programmes,10-Oct-11,EP PROVIDER PAYMENT - WORK PROGRAMME,COO,INGEUS UK LTD,2022780274,"27,200.00"
Department for Work and Pensions,Employment Programmes,31-Oct-11,EP PROVIDER PAYMENT - WORK PROGRAMME,COO,WORKING LINKS,2023030097,"27,200.00"
Department for Work and Pensions,Housing Benefits,14-Oct-11,Housing Benefit Admin,COO,WEST SOMERSET DISTRICT COUNCIL,2022862622,"27,186.00"
Department for Work and Pensions,Housing Benefits,06-Oct-11,Housing Benefit Admin,COO,LONDON BOROUGH OF BRENT,2022771254,"27,067.67"
Department for Work and Pensions,Jobcentre Plus,20-Oct-11,EMPLOYMENT PROGRAMMES,Excluded,A4E LTD,2022935349,"26,985.29"
Department for Work and Pensions,Employment Programmes,20-Oct-11,ACCESS TO WORK,COO,DEAFABILITY PRODUCTIONS LTD,2022935770,"26,972.00"
Department for Work and Pensions,Corporate,25-Oct-11,TEMPORARY (TEMP) STAFF COSTS,CIT,CAPITA RESOURCING LTD,2022949811,"26,877.36"
Department for Work and Pensions,Employment Programmes,04-Oct-11,EP PROVIDER PAYMENT - WORK PROGRAMME,COO,G4S REGIONAL MANAGEMENT UK & I LTD,2022703476,"26,800.00"
Department for Work and Pensions,Employment Programmes,11-Oct-11,EP PROVIDER PAYMENT - WORK PROGRAMME,COO,INGEUS UK LTD,2022785675,"26,800.00"
Department for Work and Pensions,Employment Programmes,13-Oct-11,EP PROVIDER PAYMENT - WORK PROGRAMME,COO,WORKING LINKS,2022855788,"26,800.00"
Department for Work and Pensions,Employment Programmes,19-Oct-11,EP PROVIDER PAYMENT - WORK PROGRAMME,COO,BEST LTD,2022877801,"26,800.00"
Department for Work and Pensions,Employment Programmes,24-Oct-11,EP PROVIDER PAYMENT - WORK PROGRAMME,COO,SEETEC BUSINESS TECHNOLOGY CENTRE LTD,2022948003,"26,800.00"
Department for Work and Pensions,Employment Programmes,28-Oct-11,EP PROVIDER PAYMENT - WORK PROGRAMME,COO,INGEUS UK LTD,2023025389,"26,800.00"
Department for Work and Pensions,Housing Benefits,06-Oct-11,Housing Benefit Admin,COO,KINGSTON UPON HULL CITY COUNCIL,2022771135,"26,714.41"
Department for Work and Pensions,Jobcentre Plus,26-Oct-11,CONTRACTED OUT SERVICES,COO,CAPITA BUSINESS SERVICES LTD,2022965458,"26,691.55"
Department for Work and Pensions,Corporate,06-Oct-11,OTHER GOODS AND SERVICES,F&C,HMCTS HM COURTS & TRIBUNALS SERVICE,615273,"26,685.00"
Department for Work and Pensions,Jobcentre Plus,13-Oct-11,PROFESSIONAL FEES,COO,THE BIG WORD INTERPRETING SERVICES LTD,2022855690,"26,486.62"
Department for Work and Pensions,Employment Programmes,24-Oct-11,EP PROVIDER PAYMENT - WORK PROGRAMME,COO,INGEUS UK LTD,2022947092,"26,400.00"
Department for Work and Pensions,Corporate,14-Oct-11,TEMPORARY (TEMP) STAFF COSTS,CIT,CAPITA RESOURCING LTD,2022857996,"26,392.24"
Department for Work and Pensions,Housing Benefits,06-Oct-11,Housing Benefit Admin,COO,NORTH LANARKSHIRE COUNCIL,2022771531,"26,290.50"
Department for Work and Pensions,Housing Benefits,06-Oct-11,Housing Benefit Admin,COO,LONDON BOROUGH OF CROYDON,2022771257,"26,149.19"
Department for Work and Pensions,Housing Benefits,14-Oct-11,Housing Benefit Admin,COO,HART DISTRICT COUNCIL,2022862401,"26,089.00"
Department for Work and Pensions,Employment Programmes,04-Oct-11,EP PROVIDER PAYMENT - WORK PROGRAMME,COO,WORKING LINKS,2022706268,"26,000.00"
Department for Work and Pensions,Employment Programmes,24-Oct-11,EP PROVIDER PAYMENT - WORK PROGRAMME,COO,A4E LTD,2022945360,"26,000.00"
Department for Work and Pensions,Jobcentre Plus,18-Oct-11,COMPUTER SERVICES,Change PMU,HP ENTERPRISE SERVICES UK LTD,2022868574,"25,850.92"
Department for Work and Pensions,European Social Fund,14-Oct-11,ESF Expenditure,STR,LONDON DEVELOPMENT AGENCY,5000000760,"25,834.00"
Department for Work and Pensions,Housing Benefits,14-Oct-11,Housing Benefit Admin,COO,RYEDALE DISTRICT COUNCIL,2022862531,"25,805.00"
Department for Work and Pensions,Jobcentre Plus,13-Oct-11,EMPLOYMENT PROGRAMMES,Excluded,TNG BUSINESS SUPPORT LTD.,2022855706,"25,746.90"
Department for Work and Pensions,Corporate,31-Oct-11,ACCOMMODATION,F&C,TELEREAL TRILLIUM,2023030024,"25,724.46"
Department for Work and Pensions,Housing Benefits,06-Oct-11,Housing Benefit Admin,COO,SANDWELL BOROUGH COUNCIL,2022771892,"25,701.73"
Department for Work and Pensions,Housing Benefits,14-Oct-11,Housing Benefit Admin,COO,SOUTH BUCKS DISTRICT COUNCIL,2022862547,"25,623.00"
Department for Work and Pensions,Employment Programmes,07-Oct-11,EP PROVIDER PAYMENT - WORK PROGRAMME,COO,G4S REGIONAL MANAGEMENT UK & I LTD,2022775537,"25,600.00"
Department for Work and Pensions,Employment Programmes,13-Oct-11,EP PROVIDER PAYMENT - WORK PROGRAMME,COO,INGEUS UK LTD,2022854546,"25,600.00"
Department for Work and Pensions,Employment Programmes,17-Oct-11,EP PROVIDER PAYMENT - WORK PROGRAMME,COO,INGEUS UK LTD,2022864852,"25,600.00"
Department for Work and Pensions,Employment Programmes,18-Oct-11,EP PROVIDER PAYMENT - WORK PROGRAMME,COO,CAREERS DEVELOPMENT GROUP,2022867268,"25,600.00"
Department for Work and Pensions,Corporate,21-Oct-11,EMPLOYMENT ZONES,Change PMU,NORTH WALES CREDIT UNION,2022943467,"25,600.00"
Department for Work and Pensions,Employment Programmes,26-Oct-11,EP PROVIDER PAYMENT - WORK PROGRAMME,COO,INGEUS UK LTD,2022976784,"25,600.00"
Department for Work and Pensions,Employment Programmes,31-Oct-11,EP PROVIDER PAYMENT - WORK PROGRAMME,COO,INGEUS UK LTD,2023029185,"25,600.00"
Department for Work and Pensions,Corporate,31-Oct-11,ACCOMMODATION,F&C,TELEREAL TRILLIUM,2023030021,"25,591.64"
Department for Work and Pensions,Housing Benefits,06-Oct-11,Housing Benefit Admin,COO,LEICESTER CITY COUNCIL,2022771234,"25,568.27"
Department for Work and Pensions,European Social Fund,11-Oct-11,ESF Expenditure,STR,YORK COLLEGE,5000000753,"25,295.00"
Department for Work and Pensions,Employment Programmes,04-Oct-11,EP PROVIDER PAYMENT - WORK PROGRAMME,COO,A4E LTD,2022699696,"25,200.00"
Department for Work and Pensions,Employment Programmes,07-Oct-11,EP PROVIDER PAYMENT - WORK PROGRAMME,COO,JHP GROUP LTD,2022775832,"25,200.00"
Department for Work and Pensions,Employment Programmes,18-Oct-11,EP PROVIDER PAYMENT - WORK PROGRAMME,COO,INGEUS UK LTD,2022868614,"25,200.00"
Department for Work and Pensions,Employment Programmes,20-Oct-11,EP PROVIDER PAYMENT - WORK PROGRAMME,COO,INGEUS UK LTD,2022937304,"25,200.00"
Department for Work and Pensions,European Social Fund,07-Oct-11,ESF Expenditure,STR,TYNE & WEAR CITY STRATEGY PARTNERSHIP,5000000742,"25,157.00"
Department for Work and Pensions,Housing Benefits,14-Oct-11,Housing Benefit Admin,COO,CRAVEN DISTRICT COUNCIL,2022862341,"25,141.00"
Department for Work and Pensions,Jobcentre Plus,20-Oct-11,EMPLOYMENT ZONES,COO,NORTH DEVON +,2022937975,"25,000.00"
Department for Work and Pensions,Jobcentre Plus,28-Oct-11,EMPLOYMENT ZONES,COO,CORNWALL COUNCIL,2023024322,"25,000.00"
Department for Work and Pensions,Corporate,28-Oct-11,MISCELLANEOUS EXPENDITURE,PS,IFF RESEARCH,2023025384,"25,000.00"
Department for Work and Pensions,Employment Programmes,04-Oct-11,EP PROVIDER PAYMENT - WORK PROGRAMME,COO,ESG HOLDINGS LIMITED,2022703294,"24,800.00"
Department for Work and Pensions,Employment Programmes,04-Oct-11,EP PROVIDER PAYMENT - WORK PROGRAMME,COO,WORKING LINKS,2022706268,"24,800.00"
Department for Work and Pensions,Employment Programmes,24-Oct-11,EP PROVIDER PAYMENT - WORK PROGRAMME,COO,INGEUS UK LTD,2022947092,"24,800.00"
Department for Work and Pensions,Employment Programmes,27-Oct-11,EP PROVIDER PAYMENT - WORK PROGRAMME,COO,WORKING LINKS,2023022196,"24,800.00"
Department for Work and Pensions,Corporate,25-Oct-11,TEMPORARY (TEMP) STAFF COSTS,Change PMU,CAPITA RESOURCING LTD,2022949811,"24,700.07"
Department for Work and Pensions,Corporate,05-Oct-11,COMPUTER SERVICES,F&C,FUJITSU SERVICES LTD,2022724698,"24,605.20"
Department for Work and Pensions,Employment Programmes,04-Oct-11,EP PROVIDER PAYMENT - WORK PROGRAMME,COO,EOS WORKS LTD,2022703290,"24,400.00"
Department for Work and Pensions,Employment Programmes,06-Oct-11,EP PROVIDER PAYMENT - WORK PROGRAMME,COO,INGEUS UK LTD,2022770874,"24,400.00"
Department for Work and Pensions,Employment Programmes,13-Oct-11,EP PROVIDER PAYMENT - WORK PROGRAMME,COO,A4E LTD,2022852643,"24,400.00"
Department for Work and Pensions,Employment Programmes,14-Oct-11,EP PROVIDER PAYMENT - WORK PROGRAMME,COO,INGEUS UK LTD,2022859793,"24,400.00"
Department for Work and Pensions,Employment Programmes,20-Oct-11,EP PROVIDER PAYMENT - WORK PROGRAMME,COO,INGEUS UK LTD,2022937304,"24,400.00"
Department for Work and Pensions,Employment Programmes,25-Oct-11,EP PROVIDER PAYMENT - WORK PROGRAMME,COO,WORKING LINKS,2022953700,"24,400.00"
Department for Work and Pensions,Employment Programmes,31-Oct-11,EP PROVIDER PAYMENT - WORK PROGRAMME,COO,BEST LTD,2023027770,"24,400.00"
Department for Work and Pensions,Housing Benefits,14-Oct-11,Housing Benefit Admin,COO,PURBECK DISTRICT COUNCIL,2022862512,"24,267.00"
Department for Work and Pensions,Employment Programmes,10-Oct-11,EP PROVIDER PAYMENT - WORK PROGRAMME,COO,SEETEC BUSINESS TECHNOLOGY CENTRE LTD,2022781544,"24,000.00"
Department for Work and Pensions,Employment Programmes,20-Oct-11,EP PROVIDER PAYMENT - WORK PROGRAMME,COO,A4E LTD,2022935348,"24,000.00"
Department for Work and Pensions,Employment Programmes,21-Oct-11,EP PROVIDER PAYMENT - WORK PROGRAMME,COO,G4S REGIONAL MANAGEMENT UK & I LTD,2022942860,"24,000.00"
Department for Work and Pensions,Employment Programmes,27-Oct-11,EP PROVIDER PAYMENT - WORK PROGRAMME,COO,A4E LTD,2023018525,"24,000.00"
Department for Work and Pensions,Jobcentre Plus,19-Oct-11,COMPUTER SERVICES,Change PMU,ATOS ORIGIN IT SERVICES UK LTD,2022876796,"23,777.08"
Department for Work and Pensions,Corporate,17-Oct-11,TEMPORARY (TEMP) STAFF COSTS,CIT,CAPITA RESOURCING LTD,2022862889,"23,769.36"
Department for Work and Pensions,Housing Benefits,14-Oct-11,Housing Benefit Admin,COO,OADBY & WIGSTON BOROUGH COUNCIL,2022862499,"23,736.00"
Department for Work and Pensions,Corporate,14-Oct-11,TEMPORARY (TEMP) STAFF COSTS,CIT,CAPITA RESOURCING LTD,2022857996,"23,607.48"
Department for Work and Pensions,Employment Programmes,04-Oct-11,EP PROVIDER PAYMENT - WORK PROGRAMME,COO,PROSPECT SERVICES LTD,2022705227,"23,600.00"
Department for Work and Pensions,Employment Programmes,18-Oct-11,EP PROVIDER PAYMENT - WORK PROGRAMME,COO,MAXIMUS EMPLOYMENT UK LTD,2022869542,"23,600.00"
Department for Work and Pensions,Employment Programmes,21-Oct-11,EP PROVIDER PAYMENT - WORK PROGRAMME,COO,A4E LTD,2022940951,"23,600.00"
Department for Work and Pensions,Employment Programmes,28-Oct-11,EP PROVIDER PAYMENT - WORK PROGRAMME,COO,INGEUS UK LTD,2023025389,"23,600.00"
Department for Work and Pensions,Jobcentre Plus,24-Oct-11,ACCOMMODATION COSTS,Change PMU,TELEREAL TRILLIUM,2022948095,"23,518.09"
Department for Work and Pensions,Jobcentre Plus,17-Oct-11,ACCOMMODATION COSTS,COO,TELEREAL TRILLIUM,2022865589,"23,428.97"
Department for Work and Pensions,Corporate,31-Oct-11,ACCOMMODATION,F&C,TELEREAL TRILLIUM,2023030021,"23,354.06"
Department for Work and Pensions,Corporate,18-Oct-11,APPS DEV,Change PMU,HP ENTERPRISE SERVICES UK LTD,2022868574,"23,213.50"
Department for Work and Pensions,Employment Programmes,04-Oct-11,EP PROVIDER PAYMENT - WORK PROGRAMME,COO,SEETEC BUSINESS TECHNOLOGY CENTRE LTD,2022705908,"23,200.00"
Department for Work and Pensions,Employment Programmes,06-Oct-11,EP PROVIDER PAYMENT - WORK PROGRAMME,COO,A4E LTD,2022769664,"23,200.00"
Department for Work and Pensions,Employment Programmes,06-Oct-11,EP PROVIDER PAYMENT - WORK PROGRAMME,COO,SEETEC BUSINESS TECHNOLOGY CENTRE LTD,2022771900,"23,200.00"
Department for Work and Pensions,Employment Programmes,07-Oct-11,EP PROVIDER PAYMENT - WORK PROGRAMME,COO,G4S REGIONAL MANAGEMENT UK & I LTD,2022775537,"23,200.00"
Department for Work and Pensions,Employment Programmes,07-Oct-11,EP PROVIDER PAYMENT - WORK PROGRAMME,COO,G4S REGIONAL MANAGEMENT UK & I LTD,2022775537,"23,200.00"
Department for Work and Pensions,Employment Programmes,21-Oct-11,EP PROVIDER PAYMENT - WORK PROGRAMME,COO,INGEUS UK LTD,2022942926,"23,200.00"
Department for Work and Pensions,Employment Programmes,24-Oct-11,EP PROVIDER PAYMENT - WORK PROGRAMME,COO,INGEUS UK LTD,2022947092,"23,200.00"
Department for Work and Pensions,Employment Programmes,27-Oct-11,EP PROVIDER PAYMENT - WORK PROGRAMME,COO,INGEUS UK LTD,2023020578,"23,200.00"
Department for Work and Pensions,"Pension, Disability Carers Services",18-Oct-11,COMPUTER SERVICES,Change PMU,BT GLOBAL SERVICES,2022867041,"23,073.00"
Department for Work and Pensions,Employment Programmes,31-Oct-11,JSP ESF DEL P COSTS,COO,WORKING LINKS,2023030097,"23,053.59"
Department for Work and Pensions,Corporate,18-Oct-11,APPS DEV,PS,HP ENTERPRISE SERVICES UK LTD,2022868574,"22,920.16"
Department for Work and Pensions,Employment Programmes,04-Oct-11,EP PROVIDER PAYMENT - WORK PROGRAMME,COO,PERTEMPS,2022705202,"22,800.00"
Department for Work and Pensions,Employment Programmes,13-Oct-11,EP PROVIDER PAYMENT - WORK PROGRAMME,COO,INGEUS UK LTD,2022854546,"22,800.00"
Department for Work and Pensions,Employment Programmes,19-Oct-11,EP PROVIDER PAYMENT - WORK PROGRAMME,COO,A4E LTD,2022876757,"22,800.00"
Department for Work and Pensions,Employment Programmes,20-Oct-11,EP PROVIDER PAYMENT - WORK PROGRAMME,COO,BEST LTD,2022935461,"22,800.00"
Department for Work and Pensions,Employment Programmes,21-Oct-11,EP PROVIDER PAYMENT - WORK PROGRAMME,COO,AVANTA ENTERPRISE LTD,2022940981,"22,800.00"
Department for Work and Pensions,Employment Programmes,24-Oct-11,EP PROVIDER PAYMENT - WORK PROGRAMME,COO,SEETEC BUSINESS TECHNOLOGY CENTRE LTD,2022948003,"22,800.00"
Department for Work and Pensions,Employment Programmes,27-Oct-11,EP PROVIDER PAYMENT - WORK PROGRAMME,COO,AVANTA ENTERPRISE LTD,2023018565,"22,800.00"
Department for Work and Pensions,Employment Programmes,27-Oct-11,EP PROVIDER PAYMENT - WORK PROGRAMME,COO,SEETEC BUSINESS TECHNOLOGY CENTRE LTD,2023021969,"22,800.00"
Department for Work and Pensions,Jobcentre Plus,05-Oct-11,COMPUTER SERVICES,Change PMU,ACCENTURE UK LTD,2022712362,"22,599.26"
Department for Work and Pensions,"Pension, Disability Carers Services",10-Oct-11,TELEPHONE AND POSTAGE,COO,ROYAL MAIL GROUP PLC,2022781309,"22,597.21"
Department for Work and Pensions,Jobcentre Plus,07-Oct-11,JOBCENTRE PLUS PATHWAYS TO WORK,COO,A4E LTD,2022774171,"22,471.00"
Department for Work and Pensions,Employment Programmes,04-Oct-11,EP PROVIDER PAYMENT - WORK PROGRAMME,COO,G4S REGIONAL MANAGEMENT UK & I LTD,2022703476,"22,400.00"
Department for Work and Pensions,Employment Programmes,14-Oct-11,EP PROVIDER PAYMENT - WORK PROGRAMME,COO,SEETEC BUSINESS TECHNOLOGY CENTRE LTD,2022860709,"22,400.00"
Department for Work and Pensions,Employment Programmes,19-Oct-11,EP PROVIDER PAYMENT - WORK PROGRAMME,COO,INGEUS UK LTD,2022893860,"22,400.00"
Department for Work and Pensions,Employment Programmes,20-Oct-11,EP PROVIDER PAYMENT - WORK PROGRAMME,COO,SEETEC BUSINESS TECHNOLOGY CENTRE LTD,2022938397,"22,400.00"
Department for Work and Pensions,Employment Programmes,21-Oct-11,EP PROVIDER PAYMENT - WORK PROGRAMME,COO,WORKING LINKS,2022943928,"22,400.00"
Department for Work and Pensions,"Pension, Disability Carers Services",10-Oct-11,TELEPHONE AND POSTAGE,COO,ROYAL MAIL GROUP PLC,2022781309,"22,231.83"
Department for Work and Pensions,Housing Benefits,14-Oct-11,Housing Benefit Admin,COO,COMHAIRLE NAN EILEAN SIAR COUNCIL,2022862332,"22,138.00"
Department for Work and Pensions,Corporate,31-Oct-11,ACCOMMODATION,F&C,TELEREAL TRILLIUM,2023030021,"22,073.78"
Department for Work and Pensions,Employment Programmes,10-Oct-11,EP PROVIDER PAYMENT - WORK PROGRAMME,COO,A4E LTD,2022778380,"22,000.00"
Department for Work and Pensions,Employment Programmes,12-Oct-11,EP PROVIDER PAYMENT - WORK PROGRAMME,COO,A4E LTD,2022793791,"22,000.00"
Department for Work and Pensions,Employment Programmes,24-Oct-11,EP PROVIDER PAYMENT - WORK PROGRAMME,COO,BEST LTD,2022945436,"22,000.00"
Department for Work and Pensions,Corporate,14-Oct-11,PROFESSIONAL FEES,PS,FIELD FISHER WATERHOUSE LLP,2022859637,"21,927.96"
Department for Work and Pensions,Jobcentre Plus,10-Oct-11,TELEPHONE AND POSTAGE,COO,ROYAL MAIL GROUP PLC,2022781309,"21,855.16"
Department for Work and Pensions,Housing Benefits,14-Oct-11,Housing Benefit Admin,COO,EDEN DISTRICT COUNCIL,2022862372,"21,795.00"
Department for Work and Pensions,Employment Programmes,04-Oct-11,EP PROVIDER PAYMENT - WORK PROGRAMME,COO,ESG HOLDINGS LIMITED,2022703294,"21,600.00"
Department for Work and Pensions,Employment Programmes,04-Oct-11,EP PROVIDER PAYMENT - WORK PROGRAMME,COO,REHAB JOBFIT,2022705444,"21,600.00"
Department for Work and Pensions,Employment Programmes,04-Oct-11,EP PROVIDER PAYMENT - WORK PROGRAMME,COO,SEETEC BUSINESS TECHNOLOGY CENTRE LTD,2022705908,"21,600.00"
Department for Work and Pensions,Employment Programmes,07-Oct-11,EP PROVIDER PAYMENT - WORK PROGRAMME,COO,INGEUS UK LTD,2022775656,"21,600.00"
Department for Work and Pensions,Employment Programmes,10-Oct-11,EP PROVIDER PAYMENT - WORK PROGRAMME,COO,SEETEC BUSINESS TECHNOLOGY CENTRE LTD,2022781544,"21,600.00"
Department for Work and Pensions,Employment Programmes,11-Oct-11,EP PROVIDER PAYMENT - WORK PROGRAMME,COO,AVANTA ENTERPRISE LTD,2022783203,"21,600.00"
Department for Work and Pensions,Employment Programmes,18-Oct-11,EP PROVIDER PAYMENT - WORK PROGRAMME,COO,SEETEC BUSINESS TECHNOLOGY CENTRE LTD,2022870346,"21,600.00"
Department for Work and Pensions,Housing Benefits,14-Oct-11,Housing Benefit Admin,COO,MELTON BOROUGH COUNCIL,2022862464,"21,427.00"
Department for Work and Pensions,Corporate,14-Oct-11,ACCOMMODATION,F&C,TELEREAL TRILLIUM,2022860792,"21,362.43"
Department for Work and Pensions,Corporate,31-Oct-11,ACCOMMODATION,F&C,TELEREAL TRILLIUM,2023030021,"21,214.12"
Department for Work and Pensions,Employment Programmes,04-Oct-11,EP PROVIDER PAYMENT - WORK PROGRAMME,COO,A4E LTD,2022699696,"21,200.00"
Department for Work and Pensions,Employment Programmes,11-Oct-11,EP PROVIDER PAYMENT - WORK PROGRAMME,COO,MAXIMUS EMPLOYMENT UK LTD,2022786622,"21,200.00"
Department for Work and Pensions,Employment Programmes,11-Oct-11,EP PROVIDER PAYMENT - WORK PROGRAMME,COO,SEETEC BUSINESS TECHNOLOGY CENTRE LTD,2022787454,"21,200.00"
Department for Work and Pensions,Employment Programmes,14-Oct-11,EP PROVIDER PAYMENT - WORK PROGRAMME,COO,WORKING LINKS,2022860893,"21,200.00"
Department for Work and Pensions,Employment Programmes,17-Oct-11,EP PROVIDER PAYMENT - WORK PROGRAMME,COO,INGEUS UK LTD,2022864852,"21,200.00"
Department for Work and Pensions,Employment Programmes,18-Oct-11,EP PROVIDER PAYMENT - WORK PROGRAMME,COO,INGEUS UK LTD,2022868614,"21,200.00"
Department for Work and Pensions,Employment Programmes,20-Oct-11,EP PROVIDER PAYMENT - WORK PROGRAMME,COO,A4E LTD,2022935348,"21,200.00"
Department for Work and Pensions,Employment Programmes,21-Oct-11,EP PROVIDER PAYMENT - WORK PROGRAMME,COO,BEST LTD,2022941002,"21,200.00"
Department for Work and Pensions,Employment Programmes,26-Oct-11,EP PROVIDER PAYMENT - WORK PROGRAMME,COO,INGEUS UK LTD,2022976784,"21,200.00"
Department for Work and Pensions,Employment Programmes,28-Oct-11,EP PROVIDER PAYMENT - WORK PROGRAMME,COO,PERTEMPS,2023026044,"21,200.00"
Department for Work and Pensions,Housing Benefits,14-Oct-11,Housing Benefit Admin,COO,RICHMONDSHIRE DISTRICT COUNCIL,2022862519,"20,986.00"
Department for Work and Pensions,Corporate,18-Oct-11,OTHER GOODS AND SERVICES,F&C,INCHCAPE FLEET SOLUTIONS LTD,2022868612,"20,885.56"
Department for Work and Pensions,Employment Programmes,04-Oct-11,EP PROVIDER PAYMENT - WORK PROGRAMME,COO,AVANTA ENTERPRISE LTD,2022699761,"20,800.00"
Department for Work and Pensions,Employment Programmes,12-Oct-11,EP PROVIDER PAYMENT - WORK PROGRAMME,COO,REHAB JOBFIT,2022838242,"20,800.00"
Department for Work and Pensions,Employment Programmes,14-Oct-11,EP PROVIDER PAYMENT - WORK PROGRAMME,COO,REED IN PARTNERSHIP LTD,2022860552,"20,800.00"
Department for Work and Pensions,Employment Programmes,18-Oct-11,EP PROVIDER PAYMENT - WORK PROGRAMME,COO,SEETEC BUSINESS TECHNOLOGY CENTRE LTD,2022870346,"20,800.00"
Department for Work and Pensions,Employment Programmes,21-Oct-11,EP PROVIDER PAYMENT - WORK PROGRAMME,COO,REHAB JOBFIT,2022943620,"20,800.00"
Department for Work and Pensions,Employment Programmes,25-Oct-11,EP PROVIDER PAYMENT - WORK PROGRAMME,COO,INGEUS UK LTD,2022951614,"20,800.00"
Department for Work and Pensions,Employment Programmes,25-Oct-11,EP PROVIDER PAYMENT - WORK PROGRAMME,COO,INGEUS UK LTD,2022951614,"20,800.00"
Department for Work and Pensions,Employment Programmes,26-Oct-11,EP PROVIDER PAYMENT - WORK PROGRAMME,COO,SEETEC BUSINESS TECHNOLOGY CENTRE LTD,2023011430,"20,800.00"
Department for Work and Pensions,Employment Programmes,04-Oct-11,EP PROVIDER PAYMENT - WORK PROGRAMME,COO,AVANTA ENTERPRISE LTD,2022699761,"20,400.00"
Department for Work and Pensions,Employment Programmes,04-Oct-11,EP PROVIDER PAYMENT - WORK PROGRAMME,COO,WORKING LINKS,2022706268,"20,400.00"
Department for Work and Pensions,Employment Programmes,07-Oct-11,EP PROVIDER PAYMENT - WORK PROGRAMME,COO,WORKING LINKS,2022776961,"20,400.00"
Department for Work and Pensions,Employment Programmes,12-Oct-11,EP PROVIDER PAYMENT - WORK PROGRAMME,COO,INGEUS UK LTD,2022810868,"20,400.00"
Department for Work and Pensions,Employment Programmes,27-Oct-11,EP PROVIDER PAYMENT - WORK PROGRAMME,COO,A4E LTD,2023018525,"20,400.00"
Department for Work and Pensions,Housing Benefits,14-Oct-11,Housing Benefit Admin,COO,RIBBLE VALLEY BOROUGH COUNCIL,2022862518,"20,256.00"
Department for Work and Pensions,Corporate,31-Oct-11,ACCOMMODATION,F&C,TELEREAL TRILLIUM,2023030024,"20,241.49"
Department for Work and Pensions,Employment Programmes,04-Oct-11,EP PROVIDER PAYMENT - WORK PROGRAMME,COO,JHP GROUP LTD,2022704025,"20,000.00"
Department for Work and Pensions,Employment Programmes,04-Oct-11,EP PROVIDER PAYMENT - WORK PROGRAMME,COO,NEWCASTLE COLLEGE GROUP,2022705024,"20,000.00"
Department for Work and Pensions,Employment Programmes,04-Oct-11,EP PROVIDER PAYMENT - WORK PROGRAMME,COO,SERCO LTD,2022705909,"20,000.00"
Department for Work and Pensions,Employment Programmes,07-Oct-11,EP PROVIDER PAYMENT - WORK PROGRAMME,COO,INGEUS UK LTD,2022775656,"20,000.00"
Department for Work and Pensions,Employment Programmes,14-Oct-11,EP PROVIDER PAYMENT - WORK PROGRAMME,COO,INGEUS UK LTD,2022859793,"20,000.00"
Department for Work and Pensions,Employment Programmes,17-Oct-11,EP PROVIDER PAYMENT - WORK PROGRAMME,COO,SEETEC BUSINESS TECHNOLOGY CENTRE LTD,2022865513,"20,000.00"
Department for Work and Pensions,Employment Programmes,19-Oct-11,EP PROVIDER PAYMENT - WORK PROGRAMME,COO,NEWCASTLE COLLEGE GROUP,2022916551,"20,000.00"
Department for Work and Pensions,Corporate,31-Oct-11,ACCOMMODATION,F&C,TELEREAL TRILLIUM,2023030020,"19,952.34"
Department for Work and Pensions,Corporate,24-Oct-11,PRINTING STATIONERY IT CONSUMABLES,PS,XEROX UK LTD 3W,2022948186,"19,842.19"
Department for Work and Pensions,Corporate,18-Oct-11,APPS DEV,CIT,HP ENTERPRISE SERVICES UK LTD,2022868574,"19,740.90"
Department for Work and Pensions,Employment Programmes,13-Oct-11,EP PROVIDER PAYMENT - WORK PROGRAMME,COO,AVANTA ENTERPRISE LTD,2022852668,"19,600.00"
Department for Work and Pensions,Employment Programmes,19-Oct-11,EP PROVIDER PAYMENT - WORK PROGRAMME,COO,SEETEC BUSINESS TECHNOLOGY CENTRE LTD,2022928309,"19,600.00"
Department for Work and Pensions,Employment Programmes,24-Oct-11,EP PROVIDER PAYMENT - WORK PROGRAMME,COO,A4E LTD,2022945360,"19,600.00"
Department for Work and Pensions,Employment Programmes,25-Oct-11,EP PROVIDER PAYMENT - WORK PROGRAMME,COO,A4E LTD,2022949448,"19,600.00"
Department for Work and Pensions,Employment Programmes,26-Oct-11,EP PROVIDER PAYMENT - WORK PROGRAMME,COO,MAXIMUS EMPLOYMENT UK LTD,2022997078,"19,600.00"
Department for Work and Pensions,Corporate,18-Oct-11,COMPUTER SERVICES,CIT,BT GLOBAL SERVICES,2022867041,"19,558.50"
Department for Work and Pensions,Corporate,14-Oct-11,ACCOMMODATION,F&C,TELEREAL TRILLIUM,2022860792,"19,424.40"
Department for Work and Pensions,Jobcentre Plus,17-Oct-11,COMPUTER SERVICES,Change PMU,HP ENTERPRISE SERVICES UK LTD,2022864834,"19,344.13"
Department for Work and Pensions,Employment Programmes,04-Oct-11,EP PROVIDER PAYMENT - WORK PROGRAMME,COO,BEST LTD,2022699852,"19,200.00"
Department for Work and Pensions,Employment Programmes,04-Oct-11,EP PROVIDER PAYMENT - WORK PROGRAMME,COO,G4S REGIONAL MANAGEMENT UK & I LTD,2022703476,"19,200.00"
Department for Work and Pensions,Employment Programmes,04-Oct-11,EP PROVIDER PAYMENT - WORK PROGRAMME,COO,SERCO LTD,2022705909,"19,200.00"
Department for Work and Pensions,Employment Programmes,20-Oct-11,EP PROVIDER PAYMENT - WORK PROGRAMME,COO,A4E LTD,2022935348,"19,200.00"
Department for Work and Pensions,Employment Programmes,25-Oct-11,EP PROVIDER PAYMENT - WORK PROGRAMME,COO,AVANTA ENTERPRISE LTD,2022949476,"19,200.00"
Department for Work and Pensions,Employment Programmes,27-Oct-11,EP PROVIDER PAYMENT - WORK PROGRAMME,COO,INGEUS UK LTD,2023020578,"19,200.00"
Department for Work and Pensions,Employment Programmes,28-Oct-11,EP PROVIDER PAYMENT - WORK PROGRAMME,COO,SEETEC BUSINESS TECHNOLOGY CENTRE LTD,2023026315,"19,200.00"
Department for Work and Pensions,Employment Programmes,31-Oct-11,EP PROVIDER PAYMENT - WORK PROGRAMME,COO,A4E LTD,2023027702,"19,200.00"
Department for Work and Pensions,"Pension, Disability Carers Services",10-Oct-11,TELEPHONE AND POSTAGE,COO,ROYAL MAIL GROUP PLC,2022781309,"18,927.21"
Department for Work and Pensions,Employment Programmes,04-Oct-11,EP PROVIDER PAYMENT - WORK PROGRAMME,COO,WORKING LINKS,2022706268,"18,800.00"
Department for Work and Pensions,Employment Programmes,07-Oct-11,EP PROVIDER PAYMENT - WORK PROGRAMME,COO,A4E LTD,2022774170,"18,800.00"
Department for Work and Pensions,Employment Programmes,07-Oct-11,EP PROVIDER PAYMENT - WORK PROGRAMME,COO,INGEUS UK LTD,2022775656,"18,800.00"
Department for Work and Pensions,Employment Programmes,07-Oct-11,EP PROVIDER PAYMENT - WORK PROGRAMME,COO,INGEUS UK LTD,2022775656,"18,800.00"
Department for Work and Pensions,Employment Programmes,10-Oct-11,EP PROVIDER PAYMENT - WORK PROGRAMME,COO,INGEUS UK LTD,2022780274,"18,800.00"
Department for Work and Pensions,Employment Programmes,13-Oct-11,EP PROVIDER PAYMENT - WORK PROGRAMME,COO,A4E LTD,2022852643,"18,800.00"
Department for Work and Pensions,Employment Programmes,14-Oct-11,EP PROVIDER PAYMENT - WORK PROGRAMME,COO,A4E LTD,2022857811,"18,800.00"
Department for Work and Pensions,Employment Programmes,14-Oct-11,EP PROVIDER PAYMENT - WORK PROGRAMME,COO,SEETEC BUSINESS TECHNOLOGY CENTRE LTD,2022860709,"18,800.00"
Department for Work and Pensions,Employment Programmes,17-Oct-11,EP PROVIDER PAYMENT - WORK PROGRAMME,COO,AVANTA ENTERPRISE LTD,2022862774,"18,800.00"
Department for Work and Pensions,Employment Programmes,18-Oct-11,EP PROVIDER PAYMENT - WORK PROGRAMME,COO,AVANTA ENTERPRISE LTD,2022866943,"18,800.00"
Department for Work and Pensions,Employment Programmes,21-Oct-11,EP PROVIDER PAYMENT - WORK PROGRAMME,COO,INGEUS UK LTD,2022942926,"18,800.00"
Department for Work and Pensions,Employment Programmes,21-Oct-11,EP PROVIDER PAYMENT - WORK PROGRAMME,COO,NEWCASTLE COLLEGE GROUP,2022943460,"18,800.00"
Department for Work and Pensions,Employment Programmes,31-Oct-11,EP PROVIDER PAYMENT - WORK PROGRAMME,COO,A4E LTD,2023027702,"18,800.00"
Department for Work and Pensions,Employment Programmes,21-Oct-11,EP PROVIDER PAYMENT - NON-WORK PROGRAMME,COO,THE PLUSS ORGANISATION,2022943868,"18,667.25"
Department for Work and Pensions,Corporate,25-Oct-11,STAFF COSTS,HRD,FLETCHER CONSULTANCY,2022951346,"18,660.24"
Department for Work and Pensions,Employment Programmes,04-Oct-11,EP PROVIDER PAYMENT - WORK PROGRAMME,COO,NEWCASTLE COLLEGE GROUP,2022705024,"18,400.00"
Department for Work and Pensions,Employment Programmes,07-Oct-11,EP PROVIDER PAYMENT - WORK PROGRAMME,COO,INGEUS UK LTD,2022775656,"18,400.00"
Department for Work and Pensions,Employment Programmes,10-Oct-11,EP PROVIDER PAYMENT - WORK PROGRAMME,COO,AVANTA ENTERPRISE LTD,2022778407,"18,400.00"
Department for Work and Pensions,Employment Programmes,11-Oct-11,EP PROVIDER PAYMENT - WORK PROGRAMME,COO,SEETEC BUSINESS TECHNOLOGY CENTRE LTD,2022787454,"18,400.00"
Department for Work and Pensions,Employment Programmes,12-Oct-11,EP PROVIDER PAYMENT - WORK PROGRAMME,COO,INGEUS UK LTD,2022810868,"18,400.00"
Department for Work and Pensions,Employment Programmes,19-Oct-11,EP PROVIDER PAYMENT - WORK PROGRAMME,COO,MAXIMUS EMPLOYMENT UK LTD,2022914017,"18,400.00"
Department for Work and Pensions,Employment Programmes,21-Oct-11,EP PROVIDER PAYMENT - WORK PROGRAMME,COO,SEETEC BUSINESS TECHNOLOGY CENTRE LTD,2022943777,"18,400.00"
Department for Work and Pensions,Employment Programmes,24-Oct-11,EP PROVIDER PAYMENT - WORK PROGRAMME,COO,CAREERS DEVELOPMENT GROUP,2022945568,"18,400.00"
Department for Work and Pensions,Employment Programmes,24-Oct-11,EP PROVIDER PAYMENT - WORK PROGRAMME,COO,INGEUS UK LTD,2022947092,"18,400.00"
Department for Work and Pensions,Employment Programmes,24-Oct-11,EP PROVIDER PAYMENT - WORK PROGRAMME,COO,JHP GROUP LTD,2022947256,"18,400.00"
Department for Work and Pensions,Employment Programmes,26-Oct-11,EP PROVIDER PAYMENT - WORK PROGRAMME,COO,A4E LTD,2022959752,"18,400.00"
Department for Work and Pensions,Employment Programmes,27-Oct-11,EP PROVIDER PAYMENT - WORK PROGRAMME,COO,SEETEC BUSINESS TECHNOLOGY CENTRE LTD,2023021969,"18,400.00"
Department for Work and Pensions,Employment Programmes,28-Oct-11,EP PROVIDER PAYMENT - WORK PROGRAMME,COO,SEETEC BUSINESS TECHNOLOGY CENTRE LTD,2023026315,"18,400.00"
Department for Work and Pensions,Corporate,25-Oct-11,TEMPORARY (TEMP) STAFF COSTS,CIT,CAPITA RESOURCING LTD,2022949811,"18,258.44"
Department for Work and Pensions,Corporate,17-Oct-11,TELEPHONE AND POSTAGE,F&C,G3 WORLDWIDE MAIL UK LTD,2022864787,"18,009.52"
Department for Work and Pensions,Employment Programmes,04-Oct-11,EP PROVIDER PAYMENT - WORK PROGRAMME,COO,AVANTA ENTERPRISE LTD,2022699761,"18,000.00"
Department for Work and Pensions,Employment Programmes,04-Oct-11,EP PROVIDER PAYMENT - WORK PROGRAMME,COO,REHAB JOBFIT,2022705444,"18,000.00"
Department for Work and Pensions,Employment Programmes,07-Oct-11,EP PROVIDER PAYMENT - WORK PROGRAMME,COO,CAREERS DEVELOPMENT GROUP,2022774390,"18,000.00"
Department for Work and Pensions,Employment Programmes,07-Oct-11,EP PROVIDER PAYMENT - WORK PROGRAMME,COO,G4S REGIONAL MANAGEMENT UK & I LTD,2022775537,"18,000.00"
Department for Work and Pensions,Employment Programmes,07-Oct-11,EP PROVIDER PAYMENT - WORK PROGRAMME,COO,SEETEC BUSINESS TECHNOLOGY CENTRE LTD,2022776706,"18,000.00"
Department for Work and Pensions,Employment Programmes,10-Oct-11,EP PROVIDER PAYMENT - WORK PROGRAMME,COO,REHAB JOBFIT,2022781297,"18,000.00"
Department for Work and Pensions,Employment Programmes,12-Oct-11,EP PROVIDER PAYMENT - WORK PROGRAMME,COO,EOS WORKS LTD,2022806408,"18,000.00"
Department for Work and Pensions,Employment Programmes,12-Oct-11,EP PROVIDER PAYMENT - WORK PROGRAMME,COO,EOS WORKS LTD,2022806408,"18,000.00"
Department for Work and Pensions,Employment Programmes,18-Oct-11,EP PROVIDER PAYMENT - WORK PROGRAMME,COO,WORKING LINKS,2022870612,"18,000.00"
Department for Work and Pensions,Employment Programmes,21-Oct-11,EP PROVIDER PAYMENT - WORK PROGRAMME,COO,PERTEMPS,2022943538,"18,000.00"
Department for Work and Pensions,Jobcentre Plus,18-Oct-11,APPS DEV,COO,HP ENTERPRISE SERVICES UK LTD,2022868574,"17,784.00"
Department for Work and Pensions,Corporate,18-Oct-11,COMPUTER SERVICES,CIT,SPECIALIST COMPUTER CENTRES PLC,2022870373,"17,709.60"
Department for Work and Pensions,Employment Programmes,04-Oct-11,EP PROVIDER PAYMENT - WORK PROGRAMME,COO,INGEUS UK LTD,2022703673,"17,600.00"
Department for Work and Pensions,Employment Programmes,07-Oct-11,EP PROVIDER PAYMENT - WORK PROGRAMME,COO,SEETEC BUSINESS TECHNOLOGY CENTRE LTD,2022776706,"17,600.00"
Department for Work and Pensions,Employment Programmes,17-Oct-11,EP PROVIDER PAYMENT - WORK PROGRAMME,COO,BEST LTD,2022862793,"17,600.00"
Department for Work and Pensions,Employment Programmes,18-Oct-11,EP PROVIDER PAYMENT - WORK PROGRAMME,COO,REED IN PARTNERSHIP LTD,2022869988,"17,600.00"
Department for Work and Pensions,Employment Programmes,19-Oct-11,EP PROVIDER PAYMENT - WORK PROGRAMME,COO,A4E LTD,2022876757,"17,600.00"
Department for Work and Pensions,Employment Programmes,19-Oct-11,EP PROVIDER PAYMENT - WORK PROGRAMME,COO,INGEUS UK LTD,2022893860,"17,600.00"
Department for Work and Pensions,Employment Programmes,20-Oct-11,EP PROVIDER PAYMENT - WORK PROGRAMME,COO,INGEUS UK LTD,2022937304,"17,600.00"
Department for Work and Pensions,Employment Programmes,26-Oct-11,EP PROVIDER PAYMENT - WORK PROGRAMME,COO,INGEUS UK LTD,2022976784,"17,600.00"
Department for Work and Pensions,Employment Programmes,28-Oct-11,EP PROVIDER PAYMENT - WORK PROGRAMME,COO,A4E LTD,2023024083,"17,600.00"
Department for Work and Pensions,Employment Programmes,28-Oct-11,EP PROVIDER PAYMENT - NON-WORK PROGRAMME,COO,BEST LTD,2023024164,"17,563.92"
Department for Work and Pensions,Jobcentre Plus,31-Oct-11,MEDICAL SERVICES,Change PMU,ATOS HEALTHCARE,2023027735,"17,287.83"
Department for Work and Pensions,Corporate,18-Oct-11,COMPUTER SERVICES,CIT,HP ENTERPRISE SERVICES UK LTD,2022868574,"17,215.59"
Department for Work and Pensions,Employment Programmes,04-Oct-11,EP PROVIDER PAYMENT - WORK PROGRAMME,COO,SEETEC BUSINESS TECHNOLOGY CENTRE LTD,2022705908,"17,200.00"
Department for Work and Pensions,Employment Programmes,11-Oct-11,EP PROVIDER PAYMENT - WORK PROGRAMME,COO,A4E LTD,2022783170,"17,200.00"
Department for Work and Pensions,Employment Programmes,14-Oct-11,EP PROVIDER PAYMENT - WORK PROGRAMME,COO,A4E LTD,2022857811,"17,200.00"
Department for Work and Pensions,Employment Programmes,17-Oct-11,EP PROVIDER PAYMENT - WORK PROGRAMME,COO,INGEUS UK LTD,2022864852,"17,200.00"
Department for Work and Pensions,Employment Programmes,20-Oct-11,EP PROVIDER PAYMENT - WORK PROGRAMME,COO,REED IN PARTNERSHIP LTD,2022938179,"17,200.00"
Department for Work and Pensions,Employment Programmes,21-Oct-11,EP PROVIDER PAYMENT - WORK PROGRAMME,COO,G4S REGIONAL MANAGEMENT UK & I LTD,2022942860,"17,200.00"
Department for Work and Pensions,Employment Programmes,21-Oct-11,EP PROVIDER PAYMENT - WORK PROGRAMME,COO,NEWCASTLE COLLEGE GROUP,2022943460,"17,200.00"
Department for Work and Pensions,Employment Programmes,25-Oct-11,EP PROVIDER PAYMENT - WORK PROGRAMME,COO,A4E LTD,2022949448,"17,200.00"
Department for Work and Pensions,Employment Programmes,25-Oct-11,EP PROVIDER PAYMENT - WORK PROGRAMME,COO,INGEUS UK LTD,2022951614,"17,200.00"
Department for Work and Pensions,Employment Programmes,26-Oct-11,EP PROVIDER PAYMENT - WORK PROGRAMME,COO,WORKING LINKS,2023015639,"17,200.00"
Department for Work and Pensions,Employment Programmes,27-Oct-11,EP PROVIDER PAYMENT - WORK PROGRAMME,COO,CAREERS DEVELOPMENT GROUP,2023018817,"17,200.00"
Department for Work and Pensions,Employment Programmes,27-Oct-11,EP PROVIDER PAYMENT - WORK PROGRAMME,COO,REED IN PARTNERSHIP LTD,2023021687,"17,200.00"
Department for Work and Pensions,Corporate,31-Oct-11,ACCOMMODATION,F&C,TELEREAL TRILLIUM,2023030020,"16,977.44"
Department for Work and Pensions,Employment Programmes,06-Oct-11,EP PROVIDER PAYMENT - NON-WORK PROGRAMME,COO,SEETEC BUSINESS TECHNOLOGY CENTRE LTD,2022771900,"16,973.70"
Department for Work and Pensions,Jobcentre Plus,10-Oct-11,TELEPHONE AND POSTAGE,COO,ROYAL MAIL GROUP PLC,2022781309,"16,927.47"
Department for Work and Pensions,Jobcentre Plus,05-Oct-11,EU PROGRAMMES,COO,A4E LTD,2022712360,"16,852.65"
Department for Work and Pensions,Employment Programmes,06-Oct-11,EP PROVIDER PAYMENT - WORK PROGRAMME,COO,SEETEC BUSINESS TECHNOLOGY CENTRE LTD,2022771900,"16,800.00"
Department for Work and Pensions,Employment Programmes,10-Oct-11,EP PROVIDER PAYMENT - WORK PROGRAMME,COO,INGEUS UK LTD,2022780274,"16,800.00"
Department for Work and Pensions,Employment Programmes,14-Oct-11,EP PROVIDER PAYMENT - WORK PROGRAMME,COO,PERTEMPS,2022860452,"16,800.00"
Department for Work and Pensions,Employment Programmes,20-Oct-11,EP PROVIDER PAYMENT - WORK PROGRAMME,COO,INGEUS UK LTD,2022937304,"16,800.00"
Department for Work and Pensions,Employment Programmes,31-Oct-11,EP PROVIDER PAYMENT - WORK PROGRAMME,COO,AVANTA ENTERPRISE LTD,2023027739,"16,800.00"
Department for Work and Pensions,Employment Programmes,31-Oct-11,EP PROVIDER PAYMENT - WORK PROGRAMME,COO,SEETEC BUSINESS TECHNOLOGY CENTRE LTD,2023029928,"16,800.00"
Department for Work and Pensions,Employment Programmes,06-Oct-11,EP PROVIDER PAYMENT - WORK PROGRAMME,COO,AVANTA ENTERPRISE LTD,2022769702,"16,400.00"
Department for Work and Pensions,Employment Programmes,11-Oct-11,EP PROVIDER PAYMENT - WORK PROGRAMME,COO,A4E LTD,2022783170,"16,400.00"
Department for Work and Pensions,Employment Programmes,11-Oct-11,EP PROVIDER PAYMENT - WORK PROGRAMME,COO,INGEUS UK LTD,2022785675,"16,400.00"
Department for Work and Pensions,Employment Programmes,12-Oct-11,EP PROVIDER PAYMENT - WORK PROGRAMME,COO,A4E LTD,2022793791,"16,400.00"
Department for Work and Pensions,Employment Programmes,12-Oct-11,EP PROVIDER PAYMENT - WORK PROGRAMME,COO,INGEUS UK LTD,2022810868,"16,400.00"
Department for Work and Pensions,Employment Programmes,12-Oct-11,EP PROVIDER PAYMENT - WORK PROGRAMME,COO,SEETEC BUSINESS TECHNOLOGY CENTRE LTD,2022845622,"16,400.00"
Department for Work and Pensions,Employment Programmes,13-Oct-11,EP PROVIDER PAYMENT - WORK PROGRAMME,COO,A4E LTD,2022852643,"16,400.00"
Department for Work and Pensions,Employment Programmes,13-Oct-11,EP PROVIDER PAYMENT - WORK PROGRAMME,COO,INGEUS UK LTD,2022854546,"16,400.00"
Department for Work and Pensions,Employment Programmes,14-Oct-11,EP PROVIDER PAYMENT - WORK PROGRAMME,COO,BEST LTD,2022857898,"16,400.00"
Department for Work and Pensions,Employment Programmes,17-Oct-11,EP PROVIDER PAYMENT - WORK PROGRAMME,COO,INGEUS UK LTD,2022864852,"16,400.00"
Department for Work and Pensions,Employment Programmes,17-Oct-11,EP PROVIDER PAYMENT - WORK PROGRAMME,COO,NEWCASTLE COLLEGE GROUP,2022865254,"16,400.00"
Department for Work and Pensions,Employment Programmes,18-Oct-11,EP PROVIDER PAYMENT - WORK PROGRAMME,COO,A4E LTD,2022866906,"16,400.00"
Department for Work and Pensions,Employment Programmes,18-Oct-11,EP PROVIDER PAYMENT - WORK PROGRAMME,COO,INGEUS UK LTD,2022868614,"16,400.00"
Department for Work and Pensions,Employment Programmes,19-Oct-11,EP PROVIDER PAYMENT - WORK PROGRAMME,COO,NEWCASTLE COLLEGE GROUP,2022916551,"16,400.00"
Department for Work and Pensions,Employment Programmes,21-Oct-11,EP PROVIDER PAYMENT - WORK PROGRAMME,COO,A4E LTD,2022940951,"16,400.00"
Department for Work and Pensions,Employment Programmes,26-Oct-11,EP PROVIDER PAYMENT - WORK PROGRAMME,COO,BEST LTD,2022960828,"16,400.00"
Department for Work and Pensions,Employment Programmes,26-Oct-11,EP PROVIDER PAYMENT - WORK PROGRAMME,COO,EOS WORKS LTD,2022972297,"16,400.00"
Department for Work and Pensions,Employment Programmes,26-Oct-11,EP PROVIDER PAYMENT - WORK PROGRAMME,COO,MAXIMUS EMPLOYMENT UK LTD,2022997078,"16,400.00"
Department for Work and Pensions,Employment Programmes,26-Oct-11,EP PROVIDER PAYMENT - WORK PROGRAMME,COO,WORKING LINKS,2023015639,"16,400.00"
Department for Work and Pensions,Employment Programmes,27-Oct-11,EP PROVIDER PAYMENT - WORK PROGRAMME,COO,EOS WORKS LTD,2023020332,"16,400.00"
Department for Work and Pensions,Employment Programmes,27-Oct-11,EP PROVIDER PAYMENT - WORK PROGRAMME,COO,INGEUS UK LTD,2023020578,"16,400.00"
Department for Work and Pensions,Employment Programmes,28-Oct-11,EP PROVIDER PAYMENT - WORK PROGRAMME,COO,BEST LTD,2023024164,"16,400.00"
Department for Work and Pensions,Employment Programmes,28-Oct-11,EP PROVIDER PAYMENT - WORK PROGRAMME,COO,INGEUS UK LTD,2023025389,"16,400.00"
Department for Work and Pensions,Corporate,28-Oct-11,PROFESSIONAL FEES,PS,A MARSHALL,2023024035,"16,201.25"
Department for Work and Pensions,Corporate,31-Oct-11,ACCOMMODATION,F&C,TELEREAL TRILLIUM,2023030021,"16,149.69"
Department for Work and Pensions,Employment Programmes,04-Oct-11,EP PROVIDER PAYMENT - WORK PROGRAMME,COO,SERCO LTD,2022705909,"16,000.00"
Department for Work and Pensions,Employment Programmes,04-Oct-11,EP PROVIDER PAYMENT - WORK PROGRAMME,COO,WORKING LINKS,2022706268,"16,000.00"
Department for Work and Pensions,Employment Programmes,06-Oct-11,EP PROVIDER PAYMENT - WORK PROGRAMME,COO,G4S REGIONAL MANAGEMENT UK & I LTD,2022770771,"16,000.00"
Department for Work and Pensions,Employment Programmes,07-Oct-11,EP PROVIDER PAYMENT - WORK PROGRAMME,COO,G4S REGIONAL MANAGEMENT UK & I LTD,2022775537,"16,000.00"
Department for Work and Pensions,Employment Programmes,10-Oct-11,EP PROVIDER PAYMENT - WORK PROGRAMME,COO,A4E LTD,2022778380,"16,000.00"
Department for Work and Pensions,Employment Programmes,10-Oct-11,EP PROVIDER PAYMENT - WORK PROGRAMME,COO,INGEUS UK LTD,2022780274,"16,000.00"
Department for Work and Pensions,Employment Programmes,17-Oct-11,EP PROVIDER PAYMENT - WORK PROGRAMME,COO,A4E LTD,2022862749,"16,000.00"
Department for Work and Pensions,Employment Programmes,17-Oct-11,EP PROVIDER PAYMENT - WORK PROGRAMME,COO,EOS WORKS LTD,2022864736,"16,000.00"
Department for Work and Pensions,Employment Programmes,17-Oct-11,EP PROVIDER PAYMENT - WORK PROGRAMME,COO,REED IN PARTNERSHIP LTD,2022865395,"16,000.00"
Department for Work and Pensions,Employment Programmes,19-Oct-11,EP PROVIDER PAYMENT - WORK PROGRAMME,COO,EOS WORKS LTD,2022889440,"16,000.00"
Department for Work and Pensions,Employment Programmes,19-Oct-11,EP PROVIDER PAYMENT - WORK PROGRAMME,COO,MAXIMUS EMPLOYMENT UK LTD,2022914017,"16,000.00"
Department for Work and Pensions,Employment Programmes,19-Oct-11,EP PROVIDER PAYMENT - WORK PROGRAMME,COO,SEETEC BUSINESS TECHNOLOGY CENTRE LTD,2022928309,"16,000.00"
Department for Work and Pensions,Employment Programmes,20-Oct-11,EP PROVIDER PAYMENT - WORK PROGRAMME,COO,MAXIMUS EMPLOYMENT UK LTD,2022937875,"16,000.00"
Department for Work and Pensions,Employment Programmes,25-Oct-11,EP PROVIDER PAYMENT - WORK PROGRAMME,COO,A4E LTD,2022949448,"16,000.00"
Department for Work and Pensions,Employment Programmes,25-Oct-11,EP PROVIDER PAYMENT - WORK PROGRAMME,COO,INGEUS UK LTD,2022951614,"16,000.00"
Department for Work and Pensions,Employment Programmes,25-Oct-11,EP PROVIDER PAYMENT - WORK PROGRAMME,COO,INGEUS UK LTD,2022951614,"16,000.00"
Department for Work and Pensions,Employment Programmes,25-Oct-11,EP PROVIDER PAYMENT - WORK PROGRAMME,COO,SEETEC BUSINESS TECHNOLOGY CENTRE LTD,2022953425,"16,000.00"
Department for Work and Pensions,Employment Programmes,26-Oct-11,EP PROVIDER PAYMENT - WORK PROGRAMME,COO,EOS WORKS LTD,2022972297,"16,000.00"
Department for Work and Pensions,Employment Programmes,26-Oct-11,EP PROVIDER PAYMENT - WORK PROGRAMME,COO,WORKING LINKS,2023015639,"16,000.00"
Department for Work and Pensions,Employment Programmes,27-Oct-11,EP PROVIDER PAYMENT - WORK PROGRAMME,COO,INGEUS UK LTD,2023020578,"16,000.00"
Department for Work and Pensions,Employment Programmes,31-Oct-11,EP PROVIDER PAYMENT - WORK PROGRAMME,COO,SEETEC BUSINESS TECHNOLOGY CENTRE LTD,2023029928,"16,000.00"
Department for Work and Pensions,Corporate,18-Oct-11,APPS DEV,F&C,HP ENTERPRISE SERVICES UK LTD,2022868574,"15,972.81"
Department for Work and Pensions,Jobcentre Plus,10-Oct-11,TELEPHONE AND POSTAGE,COO,ROYAL MAIL GROUP PLC,2022781309,"15,866.14"
Department for Work and Pensions,Corporate,18-Oct-11,OTHER GOODS AND SERVICES,F&C,INCHCAPE FLEET SOLUTIONS LTD,2022868612,"15,699.03"
Department for Work and Pensions,Employment Programmes,04-Oct-11,EP PROVIDER PAYMENT - NON-WORK PROGRAMME,COO,SEETEC BUSINESS TECHNOLOGY CENTRE LTD,2022705908,"15,682.16"
Department for Work and Pensions,Employment Programmes,04-Oct-11,EP PROVIDER PAYMENT - NON-WORK PROGRAMME,COO,JHP GROUP LTD,2022704025,"15,612.10"
Department for Work and Pensions,Employment Programmes,04-Oct-11,EP PROVIDER PAYMENT - WORK PROGRAMME,COO,A4E LTD,2022699696,"15,600.00"
Department for Work and Pensions,Employment Programmes,04-Oct-11,EP PROVIDER PAYMENT - WORK PROGRAMME,COO,WORKING LINKS,2022706268,"15,600.00"
Department for Work and Pensions,Employment Programmes,11-Oct-11,EP PROVIDER PAYMENT - WORK PROGRAMME,COO,BEST LTD,2022783275,"15,600.00"
Department for Work and Pensions,Employment Programmes,11-Oct-11,EP PROVIDER PAYMENT - WORK PROGRAMME,COO,INGEUS UK LTD,2022785675,"15,600.00"
Department for Work and Pensions,Employment Programmes,13-Oct-11,EP PROVIDER PAYMENT - WORK PROGRAMME,COO,EOS WORKS LTD,2022854350,"15,600.00"
Department for Work and Pensions,Employment Programmes,13-Oct-11,EP PROVIDER PAYMENT - WORK PROGRAMME,COO,SEETEC BUSINESS TECHNOLOGY CENTRE LTD,2022855594,"15,600.00"
Department for Work and Pensions,Employment Programmes,14-Oct-11,EP PROVIDER PAYMENT - WORK PROGRAMME,COO,G4S REGIONAL MANAGEMENT UK & I LTD,2022859697,"15,600.00"
Department for Work and Pensions,Employment Programmes,14-Oct-11,EP PROVIDER PAYMENT - WORK PROGRAMME,COO,PERTEMPS,2022860452,"15,600.00"
Department for Work and Pensions,Employment Programmes,17-Oct-11,EP PROVIDER PAYMENT - WORK PROGRAMME,COO,INGEUS UK LTD,2022864852,"15,600.00"
Department for Work and Pensions,Employment Programmes,17-Oct-11,EP PROVIDER PAYMENT - WORK PROGRAMME,COO,NEWCASTLE COLLEGE GROUP,2022865254,"15,600.00"
Department for Work and Pensions,Employment Programmes,18-Oct-11,EP PROVIDER PAYMENT - WORK PROGRAMME,COO,MAXIMUS EMPLOYMENT UK LTD,2022869542,"15,600.00"
Department for Work and Pensions,Employment Programmes,20-Oct-11,EP PROVIDER PAYMENT - WORK PROGRAMME,COO,AVANTA ENTERPRISE LTD,2022935396,"15,600.00"
Department for Work and Pensions,Employment Programmes,24-Oct-11,EP PROVIDER PAYMENT - WORK PROGRAMME,COO,A4E LTD,2022945360,"15,600.00"
Department for Work and Pensions,Employment Programmes,28-Oct-11,EP PROVIDER PAYMENT - WORK PROGRAMME,COO,INGEUS UK LTD,2023025389,"15,600.00"
Department for Work and Pensions,Employment Programmes,31-Oct-11,EP PROVIDER PAYMENT - WORK PROGRAMME,COO,G4S REGIONAL MANAGEMENT UK & I LTD,2023029102,"15,600.00"
Department for Work and Pensions,Jobcentre Plus,13-Oct-11,PROFESSIONAL FEES,COO,THE BIG WORD INTERPRETING SERVICES LTD,2022855690,"15,417.41"
Department for Work and Pensions,Corporate,31-Oct-11,ACCOMMODATION,F&C,TELEREAL TRILLIUM,2023030021,"15,350.20"
Department for Work and Pensions,Employment Programmes,13-Oct-11,EP PROVIDER PAYMENT - NON-WORK PROGRAMME,COO,WORKING LINKS,2022855788,"15,266.76"
Department for Work and Pensions,Corporate,31-Oct-11,ACCOMMODATION,F&C,TELEREAL TRILLIUM,2023030024,"15,263.38"
Department for Work and Pensions,Employment Programmes,04-Oct-11,EP PROVIDER PAYMENT - WORK PROGRAMME,COO,A4E LTD,2022699696,"15,200.00"
Department for Work and Pensions,Employment Programmes,04-Oct-11,EP PROVIDER PAYMENT - WORK PROGRAMME,COO,INGEUS UK LTD,2022703673,"15,200.00"
Department for Work and Pensions,Employment Programmes,06-Oct-11,EP PROVIDER PAYMENT - WORK PROGRAMME,COO,INGEUS UK LTD,2022770874,"15,200.00"
Department for Work and Pensions,Employment Programmes,07-Oct-11,EP PROVIDER PAYMENT - WORK PROGRAMME,COO,A4E LTD,2022774170,"15,200.00"
Department for Work and Pensions,Employment Programmes,10-Oct-11,EP PROVIDER PAYMENT - WORK PROGRAMME,COO,REED IN PARTNERSHIP LTD,2022781295,"15,200.00"
Department for Work and Pensions,Employment Programmes,18-Oct-11,EP PROVIDER PAYMENT - WORK PROGRAMME,COO,INGEUS UK LTD,2022868614,"15,200.00"
Department for Work and Pensions,Employment Programmes,19-Oct-11,EP PROVIDER PAYMENT - WORK PROGRAMME,COO,REHAB JOBFIT,2022921015,"15,200.00"
Department for Work and Pensions,Employment Programmes,20-Oct-11,EP PROVIDER PAYMENT - WORK PROGRAMME,COO,SEETEC BUSINESS TECHNOLOGY CENTRE LTD,2022938397,"15,200.00"
Department for Work and Pensions,Employment Programmes,24-Oct-11,EP PROVIDER PAYMENT - WORK PROGRAMME,COO,WORKING LINKS,2022948181,"15,200.00"
Department for Work and Pensions,Employment Programmes,26-Oct-11,EP PROVIDER PAYMENT - WORK PROGRAMME,COO,A4E LTD,2022959752,"15,200.00"
Department for Work and Pensions,Employment Programmes,26-Oct-11,EP PROVIDER PAYMENT - WORK PROGRAMME,COO,INGEUS UK LTD,2022976784,"15,200.00"
Department for Work and Pensions,Employment Programmes,27-Oct-11,EP PROVIDER PAYMENT - WORK PROGRAMME,COO,INGEUS UK LTD,2023020578,"15,200.00"
Department for Work and Pensions,Employment Programmes,28-Oct-11,EP PROVIDER PAYMENT - WORK PROGRAMME,COO,INGEUS UK LTD,2023025389,"15,200.00"
Department for Work and Pensions,Employment Programmes,28-Oct-11,EP PROVIDER PAYMENT - WORK PROGRAMME,COO,WORKING LINKS,2023026464,"15,200.00"
Department for Work and Pensions,Employment Programmes,31-Oct-11,EP PROVIDER PAYMENT - WORK PROGRAMME,COO,INGEUS UK LTD,2023029185,"15,200.00"
Department for Work and Pensions,Employment Programmes,31-Oct-11,EP PROVIDER PAYMENT - WORK PROGRAMME,COO,WORKING LINKS,2023030097,"15,200.00"
Department for Work and Pensions,Corporate,18-Oct-11,COMPUTER SERVICES,CIT,ACCENTURE UK LTD,2022866915,"15,090.02"
Department for Work and Pensions,Employment Programmes,04-Oct-11,EP PROVIDER PAYMENT - WORK PROGRAMME,COO,INGEUS UK LTD,2022703673,"15,000.00"
Department for Work and Pensions,Employment Programmes,04-Oct-11,EP PROVIDER PAYMENT - WORK PROGRAMME,COO,INGEUS UK LTD,2022703673,"14,800.00"
Department for Work and Pensions,Employment Programmes,04-Oct-11,EP PROVIDER PAYMENT - WORK PROGRAMME,COO,SEETEC BUSINESS TECHNOLOGY CENTRE LTD,2022705908,"14,800.00"
Department for Work and Pensions,Employment Programmes,06-Oct-11,EP PROVIDER PAYMENT - WORK PROGRAMME,COO,ESG HOLDINGS LIMITED,2022770690,"14,800.00"
Department for Work and Pensions,Employment Programmes,10-Oct-11,EP PROVIDER PAYMENT - WORK PROGRAMME,COO,A4E LTD,2022778380,"14,800.00"
Department for Work and Pensions,Employment Programmes,10-Oct-11,EP PROVIDER PAYMENT - WORK PROGRAMME,COO,MAXIMUS EMPLOYMENT UK LTD,2022780966,"14,800.00"
Department for Work and Pensions,Employment Programmes,10-Oct-11,EP PROVIDER PAYMENT - WORK PROGRAMME,COO,WORKING LINKS,2022781773,"14,800.00"
Department for Work and Pensions,Employment Programmes,11-Oct-11,EP PROVIDER PAYMENT - WORK PROGRAMME,COO,INGEUS UK LTD,2022785675,"14,800.00"
Department for Work and Pensions,Employment Programmes,12-Oct-11,EP PROVIDER PAYMENT - WORK PROGRAMME,COO,NEWCASTLE COLLEGE GROUP,2022833736,"14,800.00"
Department for Work and Pensions,Employment Programmes,14-Oct-11,EP PROVIDER PAYMENT - WORK PROGRAMME,COO,INGEUS UK LTD,2022859793,"14,800.00"
Department for Work and Pensions,Employment Programmes,18-Oct-11,EP PROVIDER PAYMENT - WORK PROGRAMME,COO,A4E LTD,2022866906,"14,800.00"
Department for Work and Pensions,Employment Programmes,18-Oct-11,EP PROVIDER PAYMENT - WORK PROGRAMME,COO,WORKING LINKS,2022870612,"14,800.00"
Department for Work and Pensions,Employment Programmes,19-Oct-11,EP PROVIDER PAYMENT - WORK PROGRAMME,COO,EOS WORKS LTD,2022889440,"14,800.00"
Department for Work and Pensions,Employment Programmes,21-Oct-11,EP PROVIDER PAYMENT - WORK PROGRAMME,COO,AVANTA ENTERPRISE LTD,2022940981,"14,800.00"
Department for Work and Pensions,Employment Programmes,24-Oct-11,EP PROVIDER PAYMENT - WORK PROGRAMME,COO,MAXIMUS EMPLOYMENT UK LTD,2022947566,"14,800.00"
Department for Work and Pensions,Employment Programmes,26-Oct-11,EP PROVIDER PAYMENT - WORK PROGRAMME,COO,A4E LTD,2022959752,"14,800.00"
Department for Work and Pensions,Employment Programmes,31-Oct-11,EP PROVIDER PAYMENT - WORK PROGRAMME,COO,ESG HOLDINGS LIMITED,2023029048,"14,800.00"
Department for Work and Pensions,Employment Programmes,31-Oct-11,EP PROVIDER PAYMENT - WORK PROGRAMME,COO,G4S REGIONAL MANAGEMENT UK & I LTD,2023029102,"14,800.00"
Department for Work and Pensions,Employment Programmes,31-Oct-11,EP PROVIDER PAYMENT - WORK PROGRAMME,COO,INGEUS UK LTD,2023029185,"14,800.00"
Department for Work and Pensions,"Pension, Disability Carers Services",10-Oct-11,TELEPHONE AND POSTAGE,COO,ROYAL MAIL GROUP PLC,2022781309,"14,563.17"
Department for Work and Pensions,Employment Programmes,04-Oct-11,EP PROVIDER PAYMENT - WORK PROGRAMME,COO,AVANTA ENTERPRISE LTD,2022699761,"14,400.00"
Department for Work and Pensions,Employment Programmes,07-Oct-11,EP PROVIDER PAYMENT - WORK PROGRAMME,COO,INGEUS UK LTD,2022775656,"14,400.00"
Department for Work and Pensions,Employment Programmes,07-Oct-11,EP PROVIDER PAYMENT - WORK PROGRAMME,COO,JHP GROUP LTD,2022775832,"14,400.00"
Department for Work and Pensions,Employment Programmes,07-Oct-11,EP PROVIDER PAYMENT - WORK PROGRAMME,COO,PERTEMPS,2022776408,"14,400.00"
Department for Work and Pensions,Employment Programmes,07-Oct-11,EP PROVIDER PAYMENT - WORK PROGRAMME,COO,REED IN PARTNERSHIP LTD,2022776509,"14,400.00"
Department for Work and Pensions,Employment Programmes,11-Oct-11,EP PROVIDER PAYMENT - WORK PROGRAMME,COO,INGEUS UK LTD,2022785675,"14,400.00"
Department for Work and Pensions,Employment Programmes,12-Oct-11,EP PROVIDER PAYMENT - WORK PROGRAMME,COO,AVANTA ENTERPRISE LTD,2022793835,"14,400.00"
Department for Work and Pensions,Employment Programmes,13-Oct-11,EP PROVIDER PAYMENT - WORK PROGRAMME,COO,INGEUS UK LTD,2022854546,"14,400.00"
Department for Work and Pensions,Employment Programmes,18-Oct-11,EP PROVIDER PAYMENT - WORK PROGRAMME,COO,A4E LTD,2022866906,"14,400.00"
Department for Work and Pensions,Employment Programmes,21-Oct-11,EP PROVIDER PAYMENT - WORK PROGRAMME,COO,EOS WORKS LTD,2022942786,"14,400.00"
Department for Work and Pensions,Employment Programmes,21-Oct-11,EP PROVIDER PAYMENT - WORK PROGRAMME,COO,INGEUS UK LTD,2022942926,"14,400.00"
Department for Work and Pensions,Employment Programmes,25-Oct-11,EP PROVIDER PAYMENT - WORK PROGRAMME,COO,A4E LTD,2022949448,"14,400.00"
Department for Work and Pensions,Employment Programmes,25-Oct-11,EP PROVIDER PAYMENT - WORK PROGRAMME,COO,NEWCASTLE COLLEGE GROUP,2022952694,"14,400.00"
Department for Work and Pensions,Employment Programmes,26-Oct-11,EP PROVIDER PAYMENT - WORK PROGRAMME,COO,CAREERS DEVELOPMENT GROUP,2022965460,"14,400.00"
Department for Work and Pensions,Employment Programmes,26-Oct-11,EP PROVIDER PAYMENT - WORK PROGRAMME,COO,REED IN PARTNERSHIP LTD,2023004115,"14,400.00"
Department for Work and Pensions,Employment Programmes,27-Oct-11,EP PROVIDER PAYMENT - WORK PROGRAMME,COO,A4E LTD,2023018525,"14,400.00"
Department for Work and Pensions,Employment Programmes,27-Oct-11,EP PROVIDER PAYMENT - WORK PROGRAMME,COO,WORKING LINKS,2023022196,"14,400.00"
Department for Work and Pensions,Employment Programmes,28-Oct-11,EP PROVIDER PAYMENT - WORK PROGRAMME,COO,G4S REGIONAL MANAGEMENT UK & I LTD,2023025315,"14,400.00"
Department for Work and Pensions,Corporate,04-Oct-11,COMPUTER SERVICES,CIT,ACCENTURE,2022699707,"14,364.69"
Department for Work and Pensions,"Pension, Disability Carers Services",10-Oct-11,TELEPHONE AND POSTAGE,COO,ROYAL MAIL GROUP PLC,2022781309,"14,271.70"
Department for Work and Pensions,Corporate,21-Oct-11,COMPUTER SERVICES,Change PMU,HP ENTERPRISE SERVICES UK LTD,2022942909,"14,149.00"
Department for Work and Pensions,Employment Programmes,04-Oct-11,EP PROVIDER PAYMENT - WORK PROGRAMME,COO,AVANTA ENTERPRISE LTD,2022699761,"14,000.00"
Department for Work and Pensions,Employment Programmes,04-Oct-11,EP PROVIDER PAYMENT - WORK PROGRAMME,COO,INGEUS UK LTD,2022703673,"14,000.00"
Department for Work and Pensions,Employment Programmes,04-Oct-11,EP PROVIDER PAYMENT - WORK PROGRAMME,COO,NEWCASTLE COLLEGE GROUP,2022705024,"14,000.00"
Department for Work and Pensions,Employment Programmes,04-Oct-11,EP PROVIDER PAYMENT - WORK PROGRAMME,COO,SERCO LTD,2022705909,"14,000.00"
Department for Work and Pensions,Employment Programmes,06-Oct-11,EP PROVIDER PAYMENT - WORK PROGRAMME,COO,REED IN PARTNERSHIP LTD,2022771706,"14,000.00"
Department for Work and Pensions,Employment Programmes,10-Oct-11,EP PROVIDER PAYMENT - WORK PROGRAMME,COO,INGEUS UK LTD,2022780274,"14,000.00"
Department for Work and Pensions,Employment Programmes,12-Oct-11,EP PROVIDER PAYMENT - WORK PROGRAMME,COO,REED IN PARTNERSHIP LTD,2022838241,"14,000.00"
Department for Work and Pensions,Employment Programmes,14-Oct-11,EP PROVIDER PAYMENT - WORK PROGRAMME,COO,INGEUS UK LTD,2022859793,"14,000.00"
Department for Work and Pensions,Employment Programmes,17-Oct-11,EP PROVIDER PAYMENT - WORK PROGRAMME,COO,AVANTA ENTERPRISE LTD,2022862774,"14,000.00"
Department for Work and Pensions,Employment Programmes,17-Oct-11,EP PROVIDER PAYMENT - WORK PROGRAMME,COO,CAREERS DEVELOPMENT GROUP,2022862893,"14,000.00"
Department for Work and Pensions,Employment Programmes,17-Oct-11,EP PROVIDER PAYMENT - WORK PROGRAMME,COO,WORKING LINKS,2022865650,"14,000.00"
Department for Work and Pensions,Employment Programmes,18-Oct-11,EP PROVIDER PAYMENT - WORK PROGRAMME,COO,INGEUS UK LTD,2022868614,"14,000.00"
Department for Work and Pensions,Employment Programmes,19-Oct-11,EP PROVIDER PAYMENT - WORK PROGRAMME,COO,INGEUS UK LTD,2022893860,"14,000.00"
Department for Work and Pensions,Employment Programmes,19-Oct-11,EP PROVIDER PAYMENT - WORK PROGRAMME,COO,INGEUS UK LTD,2022893860,"14,000.00"
Department for Work and Pensions,Employment Programmes,20-Oct-11,EP PROVIDER PAYMENT - WORK PROGRAMME,COO,WORKING LINKS,2022938617,"14,000.00"
Department for Work and Pensions,Employment Programmes,24-Oct-11,EP PROVIDER PAYMENT - WORK PROGRAMME,COO,INGEUS UK LTD,2022947092,"14,000.00"
Department for Work and Pensions,Employment Programmes,24-Oct-11,EP PROVIDER PAYMENT - WORK PROGRAMME,COO,REHAB JOBFIT,2022947827,"14,000.00"
Department for Work and Pensions,Employment Programmes,25-Oct-11,EP PROVIDER PAYMENT - WORK PROGRAMME,COO,NEWCASTLE COLLEGE GROUP,2022952694,"14,000.00"
Department for Work and Pensions,Employment Programmes,27-Oct-11,EP PROVIDER PAYMENT - WORK PROGRAMME,COO,G4S REGIONAL MANAGEMENT UK & I LTD,2023020453,"14,000.00"
Department for Work and Pensions,Employment Programmes,31-Oct-11,EP PROVIDER PAYMENT - WORK PROGRAMME,COO,A4E LTD,2023027702,"14,000.00"
Department for Work and Pensions,Employment Programmes,31-Oct-11,EP PROVIDER PAYMENT - WORK PROGRAMME,COO,REHAB JOBFIT,2023029800,"14,000.00"
Department for Work and Pensions,"Pension, Disability Carers Services",10-Oct-11,TELEPHONE AND POSTAGE,COO,ROYAL MAIL GROUP PLC,2022781309,"13,993.80"
Department for Work and Pensions,Corporate,17-Oct-11,TEMPORARY (TEMP) STAFF COSTS,CIT,CAPITA RESOURCING LTD,2022862889,"13,931.40"
Department for Work and Pensions,Housing Benefits,14-Oct-11,Housing Benefit Admin,COO,RUTLAND COUNTY COUNCIL,2022862530,"13,859.00"
Department for Work and Pensions,Jobcentre Plus,13-Oct-11,PROFESSIONAL FEES,COO,THE BIG WORD INTERPRETING SERVICES LTD,2022855690,"13,847.70"
Department for Work and Pensions,"Pension, Disability Carers Services",10-Oct-11,TELEPHONE AND POSTAGE,COO,ROYAL MAIL GROUP PLC,2022781309,"13,816.33"
Department for Work and Pensions,Employment Programmes,06-Oct-11,EP PROVIDER PAYMENT - WORK PROGRAMME,COO,A4E LTD,2022769664,"13,600.00"
Department for Work and Pensions,Employment Programmes,06-Oct-11,EP PROVIDER PAYMENT - WORK PROGRAMME,COO,G4S REGIONAL MANAGEMENT UK & I LTD,2022770771,"13,600.00"
Department for Work and Pensions,Employment Programmes,06-Oct-11,EP PROVIDER PAYMENT - WORK PROGRAMME,COO,MAXIMUS EMPLOYMENT UK LTD,2022771427,"13,600.00"
Department for Work and Pensions,Employment Programmes,07-Oct-11,EP PROVIDER PAYMENT - WORK PROGRAMME,COO,G4S REGIONAL MANAGEMENT UK & I LTD,2022775537,"13,600.00"
Department for Work and Pensions,Employment Programmes,07-Oct-11,EP PROVIDER PAYMENT - WORK PROGRAMME,COO,PERTEMPS,2022776408,"13,600.00"
Department for Work and Pensions,Employment Programmes,10-Oct-11,EP PROVIDER PAYMENT - WORK PROGRAMME,COO,SEETEC BUSINESS TECHNOLOGY CENTRE LTD,2022781544,"13,600.00"
Department for Work and Pensions,Employment Programmes,11-Oct-11,EP PROVIDER PAYMENT - WORK PROGRAMME,COO,REED IN PARTNERSHIP LTD,2022787092,"13,600.00"
Department for Work and Pensions,Employment Programmes,17-Oct-11,EP PROVIDER PAYMENT - WORK PROGRAMME,COO,INGEUS UK LTD,2022864852,"13,600.00"
Department for Work and Pensions,Employment Programmes,17-Oct-11,EP PROVIDER PAYMENT - WORK PROGRAMME,COO,REHAB JOBFIT,2022865397,"13,600.00"
Department for Work and Pensions,Employment Programmes,19-Oct-11,EP PROVIDER PAYMENT - WORK PROGRAMME,COO,NEWCASTLE COLLEGE GROUP,2022916551,"13,600.00"
Department for Work and Pensions,Employment Programmes,20-Oct-11,EP PROVIDER PAYMENT - WORK PROGRAMME,COO,MAXIMUS EMPLOYMENT UK LTD,2022937875,"13,600.00"
